{"text_format":"1","workbook":"xlsx","n_sheets":18,"sheets":["OVERALL RATING (avg)","SPECS","TEST RESULTS","LCA RESULTS","Driving Experience Input","Fast charging","Clean Air","Efficiency","Greenhouse","Driving Experience","LIMITS Clean Air","LIMITS Efficiency","LIMITS Greenhouse","WEBSITE SUMMARY","Sheet1","Versions","Child vehicles","Track Changes"],"not_rendered":{"charts":0,"images":38,"macros":1,"external_links":0,"defined_names":98,"comments":0,"pivot_tables":0},"unopened":[],"bounds":{"document_bytes":16777216,"sheet_cells":100000,"rows_first":2000,"rows_last":500,"rows_between":2000,"halvings":0,"cell_chars":16384,"cell_head_chars":4096},"cells_cut":0,"cells_raw":0,"read":"whole","date_system":"1900"}

{"sheet":"OVERALL RATING (avg)","index":0,"n_rows":93,"n_cols":13,"rows_kept":93,"cut":false,"hidden":false,"merged":[[2,2,2,5],[86,3,86,4],[86,5,86,6],[86,7,86,8],[78,3,78,5],[78,6,78,8],[79,6,79,7],[80,6,80,7],[81,6,81,7],[7,3,7,4],[7,5,7,6],[7,7,7,8],[6,3,6,4],[6,5,6,6],[6,7,6,8],[24,2,28,2],[26,19,26,24],[31,3,31,4],[31,5,31,6],[31,7,31,8],[30,2,30,8],[32,3,32,4],[32,5,32,6],[32,7,32,8],[33,3,33,4],[33,5,33,6],[33,7,33,8],[34,3,34,4],[34,5,34,6],[34,7,34,8],[35,3,35,8],[52,3,52,4],[52,5,52,6],[52,7,52,8],[53,3,53,4],[53,5,53,6],[53,7,53,8],[54,3,54,4],[54,5,54,6],[54,7,54,8],[55,3,55,4],[55,5,55,6],[55,7,55,8],[56,3,56,4],[56,5,56,6],[56,7,56,8],[67,6,67,7],[67,13,67,16],[60,3,60,8],[61,4,61,5],[61,6,61,8],[62,7,62,8],[63,4,63,5],[63,6,63,8],[65,4,65,5],[65,6,65,8],[66,3,66,5],[66,6,66,8],[66,13,66,16],[73,6,73,7],[68,6,68,7],[69,6,69,7],[70,3,70,5],[70,6,70,8],[71,6,71,7],[72,6,72,7],[74,3,74,5],[74,6,74,8],[75,6,75,7],[76,6,76,7],[77,6,77,7],[87,3,87,4],[87,5,87,6],[87,7,87,8],[88,3,88,4],[88,5,88,6],[88,7,88,8]]}
[]
[]
[null,null,{"$f":"IF(E62=0,\"Make Model\",CONCATENATE(E62,\" \",G62))","v":"Make Model"}]
[]
[]
[null,null,null,"SUSTAINABILITY RATING"]
[null,null,null,"Clean Air\n",null,"Energy Efficiency\n",null,"Greenhouse Gases\n"]
[null,null,null,32.6,null,40.5]
[]
[]
[]
[]
[]
[]
[]
[]
[]
[]
[]
[]
[]
[]
[]
[null,null,"PRODUCTION"]
[null,null,"Lab Testing",{"$f":"'Clean Air'!C18","v":"WLTP CoC Type Approval"},{"$f":"'Clean Air'!J35","v":10},{"$f":"D25","v":"WLTP CoC Type Approval"},{"$f":"SUM(Efficiency!I13:I13)","v":0},{"$f":"D25","v":"WLTP CoC Type Approval"},{"$f":"Greenhouse!I52","v":0}]
[null,null,null,{"$f":"'Clean Air'!C27","v":"WLTC + Warm"},{"$f":"'Clean Air'!#REF!","v":{"$error":"#REF!"}},{"$f":"D26","v":"WLTC + Warm"},{"$f":"Efficiency!I10","v":0},{"$f":"D26","v":"WLTC + Warm"},{"$f":"Greenhouse!I25","v":0}]
[null,null,null,{"$f":"'Clean Air'!C36","v":"WLTC+ CAT Cold"},{"$f":"'Clean Air'!J44","v":10},"WLTC+ CAT Cold",{"$f":"Efficiency!I14","v":0},"WLTC+ CAT Cold",{"$f":"Greenhouse!I61","v":0}]
[null,null,null,{"$f":"'Clean Air'!C45","v":"WLTC+ CAT Warm"},{"$f":"'Clean Air'!#REF!","v":{"$error":"#REF!"}},"WLTC+ CAT Warm",{"$f":"IF(Efficiency!#REF!=0,\"-\",Efficiency!#REF!)","v":{"$error":"#REF!"}},"WLTC+ CAT Warm",{"$f":"IF(Greenhouse!#REF!=0,\"-\",Greenhouse!#REF!)","v":{"$error":"#REF!"}}]
[null,null,null,{"$f":"'Clean Air'!C54","v":"BAB130 Motorway"},{"$f":"'Clean Air'!#REF!","v":{"$error":"#REF!"}},"BAB130 Motorway",{"$f":"IF(Efficiency!#REF!=0,\"-\",Efficiency!#REF!)","v":{"$error":"#REF!"}},"BAB130 Motorway",{"$f":"IF(Greenhouse!#REF!=0,\"-\",Greenhouse!#REF!)","v":{"$error":"#REF!"}}]
[null,null,"On-Road\nTesting",{"$f":"'Clean Air'!C63","v":"On-Road Drive"},{"$f":"'Clean Air'!J62","v":10},{"$f":"D30","v":"On-Road Drive"},{"$f":"Efficiency!I12","v":0},{"$f":"D30","v":"On-Road Drive"},{"$f":"Greenhouse!I43","v":0}]
[null,null,"End of Life"]
[null,null,"Total Score",{"$f":"'Clean Air'!M126+'Clean Air'!F131","v":2},null,{"$f":"Efficiency!#REF!","v":{"$error":"#REF!"}},null,{"$f":"Greenhouse!E109","v":0}]
[null,null,"Max Points Available",{"$f":"'Clean Air'!L126","v":250},null,{"$f":"Efficiency!#REF!","v":{"$error":"#REF!"}},null,{"$f":"Greenhouse!E109","v":0},null,null,"CA",{"$f":"'Clean Air'!O130","v":"Sub-Index"}]
[null,null,"Index",{"$f":"'Clean Air'!Q134","v":8.5},null,{"$f":"Efficiency!L46","v":10},null,{"$f":"Greenhouse!L118","v":10},null,null,"EE",{"$f":"Efficiency!L49","v":0}]
[null,null,"Weighting Factors",{"$f":"100/3","v":33.333333333333336},null,{"$f":"100/3","v":33.333333333333336},null,{"$f":"100/3","v":33.333333333333336},null,null,"GHG",{"$f":"IF(AND(#REF!=\"YES\",ROUNDDOWN((D34*D35+F35*F34+H35*H34)/100,1)<5),Greenhouse!#REF!,$H$34)","v":{"$error":"#REF!"}}]
[null,null,"Weighted Overall Index",{"$f":"ROUNDDOWN(AVERAGE('Clean Air'!Q134,Efficiency!L46,Greenhouse!L118),1)","v":9.5},null,null,null,null,null,{"$f":"ROUNDDOWN((D34*D35+F35*F34+H35*H34)/100,1)","v":9.5},{"$f":"ROUND(MAX(IF(D36>=G39:G48,F39:F48)),1)","v":5}]
[]
[null,null,null,null,null,"Stars","Threshold"]
[null,null,null,null,null,5,9]
[null,null,null,null,null,4.5,8]
[null,null,null,null,null,4,7]
[null,null,null,null,null,3.5,6]
[null,null,null,null,null,3,5]
[null,null,null,null,null,2.5,4]
[null,null,null,null,null,2,3]
[null,null,null,null,null,1.5,2]
[null,null,null,null,null,1,1]
[null,null,null,null,null,0,0]
[]
[]
[]
[null,null,"RATING REQUIREMENTS 2021"]
[null,null,null,9,null,7.5,null,4,null,null,null,null,{"$f":"IF(AND($D$34:$I$34>=D53:I53),1,0)","v":0}]
[null,null,null,7,null,6,null,{"$f":"H53-1","v":3},null,null,null,null,{"$f":"IF(AND($D$34:$I$34>=D54:I54),1,0)","v":1}]
[null,null,null,5,null,4.5,null,{"$f":"H54-1","v":2},null,null,null,null,{"$f":"IF(AND($D$34:$I$34>=D55:I55),1,0)","v":1}]
[null,null,null,3,null,3,null,1,null,null,null,null,{"$f":"IF(AND($D$34:$I$34>=D56:I56),1,0)","v":1}]
[null,null,null,1,null,1.5,null,0,null,null,null,null,{"$f":"IF(AND($D$34:$I$34>=D57:I57),1,0)","v":1}]
[]
[null,null,"1): test not operational yet",null,null,null,null,null,null,null,null,null,{"$f":"SUM(M53:M57)","v":4}]
[]
[null,null,null,"TEST DETAILS"]
[null,null,null,"Vehicle",{"$f":"SPECS!B1","v":0},null,{"$f":"SPECS!$B$2","v":0}]
[null,null,null," Specs (cc/kW)",{"$f":"IF(SPECS!B32=0,\"-\",SPECS!B32)","v":"-"}," cc",{"$f":"IF(SPECS!B33=0,\"-\",SPECS!B33)","v":"-"}," kW"]
[null,null,null,"Applies to VIN:",{"$f":"IF(SPECS!B29=0,\"-\",SPECS!B29)","v":"-"}]
[null,null,null,"Powerunit(s)",{"$f":"IF(Petrol,\"Petrol\",IF(Diesel,\"Diesel\",IF(CNG_Dual,\"CNG-Bivalent\",IF(CNG_Mono,\"CNG\",IF(Hydrogen,\"FCEV\",IF(Electric,\"Battery Electric\"))))))","v":"Battery Electric"},{"$f":"IF(Electric,\"electric\",\"-\")","v":"electric"},{"$f":"IF(CNG_Dual,\"CNG Bi-Fuel\",\"-\")","v":"-"},{"$f":"IF(CNG_Mono,\"CNG monovalent\",\"-\")","v":"-"}]
[null,null,null,"Actual mass (kg)",{"$f":"SPECS!B41","v":0}]
[null,null,null,"Average Energy Use (Warm Test, Cold Test, Highway)",null,null,"Average Driving Range (Warm Test, Cold Test, Highway)"]
[null,null,null,"liquid fuel ",{"$f":"IF(Efficiency!P$16>0,Efficiency!P$16,\"n.a.\")","v":"n.a."},"l/100km",{"$f":"IF(Efficiency!P$41>0,Efficiency!P$41,\"n.a.\")","v":"n.a."},null,"km"]
[null,null,null," gaseous fuel ",{"$f":"IF(Efficiency!V$16>0,Efficiency!V$16,\"n.a.\")","v":"n.a."},"kg/100km",{"$f":"IF(Efficiency!V$41>0,Efficiency!V$41,\"n.a.\")","v":"n.a."},null,"km"]
[null,null,null,"electric energy",{"$f":"IF(Efficiency!S$16>0,Efficiency!S$16,\"n.a.\")","v":"n.a."},"kWh/100km",{"$f":"IF(Efficiency!S$41>0,Efficiency!S$41,\"n.a.\")","v":"n.a."},null,"km"]
[null,null,null,"Warm Test (Lab) Energy Use ",null,null,"Warm Test (Lab) Driving range"]
[null,null,null,"liquid fuel ",{"$f":"IF(Efficiency!P$17>0,Efficiency!P$17,\"n.a.\")","v":"n.a."},"l/100km",{"$f":"IF(Efficiency!P$42>0,Efficiency!P$42,\"n.a.\")","v":"n.a."},null,"km"]
[null,null,null," gaseous fuel ",{"$f":"IF(Efficiency!V$17>0,Efficiency!V$17,\"n.a.\")","v":"n.a."},"kg/100km",{"$f":"IF(Efficiency!V$42>0,Efficiency!V$42,\"n.a.\")","v":"n.a."},null,"km"]
[null,null,null,"electric energy",{"$f":"IF(Efficiency!S$17>0,Efficiency!S$17,\"n.a.\")","v":"n.a."},"kWh/100km",{"$f":"IF(Efficiency!S$42>0,Efficiency!S$42,\"n.a.\")","v":"n.a."},null,"km"]
[null,null,null,"Highway Energy Use",null,null,"Highway Energy Use Driving Range"]
[null,null,null,"liquid fuel ",{"$f":"IF(Efficiency!P$18>0,Efficiency!P$18,\"n.a.\")","v":"n.a."},"l/100km",{"$f":"IF(Efficiency!P$43>0,Efficiency!P$43,\"n.a.\")","v":"n.a."},null,"km"]
[null,null,null," gaseous fuel ",{"$f":"IF(Efficiency!V$18>0,Efficiency!V$18,\"n.a.\")","v":"n.a."},"kg/100km",{"$f":"IF(Efficiency!V$43>0,Efficiency!V$43,\"n.a.\")","v":"n.a."},null,"km"]
[null,null,null,"electric energy",{"$f":"IF(Efficiency!S$18>0,Efficiency!S$18,\"n.a.\")","v":"n.a."},"kWh/100km",{"$f":"IF(Efficiency!S$43>0,Efficiency!S$43,\"n.a.\")","v":"n.a."},null,"km"]
[null,null,null,"Cold Ambient Test (-7°C) Energy Use",null,null,"Cold Ambient Test (-7°C) Driving Range"]
[null,null,null,"liquid fuel ",{"$f":"IF(Efficiency!P$19>0,Efficiency!P$19,\"n.a.\")","v":"n.a."},"l/100km",{"$f":"IF(AND(#REF!=\"YES\",Efficiency!P$44>0),Efficiency!P$44,\"n.a.\")","v":{"$error":"#REF!"}},null,"km"]
[null,null,null," gaseous fuel ",{"$f":"IF(Efficiency!V$19>0,Efficiency!V$19,\"n.a.\")","v":"n.a."},"kg/100km",{"$f":"IF(AND(#REF!=\"YES\",Efficiency!V$44>0),Efficiency!V$44,\"n.a.\")","v":{"$error":"#REF!"}},null,"km"]
[null,null,null,"electric energy",{"$f":"IF(Efficiency!S$19=0,\"n.a.\",Efficiency!S$19)","v":"n.a."},"kWh/100km",{"$f":"IF(AND(#REF!=\"YES\",Efficiency!S$44>0),Efficiency!S$44,\"n.a.\")","v":{"$error":"#REF!"}},null,"km"]
[]
[]
[]
[null,null,null,"DRIVING EXPERIENCE"]
[]
[null,null,null,{"$f":"IFERROR(IF(DX1P=\"Good\",Good,IF(DX1P=\"Adequate\",Adequate,IF(DX1P=\"Poor\",Poor,IF(DX1P=\"Not Applicable\",NotApplicable,\"\")))),\"\")","v":""},null,{"$f":"IF(DX2P=\"Good\",Good,IF(DX2P=\"Adequate\",Adequate,IF(DX2P=\"Poor\",Poor,IF(DX2P=\"Not Applicable\",NotApplicable,\"\"))))","v":{"$error":"#VALUE!"}},null,{"$f":"IF(DX3P=\"Good\",Good,IF(DX3P=\"Adequate\",Adequate,IF(DX3P=\"Poor\",Poor,IF(DX3P=\"Not Applicable\",NotApplicable,\"\"))))","v":{"$error":"#VALUE!"}}]
[null,null,null,"Consumption & Range\n",null,"Cold Winter Performance\n",null,"Charging Capability\n"]
[null,null,null,null,null,null,null,null,null,null,null,{"$error":"#VALUE!"}]
[null,null,null,null,null,null,null,null,null,null,null,{"$error":"#VALUE!"}]
[null,null,null,null,null,null,null,null,null,null,null,{"$error":"#VALUE!"}]
[null,null,null,null,null,null,null,null,null,null,null,{"$error":"#VALUE!"}]

{"sheet":"SPECS","index":1,"n_rows":53,"n_cols":21,"rows_kept":53,"cut":false,"hidden":false,"merged":[]}
["Brand",null,"CoC p.0.1. (e.g. Mercedes-Benz)",null,null,null,null,"v1.6.6",null,null,null,"Petrol (inc hybrids)",{"$f":"IF(ICE_Type=1,TRUE,FALSE)","v":false},5,"Rating Sheet Version","Euro 6b",1]
["Model",null,"CoC p.0.2.1. (e.g. V-Class)",null,null,null,null,null,null,null,null,"Diesel (inc. hybrids)",{"$f":"IF(ICE_Type=2,TRUE,FALSE)","v":false},true,"2023.2.0.8.6","Euro 6c"]
["Variant Name",null,"Model data (e.g. V250d, 9G-Tronic, Avantgarde)",null,null,null,null,null,null,null,null,"ICE - CNG - Mono",{"$f":"IF(ICE_Type=3,TRUE,FALSE)","v":false},null,"Protocols","Euro 6d-Temp"]
["Green NCAP Test Reference Number",null,"(e.g. 20-FOR-0023)",null,null,null,null,null,null,null,null,"ICE - CNG - Dual",{"$f":"IF(ICE_Type=4,TRUE,FALSE)","v":false},null,2022,"Euro 6d"]
["Child vehicle",null,"Yes/No"]
["Production Region","Europe",null,null,null,null,null,"SELECT"]
["Drivetrain",null,"CoC p.3. (e.g. RWD)",null,null,null,null,null,null,null,null,"Hydrogen",{"$f":"IF(ICE_Type=6,TRUE,FALSE)","v":false},null,null,"Euro AX"]
["Fuel Type",{"$f":"IF(Petrol,\"Petrol\",IF(Diesel,\"Diesel\",IF(E_85,\"Ethanol E85\",IF(CNG_Dual,\"CNG\",IF(CNG_Mono,\"CNG\",IF(Hydrogen,\"Hydrogen\",IF(Electric,\"Electric\")))))))","v":"Electric"},"Taken from Selector Choice",null,null,null,null,null,null,"Respect Green NCAP's definition of \"Hybrid\".",null,"Battery Electric",{"$f":"IF(ICE_Type=5,TRUE,FALSE)","v":true}]
["Primary fuel source",{"$f":"IF(Petrol,\"Petrol\",IF(Diesel,\"Diesel\",IF(E_85,\"Ethanol E85\",IF(CNG_Dual,\"CNG\",IF(CNG_Mono,\"CNG\",IF(Hydrogen,\"Hydrogen\",IF(Electric,\"Electric\")))))))","v":"Electric"},"Taken from Selector Choice",null,null,null,null,null,null,null,null,"Ethanol E85",{"$f":"IF(ICE_Type=7,TRUE,FALSE)","v":false},null,null,"Manual"]
["Secondary fuel source (if applicable)",null,null,null,null,null,null,null,null,null,null,null,null,null,null,"Automatic"]
["Fuel tank size liquid fuel [l]",null,"Tech data (e.g. 70 l)",null,null,null,null,null,null,null,null,"Hybrid",false,null,null,"CVT"]
["Fuel tank size gaseous fuel [kg]",null,"Tech data (e.g. 15 kg)"]
["Declared Battery Capacity (usable) [kWh]",null,"Tech data (e.g. 52 kWh)",null,null,null,null,null,null,null,null,null,null,null,null,"RWD"]
["Declared Battery Capacity (installed) [kWh]",null,"Tech data (e.g. 56 kWh)",null,null,null,null,null,null,null,null,null,null,null,null,"FWD"]
["Declared CO2 emissions (WLTP) [g/km]",null,"CoC p.49.4. (e.g. 132 g/km)",null,null,null,null,null,null,null,null,null,null,null,null,"AWD"]
["Declared Fuel Consumption (WLTP) [l(kg)/100km]",null,"CoC p.49.4. (e.g. 6.2 l/100km)",null,null,null,null,null,null,null,null,null,null,null,null,"4x4"]
["Declared Fuel Consumption 2nd fuel source (WLTP) [l(kg)/100km]",null,"CoC p.49.4. (e.g. 6.2 l/100km)"]
["Declared Electric Energy Consumption (for BEV) [kWh/100km]",null,"CoC p.49.4 (e.g. 19.5 kWh/100km)"]
["Declared Electric Range (for BEV) [km]",null,"CoC p.49.5 (e.g. 400 km)"]
["Declared Electric Range City (for BEV) [km]",null,"CoC p.49.5 (e.g. 480 km)",null,null,null,null,null,null,null,null,null,null,null,null,"Waste heat",null,null,null,"Europe"]
["Declared Electric Energy Consumption (for PHEV) [kWh/100km]",null,"CoC p.49.5 (e.g. 13.9 kWh/100km)",null,null,null,null,null,null,null,null,null,null,null,null,"PTC heater",null,null,null,"China"]
["Declared Electric Range (EAER, for PHEV) [km]",null,"CoC p.49.5 (e.g. 50 km)",null,null,null,null,null,null,null,null,null,null,null,null,"Heat pump",null,null,null,"Japan"]
["Declared Electric Range City (for PHEV) [km]",null,"CoC p.49.5 (e.g. 61 km)",null,null,null,null,null,null,null,null,null,null,null,null,"Waste heat & PTC heater",null,null,null,"South Korea"]
["Traction battery voltage [V]",null,"Tech data. Important for recuperation",null,null,null,null,null,null,null,null,null,null,null,null,"Waste heat & heat pump",null,null,null,"United States"]
["Heating concept",null,"Tech data",null,null,null,null,null,null,null,null,null,null,null,null,"Waste heat & PTC heater & heat pump",null,null,null,"United Kingdom"]
["Gearbox type",null,"CoC p.28. (e.g. automatic)",null,null,null,null,null,null,null,null,null,null,null,null,"PTC heater & heat pump",null,null,null,"Mexico"]
["Chassis Version",null,"CoC p.38. (check list H27:H33) check https://eur-lex.europa.eu/legal-content/EN/TXT/?uri=CELEX:32011R0678)",null,null,null,null,null,null,null,null,null,null,null,null,"Hight volage heater",null,null,null,"Turkey"]
["Number of doors",null,"CoC p.41. (e.g. 5 doors)",null,null,null,null,"AA","Saloon",null,null,null,null,null,null,"Waste heat & high voltage heater",null,null,null,"India"]
["VIN tested vehicle",null,"CoC p.0.10. (e.g. WDF44781313651756)",null,null,null,null,"AB","Hatchback",null,null,null,null,null,null,"Waste heat & high voltage heater & heat pump",null,null,null,"South Africa","Euro 6 EA"]
["Emissions class",null,"CoC p.47. (e.g. Euro 6d AP)",null,null,null,null,"AC","Station wagon",null,null,null,null,null,null,"High voltage heater & heat pump",null,null,null,"Vietnam","Euro 6 EB"]
["Engine code",null,"CoC p.21. (e.g. BS654T)",null,null,null,null,"AD","Coupe",null,null,null,null,null,null,null,null,null,null,null,"Euro 6 EC"]
["Engine capacity [cm3]",null,"CoC p.25. (e.g. 1950 cm3)",null,null,null,null,"AE","Convertible",null,null,null,null,null,null,null,null,null,null,null,"AX"]
["Engine/System Power [kW]",null,"CoC p.27. (e.g. 140 kW, for HEV/PHEV see tech data)",null,null,null,null,"AF","Multi-purpose vehicle",null,null,null,null,null,null,null,null,null,null,null,"Euro 6d AL"]
["Engine/System Torque [Nm]",null,"See tech data (e.g. 250 Nm)",null,null,null,null,"AG","Truck station wagon",null,null,null,null,null,null,null,null,null,null,null,"Euro 6d AM"]
["Tyre size (front and rear if different)",null,"For the actual vehicle (e.g. 245/45 255/30 R19)",null,null,null,null,null,null,null,null,null,null,null,null,null,null,null,null,null,"Euro 6d AN"]
["Test mass [kg]",null,"Green NCAP test mass",null,null,null,null,null,null,null,null,null,null,null,null,null,null,null,null,null,"Euro 6d AO"]
["Tyre Rolling Resistance Coefficient RRC [kg/tonne]",null,"CoC p.35, e.g. A, B",null,null,null,null,null,null,null,null,null,null,null,null,null,null,null,null,null,"Euro 6d AP"]
["Road load coefficient f0 [N]",null,"CoC p.47.1.3.0",null,null,null,null,null,null,null,null,null,null,null,null,null,null,null,null,null,"Euro 6d AQ"]
["Road load coefficient f1 [N/(km/h)]",null,"CoC p.47.1.3.1",null,null,null,null,null,null,null,null,null,null,null,null,null,null,null,null,null,"Euro 6d AE"]
["Road load coefficient f2 [N/(km/h)2]",null,"CoC p.47.1.3.2",null,null,null,null,null,null,null,null,null,null,null,null,null,null,null,null,null,"Euro 6d AJ"]
["Empty Vehicle Mass [kg] = CoC 13.2 - 75 kg",null,"Calculate: CoC p.13.2 - 75 kg (e.g. 1550 kg)",null,null,null,null,null,null,null,null,null,null,null,null,null,null,null,null,null,"Euro 6d AK"]
["Start of Production",null,"if available, DD/MM/YYYY, should be before \"End of Production\"",null,null,null,null,null,null,null,null,null,null,null,null,null,null,null,null,null,"Euro 6 AY"]
["End of Production",null,"if available, DD/MM/YYYY, should be after \"Start of Production\"",null,null,null,null,null,null,null,null,null,null,null,null,null,null,null,null,null,"Euro 6 AZ"]
[null,null,null,null,null,null,null,null,null,null,null,null,null,null,null,null,null,null,null,null,"Euro 6d-Temp AG"]
["Measured Recharged Electric Energy (BEV and PHEV, from grid) [kWh]",{"$f":"'TEST RESULTS'!AA5","v":0},"Don't enter here. Will be taken from Results AA4",null,null,null,null,null,null,null,null,null,null,null,null,null,null,null,null,null,"Euro 6d-Temp AH"]
["Measured Netto Battery Capacity (BEV and PHEV) [kWh]",{"$f":"'TEST RESULTS'!AB5","v":0},"Don't enter here. Will be taken from Results AB4",null,null,null,null,null,null,null,null,null,null,null,null,null,null,null,null,null,"Euro 6d-Temp AI"]
[null,null,null,null,null,null,null,null,null,null,null,null,null,null,null,null,null,null,null,null,"Euro 6d-Temp BG"]
[null,null,null,null,null,null,null,null,null,null,null,null,null,null,null,null,null,null,null,null,"Euro 6d-Temp BH"]
[null,null,null,null,null,null,null,null,null,null,null,null,null,null,null,null,null,null,null,null,"Euro 6d-Temp BI"]
[null,null,null,null,null,null,null,null,null,null,null,null,null,null,null,null,null,null,null,null,"Euro 6d-Temp CG"]
[null,null,null,null,null,null,null,null,null,null,null,null,null,null,null,null,null,null,null,null,"Euro 6d-Temp CH"]
[null,null,null,null,null,null,null,null,null,null,null,null,null,null,null,null,null,null,null,null,"Euro 6d-Temp CI"]
[null,null,null,null,null,null,null,null,null,null,null,null,null,null,null,null,null,null,null,null,"Euro 6d-Temp DG"]

{"sheet":"TEST RESULTS","index":2,"n_rows":43,"n_cols":30,"rows_kept":43,"cut":false,"hidden":false,"merged":[[29,0,40,0],[29,1,29,3],[31,1,35,1],[31,2,35,2],[36,1,40,1],[36,2,40,2],[2,0,16,0],[9,1,13,1],[4,1,8,1],[2,1,2,3],[14,1,16,1],[9,2,13,2],[14,2,14,3],[15,2,15,3],[16,2,16,3],[4,2,8,2]]}
[]
[]
[null,"MAIN RESULTS 1",null,null,"CO2\ntailpipe","CO2                RCB corr.","CO","NOx","NO","NO2","PN","PM","N2O","NH3","THC","CH4","Fuel Consumption","Energy Consumption from Grid","Fuel consumpt.","Energy consumpt.","Gas Consumption","Board Comp.\n fuel consumpt.","Board Comp.\n energy consumpt.","Board Comp.\ngas consumpt.","Driving Range\n(ICE mode)","Driving Range\n(electr. mode)","Measured Recharged Electric Energy (BEV and PHEV, from grid) ","Measured Net Battery Capacity","Efiiciency grid to battery output","Electr. energy consumpt. from battery"]
[null,null,null,null,"g/km","g/km","mg/km","mg/km","mg/km","mg/km","#/km","mg/km","mg/km","mg/km","mg/km","mg/km","l/100km","kWh/100km","g/s","Wh/s","kg/100km","l/100km","kWh/100km","kg/100km","km","km","kWh","kWh","-","kWh/100km"]
[null,"Laboratory Tests",null,"WLTP CoC Type Approval"]
[null,null,null,"WLTC+ Warm"]
[null,null,null,"WLTC+ CAT Cold (-7°C)"]
[null,null,null,"WLTC+ CAT Warm (-7°C)"]
[null,null,null,"BAB130 Motorway"]
[null,"On-Road Tests",null,"On-Road Drive"]
[null,null,null,"Short Urban Trip / 1st 8 km of On-Road Drive"]
[null,null,null,null,"g/s",null,"mg/s","mg/s","mg/s","mg/s","#/s",null,null,null,null,null,null,null,null,null,null,null,null,null,null,null,null,null,null,"Wh/s ↓"]
[null,null,null,"Congestion MAX value"]
[null,null,null,"Congestion AVG value"]
[null,"DPF Regene-ration",null,null,"g/km ↓","g/km ↓","mg/km ↓","mg/km ↓","mg/km ↓","mg/km ↓","#/km ↓","mg/km ↓","mg/km ↓","mg/km ↓","mg/km ↓","mg/km ↓"]
[null,null,"Insert name of test with particle filter regeneration occurance"]
[null,null,"Impact of regen. compared to the non-regenerating test [%]"]
[]
[]
[null,"Front wheel toe check",null,null,"1 means reference value or the middle of a reference range is within limit of 0.15°, 0 means outside of"]
[null,"Rear wheel toe check",null,null,"1 means reference value or the middle of a reference range is within limit of 0.15°, 0 means outside of"]
[null,"Accelerator response",null,null,"AVG pedal value of 1 and 2m/s2 accelerations, in %"]
[null,"Dust Filters",null,null,"2 means filters on both axles, 1 means filters on one axle, 0 means no filters"]
[null,"Brake Drums",null,null,"2 means drums on both axles, 1 means drums on one axle, 0 means no drums"]
[null,"Friction brake share WLTC+ Warm",null,null,"%, enter only for PEV"]
[]
[]
[]
[]
[null,"PHEV in Charge Depeleting Mode",null,null,"CO2\ntailpipe","CO2                RCB corr.","CO","NOx","NO","NO2","PN","PM","N2O","NH3","THC","CH4","Fuel Consumption","Energy Consumption from Grid","Fuel consumpt.","Energy consumpt.","Gas Consumption","Board Comp.\n fuel consumpt.","Board Comp.\n energy consumpt.","Board Comp.\ngas consumpt.","Driving Range\n(ICE mode)","Driving Range\n(electr. mode)","Driving Range\n(electr. mode)\nEAER","Driving range electr. Mode (Pure EV)",null,"Electr. energy consumpt. from battery"]
[null,null,null,null,"g/km","g/km","mg/km","mg/km","mg/km","mg/km","#/km","mg/km","mg/km","mg/km","mg/km","mg/km","l/100km","kWh/100km","g/s","Wh/s","kg/100km","l/100km","kWh/100km","kg/100km","km","km","km","km",null,"kWh/100km"]
[null,"Laboratory Tests"]
[null,null,null,"WLTC+ Cold CD Sequence"]
[null,null,null,"WLTC+ CAT Cold (-7°C) CD"]
[]
[]
[null,"On-Road Tests",null,"On-Road Drive CD"]
[null,null,null,"Short Urban Trip CD / 1st 8 km of On-Road Drive CD"]
[null,null,null,null,null,null,null,null,null,null,null,null,null,null,null,null,null,null,null,null,null,null,null,null,null,null,null,null,null,"Wh/s ↓"]
[]
[]
[]
[null,null,null,"EAER",{"$f":"AA33","v":0}]

{"sheet":"LCA RESULTS","index":3,"n_rows":31,"n_cols":20,"rows_kept":31,"cut":false,"hidden":false,"merged":[[4,1,4,2],[4,7,4,8],[4,4,4,5]]}
[]
[null,null,null,null,null,null,null,"Replacement of generic LCA data?","No",null,null,null,null,null,null,null,null,null,null,"Yes"]
[null,"Assumed Lifetime Mileage [km]: ",{"$f":"'LIMITS Greenhouse'!C25","v":240000},null,null,null,null,"Correction Factor:",{"$f":"IF(SPECS!B6=\"\",1,IF(OR(SPECS!B6=\"Europe\",SPECS!B6=\"United Kingdom\",SPECS!B6=\"Turkey\"),1.2,IF(OR(SPECS!B6=\"United States\",SPECS!B6=\"Mexico\"),1.4,IF(OR(SPECS!B6=\"China\",SPECS!B6=\"Japan\",SPECS!B6=\"South Korea\",SPECS!B6=\"Vietnam\"),1.5,IF(SPECS!B6=\"India\",1.6,IF(SPECS!B6=\"South Africa\",1.7))))))","v":1.2},null,null,null,null,null,null,null,null,null,null,"No"]
[]
[null,"LCA Pollutants",null,null,"LCA Energy Demand",null,null,"LCA Greenhouse Gases"]
[]
[null,"Production","mg/km",null,"Phase","kWh/km",null,"Production total","g/km"]
[null,"NMVOC",null,null,"Production Total",null,null,"N2O"]
[null,"NOx",null,null,"Production Battery",null,null,"CH4"]
[null,"NH3",null,null,"Production Fuel Cell",null,null,"CO2-eq",{"$f":"I3*J10","v":0},null,"uncorrected generic value"]
[null,"CO",null,null,"Maintenance",null,null,"Production Battery",{"$f":"I3*J11","v":0},null,"uncorrected generic value"]
[null,"PM2.5",null,null,"End of Life",null,null,"Production Fuel Cell"]
[null,"SOx"]
[null,null,null,null,null,"%"]
[null,"Maintenance","mg/km",null,"fossil energy share",null,null,"Maintenance","g/km"]
[null,"NMVOC",null,null,"renewable energy share",null,null,"N2O"]
[null,"NOx",null,null,"other energy share",null,null,"CH4"]
[null,"NH3",null,null,null,null,null,"CO2-eq"]
[null,"CO"]
[null,"PM2.5"]
[null,"SOx"]
[]
[null,"End of Life","mg/km",null,null,null,null,"End of Life","g/km"]
[null,"NMVOC",null,null,null,null,null,"N2O"]
[null,"NOx",null,null,null,null,null,"CH4"]
[null,"NH3",null,null,null,null,null,"CO2-eq",{"$f":"I3*J26","v":0},null,"uncorrected generic value"]
[null,"CO"]
[null,"PM2.5"]
[null,"SOx",null,null,null,null,null,null,"gCO2-eq./km"]
[null,null,null,null,null,null,null,"Best Case (consumption) Total GHG",{"$f":"J30+($I$10-$J$10)+($I$26-$J$26)","v":0},null,"uncorrected generic value"]
[null,null,null,null,null,null,null,"Worst Case (consumption) Total GHG",{"$f":"J31+($I$10-$J$10)+($I$26-$J$26)","v":0},null,"uncorrected generic value"]

{"sheet":"Driving Experience Input","index":4,"n_rows":109,"n_cols":11,"rows_kept":109,"cut":false,"hidden":false,"merged":[[1,0,44,0],[52,6,52,7],[45,0,77,0],[78,0,109,0]]}
[null,"ITEM","Applicability",null,"Results"]
["Consumption and Range",null,null,null,"will be filled by secretariat"]
[null,"Estimated Actual Consumption","ICE, HEV, BEV",null," l/100km or kWh/100km","Urban","Rural","Highway","Mixed"]
[null,null,null,null,"Warm weather"]
[null,null,null,null,"Cold Winter"]
[]
[]
[null,null,"PHEV",null,null,"Urban","Rural","Highway","Mixed"]
[null,null,null,"l/100km","Warm Weather - Fuel Mode"]
[null,null,null,"l/100km","Cold Winter - Fuel Mode"]
[null,null,null,"kWh/100km","Warm Weather - Electric Mode*"]
[null,null,null,"kWh/100km","Cold Winter - Electric Mode+"]
[null,null,null,null,"* measured value in first cyle of warm WLTC+ charge depleting sequence"]
[null,null,null,null,"+ measured values in cold start -7°C Cold Ambient Test "]
[]
[null,null,null,null,null,"Fuel Consumption l/100km","Electricity Use kWh/100km"]
[null,null,null,null,"Warm Weather Combined Mode*",null,null,"[e.g. 3.6 l/100km + 15.3 kWh/100km *"]
[null,null,null,null,"* measured values in warm WLTC+ charge depleting sequence"]
[]
[null,null,null,null,"will be filled by secretariat"]
[null,"Driving Range","BEV",null,"km","Urban","Rural","Highway","Mixed"]
[null,null,null,null,"Warm weather",{"$f":"'TEST RESULTS'!$AA$5/'Driving Experience Input'!F4*100","v":{"$error":"#DIV/0!"}},{"$f":"'TEST RESULTS'!$AA$5/'Driving Experience Input'!G4*100","v":{"$error":"#DIV/0!"}},{"$f":"'TEST RESULTS'!$AA$5/'Driving Experience Input'!H4*100","v":{"$error":"#DIV/0!"}},{"$f":"'TEST RESULTS'!$AA$5/'Driving Experience Input'!I4*100","v":{"$error":"#DIV/0!"}}]
[null,null,null,null,"Cold Winter",{"$f":"'TEST RESULTS'!$AA$5/'Driving Experience Input'!F5*100","v":{"$error":"#DIV/0!"}},{"$f":"'TEST RESULTS'!$AA$5/'Driving Experience Input'!G5*100","v":{"$error":"#DIV/0!"}},{"$f":"'TEST RESULTS'!$AA$5/'Driving Experience Input'!H5*100","v":{"$error":"#DIV/0!"}},{"$f":"'TEST RESULTS'!$AA$5/'Driving Experience Input'!I5*100","v":{"$error":"#DIV/0!"}}]
[]
[]
[null,null,"PHEV",null,"Fully Charged"]
[null,null,null,null,"km","Pure electric range","Combined Electric Range"]
[null,null,null,null,"Warm weather * "]
[null,null,null,null,"Cold Winter +",null,"n.a."]
[null,null,null,null,"* measured values in warm WLTC+ charge depleting sequence"]
[null,null,null,null,"+ measured values in WLTC+ CAT Cold in CD mode, if >23 km, enter \">23\""]
[]
[]
[null,"Accuracy of Display","BEV, HEV",null,null,"Fuel Consumption","Electr. energy consumpt. from battery","Board Comp.\n fuel consumpt.","Board Comp.\n energy consumpt."]
[null,null,"ICE, PHEV",null,null,"l/100km","kWh/100km","l/100km","kWh/100km"]
[null,null,null,null,"WLTC+ Warm",{"$f":"'TEST RESULTS'!Q6","v":0},{"$f":"'TEST RESULTS'!AD6","v":0},{"$f":"'TEST RESULTS'!V6","v":0},{"$f":"'TEST RESULTS'!W6","v":0}]
[null,null,null,null,"WLTC+ CAT Cold (-7°C)",{"$f":"'TEST RESULTS'!Q7","v":0},{"$f":"'TEST RESULTS'!AD7","v":0},{"$f":"'TEST RESULTS'!V7","v":0},{"$f":"'TEST RESULTS'!W7","v":0}]
[null,null,null,null,"WLTC+ CAT Warm (-7°C)",{"$f":"'TEST RESULTS'!Q8","v":0},{"$f":"'TEST RESULTS'!AD8","v":0},{"$f":"'TEST RESULTS'!V8","v":0},{"$f":"'TEST RESULTS'!W8","v":0}]
[null,null,null,null,"BAB130 Motorway",{"$f":"'TEST RESULTS'!Q9","v":0},{"$f":"'TEST RESULTS'!AD9","v":0},{"$f":"'TEST RESULTS'!V9","v":0},{"$f":"'TEST RESULTS'!W9","v":0}]
[null,null,null,null,"On-Road Drive",{"$f":"'TEST RESULTS'!Q10","v":0},{"$f":"'TEST RESULTS'!AD10","v":0},{"$f":"'TEST RESULTS'!V10","v":0},{"$f":"'TEST RESULTS'!W10","v":0}]
[null,null,null,null,"PHEV: WLTC+ Cold CD Sequence",{"$f":"'TEST RESULTS'!Q33","v":0},{"$f":"'TEST RESULTS'!AD33","v":0},{"$f":"'TEST RESULTS'!V33","v":0},{"$f":"'TEST RESULTS'!W33","v":0}]
[null,null,null,null,"PHEV: WLTC+ CAT Cold (-7°C) CD",{"$f":"'TEST RESULTS'!Q34","v":0},{"$f":"'TEST RESULTS'!AD34","v":0},{"$f":"'TEST RESULTS'!V34","v":0},{"$f":"'TEST RESULTS'!W34","v":0}]
[null,null,null,null,"PHEV: On-Road Drive CD",{"$f":"'TEST RESULTS'!Q37","v":0},{"$f":"'TEST RESULTS'!AD37","v":0},{"$f":"'TEST RESULTS'!V37","v":0},{"$f":"'TEST RESULTS'!W37","v":0}]
[]
[]
["Cold Winter Performance"]
[null,null,null,null,null,"km"]
[null,"Driving Range Benefit of Pre-Warming","BEV",null,"Urban Trip"]
[null,null,null,null,"Mixed Trip",{"$f":"'TEST RESULTS'!Z8-'TEST RESULTS'!Z7","v":0}]
[]
[]
[null,"Cabin Heating","HEV, BEV, PHEV",null,"Time to reach 16°C [s]","Front","Rear Left","Rear Right"]
[null,null,null,null,"Head Area"]
[null,null,null,null,"Footwell"]
[]
[null,null,null,null,"Comment (use [rear left] and [rear right] to link the values) -- Always place 'seconds' (=unit) after the [value] so that four-digit numbers are displayed with a thousands separator. This automatic formatting only applies when the value is followed by the unit e.g. [rear left] seconds"]
[null,null,null,null,"Replace contents of this cell. The rear footwell area left reached the temperature in [rear left] seconds and in the right in [rear right] seconds."]
[]
[]
[]
[]
[null,"Additional Heating Functions","HEV, BEV, PHEV",null,null," \"Yes\" or  \"No\"","Fitment"]
[null,null,null,null,"Heat pump",null,null,null,null,"Available for other versions"]
[null,null,null,null,"Seat heating front",null,null,null,null,"Optional"]
[null,null,null,null,"Seat heating rear",null,null,null,null,"Optional for the tested version"]
[null,null,null,null,"Steering wheel heating",null,null,null,null,"Regionally Dependent"]
[null,null,null,null,"Scheduled or remotely activated pre-heating of seats",null,null,null,null,"Standard"]
[null,null,null,null,"Scheduled or remotely activated pre-heating of steering wheel",null,null,null,null,"Standard for the tested version"]
[null,null,null,null,"Scheduled or remotely activated cabin air pre-heating",null,null,null,null,"Unknown"]
[null,null,null,null,"Smart cabin heating management*"]
[null,null,null,null,"*A strategy to save enregy by providing heat only to occupants and not directing heat flow to not occupied seats."]
[]
[]
[null,"Cabin Thermal Insulation","HEV, BEV, PHEV",null,"Average Temperature reading of the 5 sensors after specified time"]
[null,null,null,null,"initial temperature [°C]","after 5 min [°C]","after 15 min [°C]","after 30 min [°C]","Drop after 30 min [°C]"]
[null,null,null,null,18,null,null,null,{"$f":"E76-H76","v":18}]
[]
[]
["Charging Capability"]
[null,"Pre-Charge Battery Conditioning ","BEV",null," \"Yes\" or  \"No\"","Manual","Automatic"]
[null,null,null,null,"Battery Pre-Conditioning"]
[]
[]
[]
[]
[null,"Fast Charging Performance","BEV",null,"All values refer to an observation range of 10-80% SoC"]
[null,null,null,null,"Average percentage of battery charged per minute in the range 10-80% SoC [%/min]"]
[null,null,null,null,"Maximum Charging Power [kW]"]
[null,null,null,null,"Average Charging Power [kW]"]
[null,null,null,null,"Charging time 10-80% Soc [min]"]
[]
[]
[]
[null,"Home Charging Efficiency","BEV",null,null,null,"Fitment"]
[null,null,null,null,"Home Charging Efficiency* [%]",{"$f":"'TEST RESULTS'!AC5","v":0},"-"]
[null,null,null,null,"Maximum Home Charging Power + [kW]"]
[null,null,null,null,null,"*grid-to-battery-output-efficiency"]
[null,null,null,null,null,"+ maximum available from tech specs of the tested vehicle"]
[]
[]
[null,null,null,null,null,null,"Fitment"]
[null,"Bidirectional Charging","BEV",null,"Power Output [kW]"]
[null,null,null,null,"Compatibility",null,null,null,null,"V2L","The inlet or the interior socket can provide AC power through an electrical domestic socket"]
[null,null,null,null,"Grid Integration",null,null,null,null,"V2H","The vehicle can provide power to a household through a charger"]
[null,null,null,null,"Limitations",null,null,"leave empty if no specific comment needed",null,"V2G","The vehicle can return power to the grid"]
[]
[null,null,null,null,null,null,null,null,null,"Basic","No integration (just a socket for a stand-alone load). No scheduling option. Very basic visualisation."]
[null,null,null,null,null,null,null,null,null,"Limited","Limited: Energy management system through the vehicle app (timers availability and power monitoring). Dedicated interface in the car, with mobile app monitoring."]
[null,null,null,null,null,null,null,null,null,"Advanced","Advanced settings available such as tariff and consumption control, linked to distributor energy prices. Advanced real time energy flow visualization. AI powered suggestions for optimal usage."]

{"sheet":"Fast charging","index":5,"n_rows":9,"n_cols":11,"rows_kept":9,"cut":false,"hidden":false,"merged":[]}
["SoC [%]","Time [mm:ss]","Power [kW]","Recharged range with consumption A [km]","Recharged range with consumption B [km]","Recharged range with consumption C [km]",null,null,null,"Test conusmption used","kWh/100km"]
[null,null,null,null,null,null,{"$f":"TEXT(INT(B2/60), \"00\") & \":\" & TEXT(MOD(B2, 60), \"00\")","v":"00:00"},null,"A","WLTC+ Warm Mixed"]
[null,null,null,null,null,null,null,null,"B","WLTC+ Warm Highway"]
[null,null,null,null,null,null,null,null,"C","WLTC+ CAT Warm Highway"]
[]
[null,null,null,null,null,null,null,null,"Recharged Range in 10 min after 10% SoC"]
[null,null,null,null,null,null,null,null,"Consumption A",null,"km"]
[null,null,null,null,null,null,null,null,"Consumption B",null,"km"]
[null,null,null,null,null,null,null,null,"Consumption C",null,"km"]

{"sheet":"Clean Air","index":6,"n_rows":134,"n_cols":17,"rows_kept":134,"cut":false,"hidden":false,"merged":[[23,21,23,22],[27,21,27,22],[28,21,28,22],[78,2,78,3],[78,10,78,11],[78,12,79,12],[32,21,32,22],[31,21,31,22],[29,21,29,22],[30,21,30,22],[26,21,26,22],[2,12,4,12],[13,21,14,22],[15,18,15,19],[13,18,14,20],[15,21,15,22],[13,12,15,12],[4,2,4,3],[2,1,12,1],[2,2,3,3],[2,5,3,9],[13,10,14,11],[13,5,14,9],[13,2,14,3],[2,10,3,11],[13,1,104,1],[94,2,95,3],[94,5,95,9],[105,12,107,12],[107,2,107,3],[105,1,115,1],[105,2,106,3],[15,2,15,3],[104,2,104,4],[94,10,95,11],[94,12,96,12],[96,2,96,3],[85,2,85,3],[85,10,85,11],[85,12,86,12],[140,1,143,1],[144,1,146,1],[105,5,106,9],[105,10,106,11],[148,1,156,1],[22,21,22,22],[17,21,17,22],[19,21,19,22],[20,21,20,22],[21,21,21,22],[18,21,18,22]]}
[]
[]
[null,"PRODUCTION",null,null,null,"LCA Results"]
[]
[null,null,null,null,null,null,"LCA Value","Localization Factor","Total"]
[null,null,null,"max points"]
[null,null,null,"NMVOC","mg/km",null,{"$f":"'LCA RESULTS'!C8","v":0},1,{"$f":"G7*H7","v":0},null,null,null,null,"Will have upper, lower LCA limits for all pollutants"]
[null,null,null,"NOx (NO and NO2)","mg/km",null,{"$f":"'LCA RESULTS'!C9","v":0},1,0]
[null,null,null,"NH3","mg/km",null,{"$f":"'LCA RESULTS'!C10","v":0},1,0]
[null,null,null,"CO","mg/km",null,{"$f":"'LCA RESULTS'!C11","v":0},1,0]
[null,null,null,"PM2.5","mg/km",null,{"$f":"'LCA RESULTS'!C12","v":0},1,0]
[null,null,null,"SOx","mg/km",null,{"$f":"'LCA RESULTS'!C13","v":0},1,0]
[null,null,"total"]
[null,"USAGE","Exhaust Testing",null,null,"Test Results",null,null,null,null,"Thresholds",null,"Max score"]
[]
[null,null,null,null,null,"Tailpipe","Upstream","Localization Factor","Total","Points","Lower","Upper",null,"Change name from 'Localization' to something else.  In CA, it is a factor related to how local the energy production is"]
[null,null,null,null,null,"(from test results)",null,1,null,null,null,null,null,"with GHG, for example, the factor would be more related to data quality"]
[null,null,"WLTP CoC Type Approval","max points",{"$f":"SUM(M19:M24)","v":8}]
[null,null,null,"THC","mg/km",{"$f":"(WLTP_Cold_TA THC)","v":0},{"$f":"Efficiency!$F$10/100*'LIMITS Clean Air'!$X$5","v":0},{"$f":"H8","v":1},{"$f":"G19*H19+F19","v":0},{"$f":"Sliding_Scale(F19,K19,L19,M19,0,Slide_Type)","v":1},{"$f":"'LIMITS Clean Air'!$C$20","v":0.5},{"$f":"'LIMITS Clean Air'!$C$6","v":68},1,"Do we have thresholds on tailpipe and on LCA (localization) separately"]
[null,null,null,"NOx","mg/km",{"$f":"(WLTP_Cold_TA NOx)","v":0},{"$f":"Efficiency!$F$10/100*'LIMITS Clean Air'!$X$6","v":0},{"$f":"H8","v":1},0,{"$f":"Sliding_Scale(F20,K20,L20,M20,0,Slide_Type)","v":3},{"$f":"'LIMITS Clean Air'!$C$21","v":0.5},{"$f":"'LIMITS Clean Air'!$C$7","v":60},3]
[null,null,null,"NH3","mg/km",{"$f":"(WLTP_Cold_TA NH_3)","v":0},{"$f":"Efficiency!$F$10/100*'LIMITS Clean Air'!$X$8","v":0},{"$f":"H8","v":1},0,{"$f":"Sliding_Scale(F21,K21,L21,M21,0,Slide_Type)","v":0},{"$f":"'LIMITS Clean Air'!$C$23","v":0.1},{"$f":"'LIMITS Clean Air'!$C$9","v":10},0]
[null,null,null,"CO","mg/km",{"$f":"(WLTP_Cold_TA CO)","v":0},{"$f":"Efficiency!$F$10/100*'LIMITS Clean Air'!$X$9","v":0},{"$f":"H8","v":1},0,{"$f":"Sliding_Scale(F22,K22,L22,M22,0,Slide_Type)","v":1},{"$f":"'LIMITS Clean Air'!$C$24","v":5},{"$f":"'LIMITS Clean Air'!$C$10","v":500},1]
[null,null,null,"PM","mg/km",{"$f":"(WLTP_Cold_TA PM)","v":0},{"$f":"Efficiency!$F$10/100*'LIMITS Clean Air'!$X$10","v":0},1,0,{"$f":"Sliding_Scale(F23,K23,L23,M23,0,Slide_Type)","v":1},0,{"$f":"'LIMITS Clean Air'!C11","v":4.5},1]
[null,null,{"$f":"IF(I24=0,0,LOG10(I24))","v":0},"PN23","#/km",{"$f":"(WLTP_Cold_TA PN)","v":0},{"$f":"Efficiency!$F$10/100*'LIMITS Clean Air'!$X$11","v":0},{"$f":"H8","v":1},0,{"$f":"Sliding_Scale(C24,K25,L25,M24,0,Slide_Type)","v":2},{"$f":"'LIMITS Clean Air'!$C$26","v":100000000},{"$f":"'LIMITS Clean Air'!$C$12","v":600000000000},2,"This will come from the energy consumption multiplied by a factor to be provided to us by Joaennum"]
[null,null,null,"SOx","mg/km",null,{"$f":"Efficiency!$F$10/100*'LIMITS Clean Air'!$X$12","v":0},1,0,null,{"$f":"LOG10(K24)","v":8},{"$f":"LOG10(L24)","v":11.778151250383644}]
[null,null,"total",null,null,null,null,null,null,{"$f":"IF(OR(F19:F20>'LIMITS Clean Air'!$D$6:$D$7,F22:F24>'LIMITS Clean Air'!$D$10:$D$12),0,MAX(SUM('Clean Air'!J19:J24),0))","v":8},null,null,{"$f":"SUM(M19:M24)","v":8},"Need to make sure use correct units - mg/km.  Energy is often quoted per 100km so be careful"]
[null,null,"WLTC + Warm","max points",{"$f":"SUM(M28:M33)","v":10}]
[null,null,null,"NMHC","mg/km",{"$f":"(WLTP_Warm THC)-(WLTP_Warm CH_4)","v":0},{"$f":"Efficiency!$F$11/100*'LIMITS Clean Air'!$X$5","v":0},{"$f":"H17","v":1},{"$f":"G28*H28+F28","v":0},{"$f":"Sliding_Scale(F28,K28,L28,M28,0,Slide_Type)","v":1},{"$f":"'LIMITS Clean Air'!$C$20","v":0.5},{"$f":"'LIMITS Clean Air'!$C$6","v":68},1,"Do we have thresholds on tailpipe and on LCA (localization) separately"]
[null,null,null,"NOx","mg/km",{"$f":"(WLTP_Warm NOx)","v":0},{"$f":"Efficiency!$F$11/100*'LIMITS Clean Air'!$X$6","v":0},{"$f":"H17","v":1},0,{"$f":"Sliding_Scale(F29,K29,L29,M29,0,Slide_Type)","v":3},{"$f":"'LIMITS Clean Air'!$C$21","v":0.5},{"$f":"'LIMITS Clean Air'!$C$7","v":60},3]
[null,null,null,"NH3","mg/km",{"$f":"(WLTP_Warm NH_3)","v":0},{"$f":"Efficiency!$F$11/100*'LIMITS Clean Air'!$X$8","v":0},{"$f":"H17","v":1},0,{"$f":"Sliding_Scale(F30,K30,L30,M30,0,Slide_Type)","v":1},{"$f":"'LIMITS Clean Air'!$C$23","v":0.1},{"$f":"'LIMITS Clean Air'!$C$9","v":10},1]
[null,null,null,"CO","mg/km",{"$f":"(WLTP_Warm CO)","v":0},{"$f":"Efficiency!$F$11/100*'LIMITS Clean Air'!$X$9","v":0},{"$f":"H17","v":1},0,{"$f":"Sliding_Scale(F31,K31,L31,M31,0,Slide_Type)","v":1},{"$f":"'LIMITS Clean Air'!$C$24","v":5},{"$f":"'LIMITS Clean Air'!$C$10","v":500},1]
[null,null,null,"PM","mg/km",{"$f":"(WLTP_Warm PM)","v":0},{"$f":"Efficiency!$F$11/100*'LIMITS Clean Air'!$X$10","v":0},1,0,{"$f":"Sliding_Scale(F32,K32,L32,M32,0,Slide_Type)","v":1},0,{"$f":"'LIMITS Clean Air'!C11","v":4.5},1]
[null,null,{"$f":"IF(I33=0,0,LOG10(I33))","v":0},"PN10","#/km",{"$f":"(WLTP_Warm PN)","v":0},{"$f":"Efficiency!$F$11/100*'LIMITS Clean Air'!$X$11","v":0},{"$f":"H17","v":1},0,{"$f":"Sliding_Scale(C33,K34,L34,M33,0,Slide_Type)","v":3},{"$f":"'LIMITS Clean Air'!$C$26","v":100000000},{"$f":"'LIMITS Clean Air'!$C$12","v":600000000000},3,"This will come from the energy consumption multiplied by a factor to be provided to us by Joaennum"]
[null,null,null,"SOx","mg/km",null,{"$f":"Efficiency!$F$11/100*'LIMITS Clean Air'!$X$12","v":0},1,0,null,{"$f":"LOG10(K33)","v":8},{"$f":"LOG10(L33)","v":11.778151250383644}]
[null,null,"total",null,null,null,null,null,null,{"$f":"IF(OR(F28:F29>'LIMITS Clean Air'!$D$6:$D$7,F31:F33>'LIMITS Clean Air'!$D$10:$D$12),0,MAX(SUM('Clean Air'!J28:J33),0))","v":10},null,null,{"$f":"SUM(M28:M33)","v":10},"Need to make sure use correct units - mg/km.  Energy is often quoted per 100km so be careful"]
[null,null,"WLTC+ CAT Cold","max points",{"$f":"SUM(M37:M42)","v":10}]
[null,null,null,"NMHC","mg/km",{"$f":"(WLTP_CAT1 THC)-(WLTP_CAT1 CH_4)","v":0},{"$f":"Efficiency!$F$12/100*'LIMITS Clean Air'!$X$5","v":0},{"$f":"H17","v":1},{"$f":"G37*H37+F37","v":0},{"$f":"Sliding_Scale(F37,K37,L37,M37,0,Slide_Type)","v":1},{"$f":"'LIMITS Clean Air'!$C$20","v":0.5},{"$f":"'LIMITS Clean Air'!$K$6","v":89.76},1]
[null,null,null,"NOx","mg/km",{"$f":"(WLTP_CAT1 NOx)","v":0},{"$f":"Efficiency!$F$12/100*'LIMITS Clean Air'!$X$6","v":0},{"$f":"H17","v":1},0,{"$f":"Sliding_Scale(F38,K38,L38,M38,0,Slide_Type)","v":3},{"$f":"'LIMITS Clean Air'!$C$21","v":0.5},{"$f":"'LIMITS Clean Air'!$K$7","v":79.2},3]
[null,null,null,"NH3","mg/km",{"$f":"(WLTP_CAT1 NH_3)","v":0},{"$f":"Efficiency!$F$12/100*'LIMITS Clean Air'!$X$8","v":0},{"$f":"H17","v":1},0,{"$f":"Sliding_Scale(F39,K39,L39,M39,0,Slide_Type)","v":1},{"$f":"'LIMITS Clean Air'!$C$23","v":0.1},{"$f":"'LIMITS Clean Air'!$K$9","v":13.200000000000001},1]
[null,null,null,"CO","mg/km",{"$f":"(WLTP_CAT1 CO)","v":0},{"$f":"Efficiency!$F$12/100*'LIMITS Clean Air'!$X$9","v":0},{"$f":"H17","v":1},0,{"$f":"Sliding_Scale(F40,K40,L40,M40,0,Slide_Type)","v":1},{"$f":"'LIMITS Clean Air'!$C$24","v":5},{"$f":"'LIMITS Clean Air'!$K$10","v":660},1]
[null,null,null,"PM","mg/km",{"$f":"(WLTP_CAT1 PM)","v":0},{"$f":"Efficiency!$F$12/100*'LIMITS Clean Air'!$X$10","v":0},1,0,{"$f":"Sliding_Scale(F41,K41,L41,M41,0,Slide_Type)","v":1},0,{"$f":"'LIMITS Clean Air'!K11","v":5.94},1]
[null,null,{"$f":"IF(I42=0,0,LOG10(I42))","v":0},"PN10","#/km",{"$f":"(WLTP_CAT1 PN)","v":0},{"$f":"Efficiency!$F$12/100*'LIMITS Clean Air'!$X$11","v":0},{"$f":"H17","v":1},0,{"$f":"Sliding_Scale(C42,K43,L43,M42,0,Slide_Type)","v":3},{"$f":"'LIMITS Clean Air'!$C$26","v":100000000},{"$f":"'LIMITS Clean Air'!$K$12","v":792000000000},3]
[null,null,null,"SOx","mg/km",null,{"$f":"Efficiency!$F$12/100*'LIMITS Clean Air'!$X$12","v":0},1,0,null,{"$f":"LOG10(K42)","v":8},{"$f":"LOG10(L42)","v":11.898725181589494}]
[null,null,"total",null,null,null,null,null,null,{"$f":"IF(OR(F37:F38>'LIMITS Clean Air'!$L$6:$L$7,F40:F42>'LIMITS Clean Air'!$L$10:$L$12),0,MAX(SUM('Clean Air'!J37:J42),0))","v":10},null,null,{"$f":"SUM(M37:M42)","v":10}]
[null,null,"WLTC+ CAT Warm","max points",{"$f":"SUM(M46:M51)","v":10}]
[null,null,null,"NMHC","mg/km",{"$f":"(WLTP_CAT2 THC)-(WLTP_CAT2 CH_4)","v":0},{"$f":"Efficiency!$F$13/100*'LIMITS Clean Air'!$X$5","v":0},{"$f":"H17","v":1},{"$f":"G46*H46+F46","v":0},{"$f":"Sliding_Scale(F46,K46,L46,M46,0,Slide_Type)","v":1},{"$f":"'LIMITS Clean Air'!$K$20","v":0.5},{"$f":"'LIMITS Clean Air'!$C$6","v":68},1]
[null,null,null,"NOx ","mg/km",{"$f":"(WLTP_CAT2 NOx)","v":0},{"$f":"Efficiency!$F$13/100*'LIMITS Clean Air'!$X$6","v":0},{"$f":"H17","v":1},0,{"$f":"Sliding_Scale(F47,K47,L47,M47,0,Slide_Type)","v":3},{"$f":"'LIMITS Clean Air'!$K$21","v":0.5},{"$f":"'LIMITS Clean Air'!$C$7","v":60},3]
[null,null,null,"NH3","mg/km",{"$f":"(WLTP_CAT2 NH_3)","v":0},{"$f":"Efficiency!$F$13/100*'LIMITS Clean Air'!$X$8","v":0},{"$f":"H17","v":1},0,{"$f":"Sliding_Scale(F48,K48,L48,M48,0,Slide_Type)","v":1},{"$f":"'LIMITS Clean Air'!K23","v":0.1},{"$f":"'LIMITS Clean Air'!$C$9","v":10},1]
[null,null,null,"CO","mg/km",{"$f":"(WLTP_CAT2 CO)","v":0},{"$f":"Efficiency!$F$13/100*'LIMITS Clean Air'!$X$9","v":0},{"$f":"H17","v":1},0,{"$f":"Sliding_Scale(F49,K49,L49,M49,0,Slide_Type)","v":1},{"$f":"'LIMITS Clean Air'!$K$24","v":5},{"$f":"'LIMITS Clean Air'!$C$10","v":500},1]
[null,null,null,"PM","mg/km",{"$f":"(WLTP_CAT2 PM)","v":0},{"$f":"Efficiency!$F$13/100*'LIMITS Clean Air'!$X$10","v":0},1,0,{"$f":"Sliding_Scale(F50,K50,L50,M50,0,Slide_Type)","v":1},0,{"$f":"'LIMITS Clean Air'!C11","v":4.5},1]
[null,null,{"$f":"IF(I51=0,0,LOG10(I51))","v":0},"PN10","#/km",{"$f":"(WLTP_CAT2 PN)","v":0},{"$f":"Efficiency!$F$13/100*'LIMITS Clean Air'!$X$11","v":0},{"$f":"H17","v":1},0,{"$f":"Sliding_Scale(C51,K52,L52,M51,0,Slide_Type)","v":3},{"$f":"'LIMITS Clean Air'!$K$26","v":100000000},{"$f":"'LIMITS Clean Air'!$C$12","v":600000000000},3]
[null,null,null,"SOx","mg/km",null,{"$f":"Efficiency!$F$13/100*'LIMITS Clean Air'!$X$12","v":0},1,0,null,{"$f":"LOG10(K51)","v":8},{"$f":"LOG10(L51)","v":11.778151250383644}]
[null,null,"total",null,null,null,null,null,null,{"$f":"IF(OR(F46:F47>'LIMITS Clean Air'!$D$6:$D$7,F49:F51>'LIMITS Clean Air'!$D$10:$D$12),0,MAX(SUM('Clean Air'!J46:J51),0))","v":10},null,null,{"$f":"SUM(M46:M51)","v":10}]
[null,null,"BAB130 Motorway","max points",{"$f":"SUM(M55:M60)","v":10}]
[null,null,null,"NMHC","mg/km",{"$f":"(BAB_130 THC)-(BAB_130 CH_4)","v":0},{"$f":"Efficiency!$F$14/100*'LIMITS Clean Air'!$X$5","v":0},{"$f":"H17","v":1},{"$f":"G55*H55+F55","v":0},{"$f":"Sliding_Scale(F55,K55,L55,M55,0,Slide_Type)","v":1},{"$f":"'LIMITS Clean Air'!$K$20","v":0.5},{"$f":"'LIMITS Clean Air'!$C$6","v":68},1]
[null,null,null,"NOx ","mg/km",{"$f":"(BAB_130 NOx)","v":0},{"$f":"Efficiency!$F$14/100*'LIMITS Clean Air'!$X$6","v":0},{"$f":"H17","v":1},0,{"$f":"Sliding_Scale(F56,K56,L56,M56,0,Slide_Type)","v":3},{"$f":"'LIMITS Clean Air'!$K$21","v":0.5},{"$f":"'LIMITS Clean Air'!$C$7","v":60},3]
[null,null,null,"NH3","mg/km",{"$f":"(BAB_130 NH_3)","v":0},{"$f":"Efficiency!$F$14/100*'LIMITS Clean Air'!$X$8","v":0},{"$f":"H17","v":1},0,{"$f":"Sliding_Scale(F57,K57,L57,M57,0,Slide_Type)","v":1},{"$f":"'LIMITS Clean Air'!$K23","v":0.1},{"$f":"'LIMITS Clean Air'!$C$9","v":10},1]
[null,null,null,"CO","mg/km",{"$f":"(BAB_130 CO)","v":0},{"$f":"Efficiency!$F$14/100*'LIMITS Clean Air'!$X$9","v":0},{"$f":"H17","v":1},0,{"$f":"Sliding_Scale(F58,K58,L58,M58,0,Slide_Type)","v":1},{"$f":"'LIMITS Clean Air'!$K$24","v":5},{"$f":"'LIMITS Clean Air'!$C$10","v":500},1]
[null,null,null,"PM","mg/km",{"$f":"(BAB_130 PM)","v":0},{"$f":"Efficiency!$F$14/100*'LIMITS Clean Air'!$X$10","v":0},1,0,{"$f":"Sliding_Scale(F59,K59,L59,M59,0,Slide_Type)","v":1},0,{"$f":"'LIMITS Clean Air'!C11","v":4.5},1]
[null,null,{"$f":"IF(I60=0,0,LOG10(I60))","v":0},"PN10","#/km",{"$f":"(BAB_130 PN)","v":0},{"$f":"Efficiency!$F$14/100*'LIMITS Clean Air'!$X$11","v":0},{"$f":"H17","v":1},0,{"$f":"Sliding_Scale(C60,K61,L61,M60,0,Slide_Type)","v":3},{"$f":"'LIMITS Clean Air'!$K$26","v":100000000},{"$f":"'LIMITS Clean Air'!$C$12","v":600000000000},3]
[null,null,null,"SOx","mg/km",null,{"$f":"Efficiency!$F$14/100*'LIMITS Clean Air'!$X$12","v":0},1,0,null,{"$f":"LOG10(K60)","v":8},{"$f":"LOG10(L60)","v":11.778151250383644}]
[null,null,"total",null,null,null,null,null,null,{"$f":"IF(OR(F55:F56>'LIMITS Clean Air'!$D$6:$D$7,F58:F60>'LIMITS Clean Air'!$D$10:$D$12),0,MAX(SUM('Clean Air'!J55:J60),0))","v":10},null,null,{"$f":"SUM(M55:M60)","v":10}]
[null,null,{"$f":"'TEST RESULTS'!D10","v":"On-Road Drive"},"max points",{"$f":"SUM(M64:M67)","v":10}]
[null,null,null,"NOx","mg/km",{"$f":"(PEMS_Eco NOx)","v":0},{"$f":"Efficiency!$F$15/100*'LIMITS Clean Air'!$X$6","v":0},{"$f":"H17","v":1},{"$f":"G64*H64+F64","v":0},{"$f":"Sliding_Scale(F64,K64,L64,M64,0,2)","v":4},{"$f":"'LIMITS Clean Air'!$G$21","v":0.5},{"$f":"'LIMITS Clean Air'!$G$7","v":79.2},4]
[null,null,null,"NH3","mg/km"]
[null,null,null,"CO","mg/km",{"$f":"(PEMS_Eco CO)","v":0},{"$f":"Efficiency!$F$15/100*'LIMITS Clean Air'!$X$9","v":0},{"$f":"H17","v":1},{"$f":"G66*H66+F66","v":0},{"$f":"Sliding_Scale(F66,K66,L66,M66,0,2)","v":2},{"$f":"'LIMITS Clean Air'!$G$24","v":5},{"$f":"'LIMITS Clean Air'!$G$10","v":660},2]
[null,null,{"$f":"IF(I67=0,0,LOG10(I67))","v":0},"PN10","#/km",{"$f":"(PEMS_Eco PN)","v":0},{"$f":"Efficiency!$F$15/100*'LIMITS Clean Air'!$X$11","v":0},{"$f":"H17","v":1},{"$f":"G67*H67+F67","v":0},{"$f":"Sliding_Scale(C67,K68,L68,M67,0,Slide_Type)","v":4},{"$f":"'LIMITS Clean Air'!$G$26","v":100000000},{"$f":"'LIMITS Clean Air'!$G$12","v":792000000000},4]
[null,null,null,"SOx","mg/km",null,{"$f":"Efficiency!$F$15/100*'LIMITS Clean Air'!$X$12","v":0},1,{"$f":"G68*H68+F68","v":0},null,{"$f":"LOG10(K67)","v":8},{"$f":"LOG10(L67)","v":11.898725181589494}]
[null,null,"total",null,null,null,null,null,null,{"$f":"IF(OR('Clean Air'!F64>'LIMITS Clean Air'!$H$7,'Clean Air'!F66>'LIMITS Clean Air'!$H$10,'Clean Air'!F67>'LIMITS Clean Air'!$H$12),0,MAX(SUM('Clean Air'!J64:J67),0))","v":10},null,null,{"$f":"SUM(M64:M67)","v":10}]
[null,null,"Short Urban Trip / 1st 8 km of On-Road Drive","max points",10]
[null,null,null,"NOx","mg/km",{"$f":"(PEMS_1st_8km NOx)","v":0},null,null,null,{"$f":"IF(OR(Hydrogen,Electric),M71,IF(J64=0,0,IF(F71>='LIMITS Clean Air'!$H$7,0,M71-(F71/'LIMITS Clean Air'!$H$7)*M71)))","v":4},0.5,79.2,4]
[null,null,null,"CO","mg/km",{"$f":"(PEMS_1st_8km CO)","v":0},null,null,null,{"$f":"IF(OR(Hydrogen,Electric),M72,IF(J66=0,0,IF(F72>='LIMITS Clean Air'!$H$10,0,M72-(F72/'LIMITS Clean Air'!$H$10)*M72)))","v":2},5,660,2]
[null,null,null,"PN10","#/km",{"$f":"(PEMS_1st_8km PN)","v":0},null,null,null,{"$f":"IF(OR(Hydrogen,Electric),M73,IF(J67=0,0,IF(F73>='LIMITS Clean Air'!$H$12,0,M73-(F73/'LIMITS Clean Air'!$H$12)*M73)))","v":4},100000000,792000000000,4]
[null,null,"total",null,null,null,null,null,null,{"$f":"IF(OR('Clean Air'!F71>'LIMITS Clean Air'!$H$7,'Clean Air'!F72>'LIMITS Clean Air'!$H$10,'Clean Air'!F73>'LIMITS Clean Air'!$H$12),0,MAX(SUM('Clean Air'!J71:J73),0))","v":10},null,null,{"$f":"SUM(M71:M73)","v":10}]
[null,null,"Congestion","max points",2]
[null,null,null,"NOx AVG","mg/s",{"$f":"(Congestion_AVG NOx)","v":0},null,null,null,{"$f":"IF(F76<L76,M76,0)","v":1},null,0.5,1]
[null,null,null,"NOx Max","mg/s",{"$f":"(Congestion_Max NOx)","v":0},null,null,null,{"$f":"IF(AND(F76<L76,F77<L77),M77,0)","v":1},null,1,1]
[null,null,"total",null,null,null,null,null,null,{"$f":"SUM(J76:J77)","v":2},null,null,{"$f":"SUM(M76:M77)","v":2}]
[null,null,"Tyre Abrasion",null,null,null,null,null,null,null,"Thresholds",null,"Max score"]
[null,null,null,null,null,null,null,null,null,"Points","Lower","Upper"]
[null,null,null,"max points",6]
[null,null,null,"Mass related","kg",{"$f":"SPECS!B41","v":0},null,null,null,{"$f":"MAX(Sliding_Scale(F82,K82,L82,M82,0,Slide_Type),0)","v":3},1200,2400,3]
[null,null,null,"Wheel alignment","-",{"$f":"0.5*('TEST RESULTS'!D20+'TEST RESULTS'!D21)","v":0},null,null,null,{"$f":"F83","v":0},0,1,1]
[null,null,null,"Accelerator response","-",{"$f":"'TEST RESULTS'!D22","v":0},null,null,null,{"$f":"IF(F84<=K84,0,IF(F84<=L84,1,2))","v":0},30,35,2,null,"2 means not aggressive, 1 means medium, 0 means aggressive"]
[null,null,"total",null,null,null,null,null,null,{"$f":"SUM(J82:J84)","v":3},null,null,{"$f":"SUM(M82:M84)","v":6}]
[null,null,"Brake Abrasion",null,null,null,null,null,null,null,"Thresholds",null,"Max score"]
[null,null,null,null,null,null,null,null,null,null,"Lower","Upper"]
[null,null,null,"max points",6]
[null,null,null,"Mass factor","-",{"$f":"MAX(Sliding_Scale(F82,K82,L82,L89,K89,Slide_Type),K89)","v":1},null,null,null,null,0.75,1]
[null,null,null,"Dust filters","-",{"$f":"'TEST RESULTS'!D23","v":0},null,null,null,{"$f":"IF(F90=0,0,IF(F90=1,2,IF(F90=2,4)))","v":0},0,2,4,null,"2 means filters on both axles, 1 means filters on one axle, 0 means no filters"]
[null,null,null,"Brake Drums","-",{"$f":"'TEST RESULTS'!D24","v":0},null,null,null,{"$f":"IF(F91=0,0,IF(F91=1,3,IF(F91=2,6)))","v":0},0,2,6,null,"2 means drums on both axles, 1 means drums on one axle, 0 means no drums"]
[null,null,null,"Friction brake share WLTC+ Warm","%",{"$f":"IF(SPECS!B24<=12,100,IF(Electric,'TEST RESULTS'!D25,IF(SPECS!M11=TRUE,'LIMITS Clean Air'!P24,IF(AND(SPECS!B24>12,SPECS!B24<=20),'LIMITS Clean Air'!P22,IF(AND(SPECS!B24>20,SPECS!B24<=60),'LIMITS Clean Air'!P23)))))","v":100},null,null,null,{"$f":"Sliding_Scale(F92,K92,L92,M92,0,Slide_Type)*F89","v":0},10,100,6,null,"Fixed values for non-PEVs, sliding scale for PEVs"]
[]
[null,null,"total",null,null,null,null,null,null,{"$f":"IF(SUM(J90:J92)<=M94,SUM(J90:J92),6)","v":0},null,null,6]
[null,null,"Maintenance",null,null,"LCA Results",null,null,null,null,"Thresholds",null,"Max score"]
[]
[null,null,null,null,null,null,"LCA Value","Localization Factor",null,"Points","Lower","Upper"]
[null,null,null,"max points",null,null,null,null,null,null,null,null,null,"Localization factor can be different to production and EoL but who knows what?"]
[null,null,null,"NMVOC","mg/100km",null,{"$f":"'LCA RESULTS'!C16","v":0},1,{"$f":"H99*G99","v":0}]
[null,null,null,"NOx (NO and NO2)","mg/100km",null,{"$f":"'LCA RESULTS'!C17","v":0},1,{"$f":"H100*G100","v":0}]
[null,null,null,"NH3","mg/100km",null,{"$f":"'LCA RESULTS'!C18","v":0},1,0]
[null,null,null,"CO","mg/100km",null,{"$f":"'LCA RESULTS'!C19","v":0},1,0]
[null,null,null,"PM2.5","mg/100km",null,{"$f":"'LCA RESULTS'!C20","v":0},1,0]
[null,null,null,"SOx","mg/100km",null,{"$f":"'LCA RESULTS'!C21","v":0},1,0]
[null,null,"total"]
[null,"EoL",null,null,null,"LCA Results",null,null,null,null,"Thresholds",null,"Max score"]
[]
[null,null,null,null,null,null,"LCA Value","Localization Factor",null,"Points","Lower","Upper"]
[null,null,null,"max points"]
[null,null,null,"NMVOC","mg/km",null,{"$f":"'LCA RESULTS'!C24","v":0},1,{"$f":"H110*G110","v":0}]
[null,null,null,"NOx (NO and NO2)","mg/km",null,{"$f":"'LCA RESULTS'!C25","v":0},1,{"$f":"H111*G111","v":0}]
[null,null,null,"NH3","mg/km",null,{"$f":"'LCA RESULTS'!C26","v":0},1,0]
[null,null,null,"CO","mg/km",null,{"$f":"'LCA RESULTS'!C27","v":0},1,0]
[null,null,null,"PM2.5","mg/km",null,{"$f":"'LCA RESULTS'!C28","v":0},1,0]
[null,null,null,"SOx","mg/km",null,{"$f":"'LCA RESULTS'!C29","v":0},1,{"$f":"H115*G115","v":0}]
[null,null,"total"]
[]
[null,null,null,null,null,null,null,null,null,"Total Points",null,null,"Max Points",null,"Sub-Index","Maximum"]
[null,null,null,null,null,"Exhaust Emissions",null,null,null,{"$f":"SUM(J69,J62,J53,J44,J35,J26,J74,J78)","v":70},null,null,{"$f":"SUM(M69,M62,M53,M44,M35,M26,M74,M78)","v":70},null,{"$f":"J119/M119*10","v":10},10]
[null,null,null,null,null,"Non-Tailpipe Emissions (Brakes and Tyres)",null,null,null,{"$f":"J85+J94","v":3},null,null,{"$f":"M85+M94","v":12},null,{"$f":"J120/M120*10","v":2.5},10]
[null,null,null,null,null,"Non-Testing LCA Phase Emissions","Total",null,null,"Points","Lower","Upper","Max"]
[null,null,null,null,null,null,"NMHC",null,{"$f":"I7+((I19-F19)+(I28-F28)+(I37-F37)+(I46-F46)+(I55-F55))/5+I99+I110","v":0},{"$f":"MAX(Sliding_Scale(I122,K122,L122,M122,0,Slide_Type),0)","v":1},70,190,1]
[null,null,null,null,null,null,"NOx",null,{"$f":"I8+((I20-F20)+(I29-F29)+(I38-F38)+(I47-F47)+(I56-F56))/5+I100+I111","v":0},3,150,350,3]
[null,null,null,null,null,null,"NH3",null,{"$f":"I9+((I21-F21)+(I30-F30)+(I39-F39)+(I48-F48)+(I57-F57))/5+I101+I112","v":0},1,10,40,1]
[null,null,null,null,null,null,"CO",null,{"$f":"I10+((I22-F22)+(I31-F31)+(I40-F40)+(I49-F49)+(I58-F58))/5+I102+I113","v":0},1,200,500,1]
[null,null,null,null,null,null,"PM",null,{"$f":"I11+((I23-F23)+(I32-F32)+(I41-F41)+(I50-F50)+(I59-F59))/5+I103+I114","v":0},2,100,250,2]
[null,null,null,null,null,null,"SOx",null,{"$f":"I12+((I25-F25)+(I34-F34)+(I43-F43)+(I52-F52)+(I61-F61))/5+I104+I115","v":0},2,200,450,2]
[null,null,null,null,null,null,null,null,"Total",{"$f":"SUM(J122:J127)","v":10},null,null,{"$f":"SUM(M122:M127)","v":10},null,{"$f":"J128/M128*10","v":10},10]
[]
[null,null,null,null,null,null,null,null,null,null,null,null,null,null,"Sub-Index","Weighting","Weighted Sub-Index"]
[null,null,null,null,null,null,null,null,null,null,null,null,"Exhaust Index",null,{"$f":"O119","v":10},0.6,{"$f":"P131*O131","v":6}]
[null,null,null,null,null,null,null,null,null,null,null,null,"Non-tailpipe Index",null,{"$f":"O120","v":2.5},0.2,{"$f":"P132*O132","v":0.5}]
[null,null,null,null,null,null,null,null,null,null,null,null,"LCA Index",null,{"$f":"O128","v":10},{"$f":"1-P131-P132","v":0.2},{"$f":"P133*O133","v":2}]
[null,null,null,null,null,null,null,null,null,null,null,null,"CLEAN AIR INDEX",null,null,null,{"$f":"SUM(Q131:Q133)","v":8.5}]

{"sheet":"Efficiency","index":7,"n_rows":46,"n_cols":32,"rows_kept":46,"cut":false,"hidden":false,"merged":[[39,9,39,10],[27,9,27,10],[118,1,126,1],[17,2,17,3],[18,2,18,3],[21,1,25,1],[21,2,21,3],[110,1,113,1],[114,1,116,1],[22,2,22,3],[23,2,23,3],[31,9,31,10],[35,9,35,10],[3,2,3,3],[1,2,1,3],[6,1,20,1],[6,2,6,4],[16,2,16,4],[2,2,2,3],[1,1,5,1],[15,2,15,3]]}
[]
[null,"PRODUCTION"]
[null,null,null,null,null,null,"LCA Value","Total"]
[]
[null,null,null,null,"kWh/100km",null,{"$f":"'LCA RESULTS'!F8*100","v":0},{"$f":"G5","v":0}]
[]
[null,"USAGE","Testing",null,null,null,null,null,null,null,null,null,null,null,null,null,null,null,null,null,null,null,null,null,null,"Conversion from l/100km or kg/100km to kWh/100km for different energy carriers"]
[null,null,null,null,"Energy Consumption","From Test","Upstream","Total",null,null,null,null,null,"2.1.2.1",null,null,"2.1.2.2",null,null,"2.1.2.3",null,null,null,"2.1.2.4",null,null,"2.1.2.5",null,null,"2.1.2.6"]
[null,null,null,null,null,"kWh/100km","kWh/100km","kWh/100km",null,null,null,null,null,"Fuel Consumption (liquid fuel)",null,null,"Energy Consumption (electric energy)",null,null,"Gas Consumption (CNG, Hydrogen)",null,null,null,"Fuel Consumption (liquid fuel)",null,null,"Energy Consumption (electric energy)",null,null,"Gas Consumption (CNG, Hydrogen)"]
[null,null,null,{"$f":"'TEST RESULTS'!$D$5","v":"WLTP CoC Type Approval"},"kWh/100km",{"$f":"Z10+AC10+AF10","v":0},{"$f":"Z10*(IF(Petrol,'LIMITS Efficiency'!$H$6,IF(Diesel,'LIMITS Efficiency'!$H$7,IF(E_85,'LIMITS Efficiency'!H11,1)))-1)+AC10*('LIMITS Efficiency'!$H$9-1)+AF10*(IF(Hydrogen,'LIMITS Efficiency'!$H$10,IF(OR(CNG_Dual,CNG_Mono),'LIMITS Efficiency'!$H$8,))-1)","v":0},{"$f":"G10+F10","v":0},null,null,null,null,null,{"$f":"$D$10","v":"WLTP CoC Type Approval"},"l/100km",{"$f":"'TEST RESULTS'!$Q5","v":0},{"$f":"$D$10","v":"WLTP CoC Type Approval"},"kWh/100km",{"$f":"'TEST RESULTS'!R5","v":0},{"$f":"$D$10","v":"WLTP CoC Type Approval"},"kg/100km",{"$f":"'TEST RESULTS'!U5","v":0},null,{"$f":"$D$10","v":"WLTP CoC Type Approval"},"kWh/100km",{"$f":"P10*IF(Petrol,'LIMITS Efficiency'!$C$7,IF(Diesel,'LIMITS Efficiency'!$C$8,IF(E_85,'LIMITS Efficiency'!$C$12,IF(CNG_Dual,'LIMITS Efficiency'!$C$7))))","v":0},{"$f":"$D$10","v":"WLTP CoC Type Approval"},"kWh/100km",{"$f":"S10","v":0},{"$f":"$D$10","v":"WLTP CoC Type Approval"},"kWh/100km",{"$f":"V10*IF(OR(CNG_Mono,CNG_Dual),'LIMITS Efficiency'!$C$9,IF(Hydrogen,'LIMITS Efficiency'!$C$11,0))","v":0}]
[null,null,null,"WLTP+ Warm","kWh/100km",{"$f":"Z11+AC11+AF11","v":0},{"$f":"Z11*(IF(Petrol,'LIMITS Efficiency'!$H$6,IF(Diesel,'LIMITS Efficiency'!$H$7,IF(E_85,'LIMITS Efficiency'!#REF!,1)))-1)+AC11*('LIMITS Efficiency'!$H$9-1)+AF11*(IF(Hydrogen,'LIMITS Efficiency'!$H$10,IF(OR(CNG_Dual,CNG_Mono),'LIMITS Efficiency'!$H$8,))-1)","v":0},{"$f":"G11+F11","v":0},null,null,null,null,null,{"$f":"D11","v":"WLTP+ Warm"},"l/100km",{"$f":"'TEST RESULTS'!$Q6","v":0},{"$f":"D11","v":"WLTP+ Warm"},"kWh/100km",{"$f":"'TEST RESULTS'!R6","v":0},{"$f":"D11","v":"WLTP+ Warm"},"kg/100km",{"$f":"'TEST RESULTS'!U6","v":0},null,{"$f":"D11","v":"WLTP+ Warm"},"kWh/100km",{"$f":"P11*IF(Petrol,'LIMITS Efficiency'!$C$7,IF(Diesel,'LIMITS Efficiency'!$C$8,IF(E_85,'LIMITS Efficiency'!$C$12,IF(CNG_Dual,'LIMITS Efficiency'!$C$7))))","v":0},{"$f":"D11","v":"WLTP+ Warm"},"kWh/100km",{"$f":"S11","v":0},{"$f":"D11","v":"WLTP+ Warm"},"kWh/100km",{"$f":"V11*IF(OR(CNG_Mono,CNG_Dual),'LIMITS Efficiency'!$C$9,IF(Hydrogen,'LIMITS Efficiency'!$C$11,0))","v":0}]
[null,null,null,{"$f":"'TEST RESULTS'!$D$7","v":"WLTC+ CAT Cold (-7°C)"},"kWh/100km",{"$f":"Z12+AC12+AF12","v":0},{"$f":"Z12*(IF(Petrol,'LIMITS Efficiency'!$H$6,IF(Diesel,'LIMITS Efficiency'!$H$7,IF(E_85,'LIMITS Efficiency'!#REF!,1)))-1)+AC12*('LIMITS Efficiency'!$H$9-1)+AF12*(IF(Hydrogen,'LIMITS Efficiency'!$H$10,IF(OR(CNG_Dual,CNG_Mono),'LIMITS Efficiency'!$H$8,))-1)","v":0},{"$f":"G12+F12","v":0},null,null,null,null,null,{"$f":"$D$12","v":"WLTC+ CAT Cold (-7°C)"},"l/100km",{"$f":"'TEST RESULTS'!$Q7","v":0},{"$f":"$D$12","v":"WLTC+ CAT Cold (-7°C)"},"kWh/100km",{"$f":"'TEST RESULTS'!R7","v":0},{"$f":"$D$12","v":"WLTC+ CAT Cold (-7°C)"},"kg/100km",{"$f":"'TEST RESULTS'!U7","v":0},null,{"$f":"$D$12","v":"WLTC+ CAT Cold (-7°C)"},"kWh/100km",{"$f":"P12*IF(Petrol,'LIMITS Efficiency'!$C$7,IF(Diesel,'LIMITS Efficiency'!$C$8,IF(E_85,'LIMITS Efficiency'!$C$12,IF(CNG_Dual,'LIMITS Efficiency'!$C$7))))","v":0},{"$f":"$D$12","v":"WLTC+ CAT Cold (-7°C)"},"kWh/100km",{"$f":"S12","v":0},{"$f":"$D$12","v":"WLTC+ CAT Cold (-7°C)"},"kWh/100km",{"$f":"V12*IF(OR(CNG_Mono,CNG_Dual),'LIMITS Efficiency'!$C$9,IF(Hydrogen,'LIMITS Efficiency'!$C$11,0))","v":0}]
[null,null,null,{"$f":"'TEST RESULTS'!$D$8","v":"WLTC+ CAT Warm (-7°C)"},"kWh/100km",0,{"$f":"Z13*(IF(Petrol,'LIMITS Efficiency'!$H$6,IF(Diesel,'LIMITS Efficiency'!$H$7,IF(E_85,'LIMITS Efficiency'!#REF!,1)))-1)+AC13*('LIMITS Efficiency'!$H$9-1)+AF13*(IF(Hydrogen,'LIMITS Efficiency'!$H$10,IF(OR(CNG_Dual,CNG_Mono),'LIMITS Efficiency'!$H$8,))-1)","v":0},0,null,null,null,null,null,{"$f":"$D$13","v":"WLTC+ CAT Warm (-7°C)"},"l/100km",{"$f":"'TEST RESULTS'!$Q8","v":0},{"$f":"$D$13","v":"WLTC+ CAT Warm (-7°C)"},"kWh/100km",{"$f":"'TEST RESULTS'!R8","v":0},{"$f":"$D$13","v":"WLTC+ CAT Warm (-7°C)"},"kg/100km",{"$f":"'TEST RESULTS'!U8","v":0},null,{"$f":"$D$13","v":"WLTC+ CAT Warm (-7°C)"},"kWh/100km",{"$f":"P13*IF(Petrol,'LIMITS Efficiency'!$C$7,IF(Diesel,'LIMITS Efficiency'!$C$8,IF(E_85,'LIMITS Efficiency'!$C$12,IF(CNG_Dual,'LIMITS Efficiency'!$C$7))))","v":0},{"$f":"$D$13","v":"WLTC+ CAT Warm (-7°C)"},"kWh/100km",0,{"$f":"$D$13","v":"WLTC+ CAT Warm (-7°C)"},"kWh/100km",{"$f":"V13*IF(OR(CNG_Mono,CNG_Dual),'LIMITS Efficiency'!$C$9,IF(Hydrogen,'LIMITS Efficiency'!$C$11,0))","v":0}]
[null,null,null,{"$f":"'TEST RESULTS'!$D$9","v":"BAB130 Motorway"},"kWh/100km",0,{"$f":"Z14*(IF(Petrol,'LIMITS Efficiency'!$H$6,IF(Diesel,'LIMITS Efficiency'!$H$7,IF(E_85,'LIMITS Efficiency'!H12,1)))-1)+AC14*('LIMITS Efficiency'!$H$9-1)+AF14*(IF(Hydrogen,'LIMITS Efficiency'!$H$10,IF(OR(CNG_Dual,CNG_Mono),'LIMITS Efficiency'!$H$8,))-1)","v":0},0,null,null,null,null,null,{"$f":"$D$14","v":"BAB130 Motorway"},"l/100km",{"$f":"'TEST RESULTS'!$Q9","v":0},{"$f":"$D$14","v":"BAB130 Motorway"},"kWh/100km",{"$f":"'TEST RESULTS'!R9","v":0},{"$f":"$D$14","v":"BAB130 Motorway"},"kg/100km",{"$f":"'TEST RESULTS'!U9","v":0},null,{"$f":"$D$14","v":"BAB130 Motorway"},"kWh/100km",{"$f":"P14*IF(Petrol,'LIMITS Efficiency'!$C$7,IF(Diesel,'LIMITS Efficiency'!$C$8,IF(E_85,'LIMITS Efficiency'!$C$12,IF(CNG_Dual,'LIMITS Efficiency'!$C$7))))","v":0},{"$f":"$D$14","v":"BAB130 Motorway"},"kWh/100km",{"$f":"S14","v":0},{"$f":"$D$14","v":"BAB130 Motorway"},"kWh/100km",{"$f":"V14*IF(OR(CNG_Mono,CNG_Dual),'LIMITS Efficiency'!$C$9,IF(Hydrogen,'LIMITS Efficiency'!$C$11,0))","v":0}]
[null,null,null,{"$f":"'TEST RESULTS'!$D$10","v":"On-Road Drive"},"kWh/100km",0,{"$f":"Z15*(IF(Petrol,'LIMITS Efficiency'!$H$6,IF(Diesel,'LIMITS Efficiency'!$H$7,IF(E_85,'LIMITS Efficiency'!H13,1)))-1)+AC15*('LIMITS Efficiency'!$H$9-1)+AF15*(IF(Hydrogen,'LIMITS Efficiency'!$H$10,IF(OR(CNG_Dual,CNG_Mono),'LIMITS Efficiency'!$H$8,))-1)","v":0},0,null,null,null,null,null,{"$f":"$D$15","v":"On-Road Drive"},"l/100km",{"$f":"'TEST RESULTS'!$Q10","v":0},{"$f":"$D$15","v":"On-Road Drive"},"kWh/100km",{"$f":"'TEST RESULTS'!R10","v":0},{"$f":"$D$15","v":"On-Road Drive"},"kg/100km",{"$f":"'TEST RESULTS'!U10","v":0},null,{"$f":"$D$15","v":"On-Road Drive"},"kWh/100km",{"$f":"P15*IF(Petrol,'LIMITS Efficiency'!$C$7,IF(Diesel,'LIMITS Efficiency'!$C$8,IF(E_85,'LIMITS Efficiency'!$C$12,IF(CNG_Dual,'LIMITS Efficiency'!$C$7))))","v":0},{"$f":"$D$15","v":"On-Road Drive"},"kWh/100km",{"$f":"S15","v":0},{"$f":"$D$15","v":"On-Road Drive"},"kWh/100km",{"$f":"V15*IF(OR(CNG_Mono,CNG_Dual),'LIMITS Efficiency'!$C$9,IF(Hydrogen,'LIMITS Efficiency'!$C$11,0))","v":0}]
[null,null,null,null,null,null,null,null,null,null,null,null,null,"Average","l/100km",{"$f":"AVERAGE(P$10,P$11,P$14)","v":0},"Average","kWh/100km",{"$f":"AVERAGE(S$10,S$11,S$14)","v":0},"Average","kg/100km",{"$f":"IF(OR(CNG_Mono,CNG_Dual,Hydrogen),'TEST RESULTS'!#REF!,0)","v":0},null,"Average","kWh/100km",{"$f":"AVERAGE(Z$10,Z$11,Z$14)","v":0},"Average","kWh/100km",{"$f":"AVERAGE(AC$10,AC$11,AC$14)","v":0},"Average","kWh/100km",{"$f":"AVERAGE(AF$10,AF$11,AF$14)","v":0}]
[null,null,"Maintenance",null,null,null,null,null,null,null,null,null,null,"Warm Test (Lab)","l/100km",{"$f":"P13","v":0},"Warm Test (Lab)","kWh/100km",{"$f":"S13","v":0},"Warm Test (Lab)","kg/100km",{"$f":"V13","v":0},null,"Warm Test (Lab)","kWh/100km",{"$f":"Z13","v":0},"Warm Test (Lab)","kWh/100km",{"$f":"AC13","v":0},"Warm Test (Lab)","kWh/100km",{"$f":"AF13","v":0}]
[null,null,null,null,null,null,"LCA Value","Total",null,null,null,null,null,"Highway","l/100km",{"$f":"P14","v":0},"Highway","kWh/100km",{"$f":"S14","v":0},"Highway","kg/100km",{"$f":"V14","v":0},null,"Highway","kWh/100km",{"$f":"Z14","v":0},"Highway","kWh/100km",{"$f":"AC14","v":0},"Highway","kWh/100km",{"$f":"AF14","v":0}]
[null,null,null,null,null,null,null,null,null,null,null,null,null,"Cold Ambient Test","l/100km",{"$f":"P12","v":0},"Cold Ambient Test","kWh/100km",{"$f":"S12","v":0},"Cold Ambient Test","kg/100km",{"$f":"V12","v":0},null,"Cold Ambient Test","kWh/100km",{"$f":"Z12","v":0},"Cold Ambient Test","kWh/100km",{"$f":"AC12","v":0},"Cold Ambient Test","kWh/100km",{"$f":"AF12","v":0}]
[null,null,null,null,"kWh/100km",null,{"$f":"'LCA RESULTS'!F11*100","v":0},{"$f":"G20","v":0},null,null,null,null,null,"Best Case for LCA","l/100km",{"$f":"MIN(Efficiency!P10:P13,Efficiency!P14:P15)","v":0},"Best Case for LCA","kWh/100km",{"$f":"IF(Electric,MIN(Efficiency!S10:S13,Efficiency!S14),MIN(Efficiency!S10:S13,Efficiency!S14:S15))","v":0},"Best Case for LCA","kg/100km",{"$f":"MIN(Efficiency!V10:V13,Efficiency!V14:V15)","v":0},null,"Best Case for LCA","kWh/100km",{"$f":"MIN(Efficiency!Z10:Z13,Efficiency!Z14:Z15)","v":0},"Best Case for LCA","kWh/100km",{"$f":"MIN(Efficiency!AC10:AC13,Efficiency!AC14:AC15)","v":0},"Best Case for LCA","kWh/100km",{"$f":"MIN(Efficiency!AF10:AF13,Efficiency!AF14:AF15)","v":0}]
[null,null,null,null,null,null,null,null,null,null,null,null,null,"Worst Case for LCA","l/100km",{"$f":"MAX(P10:P13,P14:P15)","v":0},"Worst Case for LCA","kWh/100km",{"$f":"IF(Electric,MAX(S10:S13,S14),MAX(S10:S13,S14:S15))","v":0},"Worst Case for LCA","kg/100km",{"$f":"MAX(V10:V13,V14:V15)","v":0},null,"Worst Case for LCA","kWh/100km",{"$f":"MAX(Z10:Z13,Z14:Z15)","v":0},"Worst Case for LCA","kWh/100km",{"$f":"MAX(AC10:AC13,AC14:AC15)","v":0},"Worst Case for LCA","kWh/100km",{"$f":"MAX(AF10:AF13,AF14:AF15)","v":0}]
[null,"EoL"]
[null,null,null,null,null,null,"LCA Value","Total"]
[null,null,null,null,null,null,null,null,null,null,null,null,null,"2.2.1",null,null,"2.2.2",null,null,"2.2.3"]
[null,null,null,null,"kWh/100km",null,{"$f":"'LCA RESULTS'!F12*100","v":0},{"$f":"G25","v":0}]
[null,null,null,null,null,null,null,null,null,null,null,null,null,"Driving Range (liquid fuel)",null,null,"Driving Range (electric energy)",null,null,"Driving Range (CNG, Hydrogen)"]
[null,null,null,null,null,null,null,null,null,null,null,null,{"$f":"SUM(I21:I21)","v":0},{"$f":"$D$10","v":"WLTP CoC Type Approval"},"km",{"$f":"IF(OR(Petrol,Diesel,CNG_Dual,E_85),IF(P10>0,100*SPECS!$B$11/P10,0),0)","v":0},{"$f":"$D$10","v":"WLTP CoC Type Approval"},"km",{"$f":"IF(Electric,IF(S10>0,100*SPECS!$B$45/S10,0),0)","v":0},{"$f":"$D$11","v":"WLTP+ Warm"},"km",{"$f":"IF(OR(CNG_Mono,Hydrogen),IF(V10>0,100*SPECS!$B$12/V10,0),0)","v":0}]
[null,null,null,null,null,"Rolling resistance",null,null,null,"Thresholds",null,null,null,{"$f":"$D$11","v":"WLTP+ Warm"},"km",{"$f":"IF(OR(Petrol,Diesel,CNG_Dual,E_85),IF(P11>0,100*SPECS!$B$11/P11,0),0)","v":0},{"$f":"$D$11","v":"WLTP+ Warm"},"km",{"$f":"IF(Electric,IF(S11>0,100*SPECS!$B$45/S11,0),0)","v":0},{"$f":"$D$10","v":"WLTP CoC Type Approval"},"km",{"$f":"IF(OR(CNG_Mono,Hydrogen),IF(V11>0,100*SPECS!$B$12/V11,0),0)","v":0}]
[null,null,null,null,"Standard","max points",{"$f":"L30","v":10},"Value","Points","Lower","Upper","Max score",null,{"$f":"$D$12","v":"WLTC+ CAT Cold (-7°C)"},"km",{"$f":"IF(OR(Petrol,Diesel,CNG_Dual,E_85),IF(P12>0,100*SPECS!$B$11/P12,0),0)","v":0},{"$f":"$D$12","v":"WLTC+ CAT Cold (-7°C)"},"km",{"$f":"IF(Electric,IF(S12>0,100*SPECS!$B$45/S12,0),0)","v":0},{"$f":"$D$12","v":"WLTC+ CAT Cold (-7°C)"},"km",{"$f":"IF(OR(CNG_Mono,Hydrogen),IF(V12>0,100*SPECS!$B$12/V12,0),0)","v":0}]
[null,null,null,null,null,"Avg F@25 kph","N",{"$f":"SPECS!B38+SPECS!B39*25+SPECS!B40*(25^2)","v":0},{"$f":"Sliding_Scale(H30,J30,K30,L30,0,2)","v":10},120,220,10,null,{"$f":"$D$13","v":"WLTC+ CAT Warm (-7°C)"},"km",{"$f":"IF(OR(Petrol,Diesel,CNG_Dual,E_85),IF(P13>0,100*SPECS!$B$11/P13,0),0)","v":0},{"$f":"$D$13","v":"WLTC+ CAT Warm (-7°C)"},"km",{"$f":"IF(Electric,IF(S13>0,100*SPECS!$B$45/S13,0),0)","v":0},{"$f":"$D$13","v":"WLTC+ CAT Warm (-7°C)"},"km",{"$f":"IF(OR(CNG_Mono,Hydrogen),IF(V13>0,100*SPECS!$B$12/V13,0),0)","v":0}]
[]
[null,null,null,null,null,null,null,"Direct Propulsion Energy Demand kWh/100km",null,"Thresholds"]
[null,null,null,null,null,null,null,"Total","Points","Lower","Upper","Max Score"]
[null,null,null,null,null,null,null,{"$f":"AVERAGE(F10:F14)","v":0},{"$f":"MAX(Sliding_Scale(H34,J34,K34,L34,0,Slide_Type),0)","v":10},20,70,10]
[]
[null,null,null,null,null,null,null,"Additional LCA Energy Demand kWh/100km",null,"Thresholds"]
[null,null,null,null,null,null,null,"Total","Points","Lower","Upper","Max Score"]
[null,null,null,null,null,null,null,{"$f":"H5+(AVERAGE(G10:G14)+H20+H25)","v":0},{"$f":"MAX(Sliding_Scale(H38,J38,K38,L38,0,Slide_Type),0)","v":10},40,100,10]
[null,null,null,null,null,null,null,null,null,null,null,null,null,{"$f":"$D$14","v":"BAB130 Motorway"},"km",{"$f":"IF(OR(Petrol,Diesel,CNG_Dual,E_85),IF(P14>0,100*SPECS!$B$11/P14,0),0)","v":0},{"$f":"$D$14","v":"BAB130 Motorway"},"km",{"$f":"IF(Electric,IF(S14>0,100*SPECS!$B$45/S14,0),0)","v":0},{"$f":"$D$14","v":"BAB130 Motorway"},"km",{"$f":"IF(OR(CNG_Mono,Hydrogen),IF(V14>0,100*SPECS!$B$12/V14,0),0)","v":0}]
[null,null,null,null,null,null,null,"Total Energy Demand kWh/100km",null,"Thresholds",null,null,null,{"$f":"$D$15","v":"On-Road Drive"},"km",{"$f":"IF(OR(Petrol,Diesel,CNG_Dual,E_85),IF(P15>0,100*SPECS!$B$11/P15,0),0)","v":0},{"$f":"$D$15","v":"On-Road Drive"},"km",{"$f":"IF(Electric,IF(S15>0,100*SPECS!$B$45/S15,0),0)","v":0},{"$f":"$D$15","v":"On-Road Drive"},"km",{"$f":"IF(OR(CNG_Mono,Hydrogen),IF(V15>0,100*SPECS!$B$12/V15,0),0)","v":0}]
[null,null,null,null,null,null,null,"Total","Points","Lower","Upper","Max Score",null,"Average","km",{"$f":"AVERAGE(P27,P28,P39)","v":0},"Average","km",{"$f":"AVERAGE(S27,S28,S39)","v":0},"Average","km",{"$f":"AVERAGE(V27,V28,V39)","v":0}]
[null,null,null,null,null,null,null,{"$f":"SUM(H25,H20,AVERAGE(H10:H14),H5)","v":0},{"$f":"MAX(Sliding_Scale(H42,J42,K42,L42,0,Slide_Type),0)","v":10},60,130,10,null,"Warm Test (Lab)","km",{"$f":"P30","v":0},"Warm Test (Lab)","km",{"$f":"S30","v":0},"Warm Test (Lab)","km",{"$f":"V30","v":0}]
[null,null,null,null,null,null,null,null,null,null,null,null,null,"Highway","km",{"$f":"P39","v":0},"Highway","km",{"$f":"S39","v":0},"Highway","km",{"$f":"V39","v":0}]
[null,null,null,null,null,null,null,"Energy Demand Weighting",null,0.95,null,null,null,"Cold Ambient Test","km",{"$f":"P29","v":0},"Cold Ambient Test","km",{"$f":"S29","v":0},"Cold Ambient Test","km",{"$f":"V12","v":0}]
[null,null,null,null,null,null,null,"Rolling Resistance Weighting",null,0.05,null,null,null,"Best Case for LCA","km",{"$f":"MAX(P27:P30,P39:P40)","v":0},"Best Case for LCA","km",{"$f":"MAX(S27:S30,S39:S40)","v":0},"Best Case for LCA","km",{"$f":"MAX(V27:V30,V39:V40)","v":0}]
[null,null,null,null,null,null,null,null,null,null,"ENERGY EFFICIENCY INDEX",{"$f":"I42/L42*10*J44+J45*I30/L30*10","v":10},null,"Worst Case for LCA","km",{"$f":"MIN(P27:P30,P39:P40)","v":0},"Best Case for LCA","km",{"$f":"MIN(S27:S30,S39:S40)","v":0},"Best Case for LCA","km",{"$f":"MIN(V27:V30,V39:V40)","v":0}]

{"sheet":"Greenhouse","index":8,"n_rows":118,"n_cols":22,"rows_kept":118,"cut":false,"hidden":false,"merged":[[94,9,95,10],[94,11,96,11],[110,3,110,5],[110,8,110,9],[115,3,115,9],[116,3,116,9],[111,3,111,5],[111,8,111,9],[112,3,112,9],[113,3,113,9],[114,3,114,9],[1,2,2,3],[1,5,2,8],[24,2,24,3],[51,2,51,3],[42,2,42,3],[13,5,14,8],[13,2,15,3],[3,2,3,3],[15,13,15,21],[25,13,25,21],[18,13,18,14],[18,16,18,17],[18,19,18,20],[78,1,86,1],[78,2,78,3],[78,5,79,8],[109,15,109,16],[16,13,16,21],[72,13,72,21],[80,2,80,3],[33,2,33,3],[108,3,108,5],[108,8,108,9],[109,3,109,5],[109,8,109,9],[100,9,101,10],[100,11,102,11],[88,9,89,10],[88,11,90,11],[4,1,12,1],[4,2,4,3],[6,2,6,3],[4,5,5,8],[69,2,71,3],[69,5,70,8],[13,1,77,1]]}
[]
[null,null,"3.Greenhouse Gas Index"]
[]
[]
[null,"PRODUCTION",null,null,null,"LCA Results"]
[]
[null,null,null,null,null,"LCA Value","CO2-eq"]
[]
[null,null,null,"N2O","g/km",{"$f":"'LCA RESULTS'!I8","v":0},{"$f":"F9*'LIMITS Greenhouse'!B5","v":0}]
[null,null,null,"CH4","g/km",{"$f":"'LCA RESULTS'!I9","v":0},{"$f":"F10*'LIMITS Greenhouse'!B6","v":0}]
[null,null,null,"CO2","g/km",{"$f":"'LCA RESULTS'!I10","v":0},{"$f":"F11*'LIMITS Greenhouse'!B7","v":0}]
[null,null,null,"Total CO2 equivalent","g/km",null,{"$f":"SUM(G9:G11)","v":0}]
[]
[null,"USAGE","Testing",null,null,"Test Results"]
[]
[null,null,null,null,null,"Value",null,null,null,null,null,null,null,"Conversion from local consumption kWh/100km to upstream GHG emissions in g/km for different energy carriers"]
[null,null,"WLTP CoC Type Approval","max points",null,null,null,null,null,null,null,null,null,"CO2 equivalent upstream (Well-to-Tank+)"]
[null,null,null,"N2O tailpipe","mg/km",{"$f":"(WLTP_Cold_TA N2O)","v":0},null,null,null,null,null,null,null,"Liquid Fuel",null,"Factor","Electricity",null,"Factor","Gaseous Fuel",null,"Factor"]
[null,null,null,"CH4 tailpipe","mg/km",{"$f":"(WLTP_Cold_TA CH_4)","v":0},null,null,null,null,null,null,null,{"$f":"IF(Petrol,\"Petrol\",IF(Diesel,\"Diesel\",\"-\"))","v":"-"},null,{"$f":"IF(OR(Petrol,CNG_Dual),'LIMITS Greenhouse'!$D$11,IF(Diesel,'LIMITS Greenhouse'!$D$12,IF(E_85,'LIMITS Greenhouse'!$D$16,0)))","v":0},{"$f":"IF(Electric,\"Electricity\",\"-\")","v":"Electricity"},null,{"$f":"IF(Electric,'LIMITS Greenhouse'!D13,0)","v":2.12364},{"$f":"IF(CNG_Mono,\"CNG\",IF(CNG_Dual,\"CNG\",IF(Hydrogen,\"Hydrogen\",\"-\")))","v":"-"},null,{"$f":"IF(OR(CNG_Mono,CNG_Dual),'LIMITS Greenhouse'!$D$14,IF(Hydrogen,'LIMITS Greenhouse'!$D$15,0))","v":0}]
[null,null,null,"Total CO2 equivalent","g/km",{"$f":"SUM(F21:F24)","v":0},null,null,null,null,null,null,null,{"$f":"'TEST RESULTS'!$D$5","v":"WLTP CoC Type Approval"},"g/km",{"$f":"Efficiency!Z10*P$19","v":0},{"$f":"'TEST RESULTS'!$D$5","v":"WLTP CoC Type Approval"},"g/km",{"$f":"Efficiency!AC10*$S$19","v":0},{"$f":"'TEST RESULTS'!$D$5","v":"WLTP CoC Type Approval"},"g/km",{"$f":"Efficiency!AF10*Greenhouse!$V$19","v":0}]
[null,null,null,"CO2 tailpipe","g/km",{"$f":"(IF(OR(Petrol,Diesel,CNG_Mono,CNG_Dual,E_85),WLTP_Cold_TA CO2_rcb,0))","v":0},null,null,null,null,null,null,null,{"$f":"$C$26","v":"WLTP+ Warm"},"g/km",{"$f":"Efficiency!Z11*P$19","v":0},{"$f":"$C$26","v":"WLTP+ Warm"},"g/km",{"$f":"Efficiency!AC11*$S$19","v":0},{"$f":"$C$26","v":"WLTP+ Warm"},"g/km",{"$f":"Efficiency!AF11*Greenhouse!$V$19","v":0}]
[null,null,null,"N2O CO2-eq (from tailpipe)","g/km",{"$f":"(WLTP_Cold_TA N2O)*'LIMITS Greenhouse'!$B$5/1000","v":0},null,null,null,null,null,null,null,{"$f":"'TEST RESULTS'!$D$7","v":"WLTC+ CAT Cold (-7°C)"},"g/km",{"$f":"Efficiency!Z12*P$19","v":0},{"$f":"'TEST RESULTS'!$D$7","v":"WLTC+ CAT Cold (-7°C)"},"g/km",{"$f":"Efficiency!AC12*$S$19","v":0},{"$f":"'TEST RESULTS'!$D$7","v":"WLTC+ CAT Cold (-7°C)"},"g/km",{"$f":"Efficiency!AF12*Greenhouse!$V$19","v":0}]
[null,null,null,"CH4 CO2-eq (from tailpipe)","g/km",{"$f":"(WLTP_Cold_TA CH_4)*'LIMITS Greenhouse'!$B$6/1000","v":0},null,null,null,null,null,null,null,{"$f":"'TEST RESULTS'!$D$8","v":"WLTC+ CAT Warm (-7°C)"},"g/km",{"$f":"Efficiency!Z13*P$19","v":0},{"$f":"'TEST RESULTS'!$D$8","v":"WLTC+ CAT Warm (-7°C)"},"g/km",{"$f":"Efficiency!AC13*$S$19","v":0},{"$f":"'TEST RESULTS'!$D$8","v":"WLTC+ CAT Warm (-7°C)"},"g/km",{"$f":"Efficiency!AF13*Greenhouse!$V$19","v":0}]
[null,null,null,"CO2-eq upstream (Well-to-Tank+)","g/km",{"$f":"P20+S20+V20-(1-(IF(Petrol,'LIMITS Greenhouse'!D21,IF(Diesel,'LIMITS Greenhouse'!D22,IF(E_85,'LIMITS Greenhouse'!D23,1)))))*F21","v":0},null,null,null,null,null,null,null,{"$f":"'TEST RESULTS'!$D$9","v":"BAB130 Motorway"},"g/km",{"$f":"Efficiency!Z14*P$19","v":0},{"$f":"'TEST RESULTS'!$D$9","v":"BAB130 Motorway"},"g/km",{"$f":"Efficiency!AC14*$S$19","v":0},{"$f":"'TEST RESULTS'!$D$9","v":"BAB130 Motorway"},"g/km",{"$f":"Efficiency!AF14*Greenhouse!$V$19","v":0}]
[null,null,null,null,null,null,null,null,null,null,null,null,null,{"$f":"'TEST RESULTS'!$D$10","v":"On-Road Drive"},"g/km",{"$f":"Efficiency!Z15*P$19","v":0},{"$f":"'TEST RESULTS'!$D$10","v":"On-Road Drive"},"g/km",{"$f":"Efficiency!AC15*$S$19","v":0},{"$f":"'TEST RESULTS'!$D$10","v":"On-Road Drive"},"g/km",{"$f":"Efficiency!AF15*Greenhouse!$V$19","v":0}]
[null,null,"WLTP+ Warm","max points"]
[null,null,null,"N2O tailpipe","mg/km",{"$f":"(WLTP_Warm N2O)","v":0}]
[null,null,null,"CH4 tailpipe","mg/km",{"$f":"(WLTP_Warm CH_4)","v":0}]
[null,null,null,"Total CO2 equivalent","g/km",{"$f":"SUM(F30:F33)","v":0}]
[null,null,null,"CO2 tailpipe","g/km",{"$f":"(IF(OR(Petrol,Diesel,CNG_Mono,CNG_Dual,E_85),WLTP_Warm CO2_rcb,0))","v":0}]
[null,null,null,"N2O CO2-eq (from tailpipe)","g/km",{"$f":"(WLTP_Warm N2O)*'LIMITS Greenhouse'!$B$5/1000","v":0}]
[null,null,null,"CH4 CO2-eq (from tailpipe)","g/km",{"$f":"(WLTP_Warm CH_4)*'LIMITS Greenhouse'!$B$6/1000","v":0}]
[null,null,null,"CO2-eq upstream (Well-to-Tank+)","g/km",{"$f":"P21+S21+V21-(1-(IF(Petrol,'LIMITS Greenhouse'!D21,IF(Diesel,'LIMITS Greenhouse'!D22,IF(E_85,'LIMITS Greenhouse'!D23,1)))))*F30","v":0}]
[]
[null,null,"WLTC+ CAT Cold","max points"]
[null,null,null,"N2O tailpipe","mg/km",{"$f":"(WLTP_CAT1 N2O)","v":0}]
[null,null,null,"CH4 tailpipe","mg/km",{"$f":"(WLTP_CAT1 CH_4)","v":0}]
[null,null,null,"Total CO2 equivalent","g/km",{"$f":"SUM(F39:F42)","v":0}]
[null,null,null,"CO2 tailpipe","g/km",{"$f":"(IF(OR(Petrol,Diesel,CNG_Mono,CNG_Dual,E_85),WLTP_CAT1 CO2_rcb,0))","v":0}]
[null,null,null,"N2O CO2-eq (from tailpipe)","g/km",{"$f":"(WLTP_CAT1 N2O)*'LIMITS Greenhouse'!$B$5/1000","v":0}]
[null,null,null,"CH4 CO2-eq (from tailpipe)","g/km",{"$f":"(WLTP_CAT1 CH_4)*'LIMITS Greenhouse'!$B$6/1000","v":0}]
[null,null,null,"CO2-eq upstream (Well-to-Tank+)","g/km",{"$f":"P22+S22+V22-(1-(IF(Petrol,'LIMITS Greenhouse'!D21,IF(Diesel,'LIMITS Greenhouse'!D22,IF(E_85,'LIMITS Greenhouse'!D23,1)))))*F39","v":0}]
[]
[null,null,"WLTP+ CAT Warm","max points"]
[null,null,null,"N2O tailpipe","mg/km",{"$f":"(WLTP_CAT2 N2O)","v":0}]
[null,null,null,"CH4 tailpipe","mg/km",{"$f":"(WLTP_CAT2 CH_4)","v":0}]
[null,null,null,"Total CO2 equivalent","g/km",{"$f":"SUM(F48:F51)","v":0}]
[null,null,null,"CO2 tailpipe","g/km",{"$f":"(IF(OR(Petrol,Diesel,CNG_Mono,CNG_Dual,E_85),WLTP_CAT2 CO2_rcb,0))","v":0}]
[null,null,null,"N2O CO2-eq (from tailpipe)","g/km",{"$f":"(WLTP_CAT2 N2O)*'LIMITS Greenhouse'!$B$5/1000","v":0}]
[null,null,null,"CH4 CO2-eq (from tailpipe)","g/km",{"$f":"(WLTP_CAT2 CH_4)*'LIMITS Greenhouse'!$B$6/1000","v":0}]
[null,null,null,"CO2-eq upstream (Well-to-Tank+)","g/km",{"$f":"P23+S23+V23-(1-(IF(Petrol,'LIMITS Greenhouse'!D21,IF(Diesel,'LIMITS Greenhouse'!D22,IF(E_85,'LIMITS Greenhouse'!D23,1)))))*F48","v":0}]
[]
[null,null,"BAB130","max points"]
[null,null,null,"N2O tailpipe","mg/km",{"$f":"(BAB_130 N2O)","v":0}]
[null,null,null,"CH4 tailpipe","mg/km",{"$f":"(BAB_130 CH_4)","v":0}]
[null,null,null,"Total CO2 equivalent","g/km",{"$f":"SUM(F57:F60)","v":0}]
[null,null,null,"CO2 tailpipe","g/km",{"$f":"(IF(OR(Petrol,Diesel,CNG_Mono,CNG_Dual,E_85),BAB_130 CO2_rcb,0))","v":0}]
[null,null,null,"N2O CO2-eq (from tailpipe)","g/km",{"$f":"(BAB_130 N2O)*'LIMITS Greenhouse'!$B$5/1000","v":0}]
[null,null,null,"CH4 CO2-eq (from tailpipe)","g/km",{"$f":"(BAB_130 CH_4)*'LIMITS Greenhouse'!$B$6/1000","v":0}]
[null,null,null,"CO2-eq upstream (Well-to-Tank+)","g/km",{"$f":"P24+S24+V24-(1-(IF(Petrol,'LIMITS Greenhouse'!D21,IF(Diesel,'LIMITS Greenhouse'!D22,IF(E_85,'LIMITS Greenhouse'!D23,1)))))*F57","v":0}]
[]
[null,null,{"$f":"'TEST RESULTS'!D10","v":"On-Road Drive"},"max points",{"$f":"SUM(L63:L65)","v":0}]
[null,null,null,"N2O","mg/km",{"$f":"(PEMS_Eco N2O)","v":0},null,null,{"$f":"IF(OR(Hydrogen,Electric),L63,IF(F63=0,Sliding_Scale(F63,J63,K63,L63,0,Slide_Type),IF(#REF!/F63>='LIMITS Efficiency'!#REF!,(1-'LIMITS Efficiency'!#REF!)*Sliding_Scale(F63,J63,K63,L63,0,Slide_Type),Sliding_Scale(F63,J63,K63,L63,0,Slide_Type))))","v":0}]
[null,null,null,"CH4","mg/km",{"$f":"(PEMS_Eco CH_4)","v":0},null,null,{"$f":"IF(OR(Hydrogen,Electric),L64,IF(F64=0,Sliding_Scale(F64,J64,K64,L64,0,Slide_Type),IF(#REF!/F64>='LIMITS Efficiency'!#REF!,(1-'LIMITS Efficiency'!#REF!)*Sliding_Scale(F64,J64,K64,L64,0,Slide_Type),Sliding_Scale(F64,J64,K64,L64,0,Slide_Type))))","v":0}]
[null,null,null,"Total CO2","g/km",{"$f":"SUM(F66:F69)","v":0},null,null,{"$f":"IF(OR(Hydrogen,Electric),L65,IF(F65=0,Sliding_Scale(F65,J65,K65,L65,0,Slide_Type),IF(#REF!/F65>='LIMITS Efficiency'!#REF!,(1-'LIMITS Efficiency'!#REF!)*Sliding_Scale(F65,J65,K65,L65,0,Slide_Type),Sliding_Scale(F65,J65,K65,L65,0,Slide_Type))))","v":0}]
[null,null,null,"CO2 tailpipe","g/km",{"$f":"(IF(OR(Petrol,Diesel,CNG_Mono,CNG_Dual,E_85),PEMS_Eco CO2_rcb,0))","v":0}]
[null,null,null,"CO2 eq N2O","g/km",{"$f":"(PEMS_Eco N2O)*'LIMITS Greenhouse'!$B$5/1000","v":0}]
[null,null,null,"CO2 eq CH4","g/km",{"$f":"(PEMS_Eco CH_4)*'LIMITS Greenhouse'!$B$6/1000","v":0}]
[null,null,null,"CO2-eq upstream","g/km",{"$f":"P25+S25+V25-(1-(IF(Petrol,'LIMITS Greenhouse'!D21,IF(Diesel,'LIMITS Greenhouse'!D22,IF(E_85,'LIMITS Greenhouse'!D23,1)))))*F66","v":0}]
[null,null,"Maintenance",null,null,"Test Results"]
[]
[null,null,null,null,null,"LCA Value"]
[]
[null,null,null,"N2O","g/km",{"$f":"'LCA RESULTS'!I16","v":0},{"$f":"F74*'LIMITS Greenhouse'!B5","v":0}]
[null,null,null,"CH4","g/km",{"$f":"'LCA RESULTS'!I17","v":0},{"$f":"F75*'LIMITS Greenhouse'!B6","v":0}]
[null,null,null,"CO2","g/km",{"$f":"'LCA RESULTS'!I18","v":0},{"$f":"F76*'LIMITS Greenhouse'!B7","v":0}]
[null,null,null,"Total CO2 equivalent","g/km",null,{"$f":"SUM(G74:G76)","v":0}]
[]
[null,"EoL",null,null,null,"LCA Results"]
[]
[null,null,null,null,null,"LCA Value","CO2-eq"]
[]
[null,null,null,"N2O","g/km",{"$f":"'LCA RESULTS'!I24","v":0},{"$f":"F83*'LIMITS Greenhouse'!B5","v":0}]
[null,null,null,"CH4","g/km",{"$f":"'LCA RESULTS'!I25","v":0},{"$f":"F84*'LIMITS Greenhouse'!B6","v":0}]
[null,null,null,"CO2","g/km",{"$f":"'LCA RESULTS'!I26","v":0},{"$f":"F85*'LIMITS Greenhouse'!B7","v":0}]
[null,null,null,"Total CO2 equivalent","g/km",null,{"$f":"SUM(G83:G85)","v":0}]
[]
[]
[null,null,null,null,null,"Direct Emissions g CO2-eq./km",null,null,null,"Thresholds",null,"Max score"]
[]
[null,null,null,null,null,null,null,null,null,"Lower","Upper"]
[]
[null,null,null,null,null,null,{"$f":"AVERAGE((F21+F22+F23),(F30+F31+F32),(F39+F40+F41),(F48+F49+F50),(F57+F58+F59))","v":0},null,{"$f":"MAX(Sliding_Scale(G93,J93,K93,L93,0,Slide_Type),0)","v":10},0,170,10]
[]
[null,null,null,null,null,"Additional LCA Emissions g CO2-eq./km",null,null,null,"Thresholds",null,"Max score"]
[]
[null,null,null,null,null,null,null,null,null,"Lower","Upper"]
[]
[null,null,null,null,null,null,{"$f":"G12+G77+G86+AVERAGE(F24,F33,F42,F51,F60)","v":0},null,{"$f":"MAX(Sliding_Scale(G99,J99,K99,L99,0,Slide_Type),0)","v":10},70,200,10]
[]
[null,null,null,null,null,null,"TOTAL g CO2-eq./km",null,null,"Thresholds",null,"Max score"]
[]
[null,null,null,null,null,null,null,null,null,"Lower","Upper"]
[]
[null,null,null,null,null,null,{"$f":"SUM(G86,G12,G77,AVERAGE(F20,F29,F38,F47,F56))","v":0},null,{"$f":"MAX(Sliding_Scale(G105,J105,K105,L105,0,Slide_Type),0)","v":10},110,300,10]
[]
[null,null,null,"SUMMARY",null,null,null,null,null,null,"max points","score"]
[null,null,null,"PRODUCTION"]
[null,null,null,"USAGE",null,null,null,null,"Testing"]
[null,null,null,null,null,null,null,null,"Tyre & Brake Wear"]
[null,null,null,null,null,null,null,null,"Energy Supply"]
[null,null,null,null,null,null,null,null,"Maintenance"]
[null,null,null,"END OF LIFE"]
[null,null,null,"TRANSPARENCY BONUS"]
[null,null,null,"Total"]
[null,null,null,"TOTAL SCORE GREENHOUSE GASES",null,null,null,null,null,null,"(0-10pts)",{"$f":"(ROUNDDOWN((10*L115/K115),1))","v":{"$error":"#DIV/0!"}}]
[]
[null,null,null,null,null,null,null,null,null,null,"Greenhouse Gas Index",{"$f":"I105/L105*10","v":10}]

{"sheet":"Driving Experience","index":9,"n_rows":216,"n_cols":19,"rows_kept":216,"cut":false,"hidden":false,"merged":[[1,0,137,0],[138,0,179,0],[180,0,217,0]]}
[null,null,"ITEM","Applicability",null,"Assessment"]
["Consumption and Range","Total Score"]
[null,{"$f":"IF(Electric,ROUND(SUM(0.4*I20+0.4*I87+0.2*H136)/(0.4*M18+0.4*M85+0.2*L134)*3,0),IF(OR(Petrol,Diesel,CNG_Mono,E_85),ROUND(SUM(0.7*I20+0*I87+0.3*H136)/(0.7*M18+0*M85+0.3*L134)*3,0),\"?\"))","v":{"$error":"#DIV/0!"}},null,null,null,null,null,{"$f":"IF(OR(Petrol,Diesel,E_85),\"l/100km\",IF(OR(CNG_Dual,CNG_Mono,Hydrogen),\"kg/100km\",IF(Electric,\"kWh/100km\",\"?\")))","v":"kWh/100km"},null,null,"Applicable thresholds",null,"Maximum Score","thresholds l/100km",null,"thresholds kg/100km",null,"thresholds kWh/100km"]
[null,{"$f":"IF(B3<=1,\"Poor\",IF(B3<=2,\"Adequate\",IF(B3<=3,\"Good\",\"??\")))","v":{"$error":"#DIV/0!"}},"Estimated Actual Consumption","ICE, HEV, BEV",null,null,null,"value","score","grade","lower ","upper",null,"lower ","upper","lower ","upper","lower ","upper"]
[null,{"$f":"IF(B4=\"Good\",\"Green\",IF(B4=\"Adequate\",\"Yellow\",IF(B4=\"Poor\",\"Red\")))","v":{"$error":"#DIV/0!"}}]
[null,null,null,null,null,"Warm Weather","urban",{"$f":"'Driving Experience Input'!F4","v":0},{"$f":"IF(H6<=K6,3,IF(H6<=L6,2,1))","v":3},{"$f":"IF(I6=1,\"Red\",IF(I6=2,\"Yellow\",IF(I6=3,\"Green\")))","v":"Green"},{"$f":"IF(OR(Petrol,Diesel,E_85),N6,IF(OR(CNG_Dual,CNG_Mono,Hydrogen),P6,IF(Electric,R6,\"?\")))","v":15.8},19.7,3,6.4,9.1999999999999993,null,null,15.8,19.7]
[null,null,null,null,null,null,"rural",{"$f":"'Driving Experience Input'!G4","v":0},{"$f":"IF(H7<=K7,3,IF(H7<=L7,2,1))","v":3},{"$f":"IF(I7=1,\"Red\",IF(I7=2,\"Yellow\",IF(I7=3,\"Green\")))","v":"Green"},17.2,20.2,3,4.9000000000000004,6.4,null,null,17.2,20.2]
[null,null,null,null,null,null,"highway",{"$f":"'Driving Experience Input'!H4","v":0},3,"Green",19.399999999999999,23,3,5.7,7.3,null,null,19.399999999999999,23]
[null,null,null,null,null,null,"mixed",{"$f":"'Driving Experience Input'!I4","v":0},3,"Green",17.399999999999999,20.399999999999999,3,5.8,7.8,null,null,17.399999999999999,20.399999999999999]
[null,null,null,null,null,null,null,"Sum",{"$f":"SUM(I6:I9)","v":12},null,null,null,{"$f":"SUM(M6:M9)","v":12}]
[null,null,null,null,null,null,null,"Score",{"$f":"ROUND(I10/M10*M11,0)","v":3},{"$f":"IF(I11=1,\"Red\",IF(I11=2,\"Yellow\",IF(I11=3,\"Green\")))","v":"Green"},null,null,3]
[]
[null,null,null,null,null,"Cold Winter","urban",{"$f":"'Driving Experience Input'!F5","v":0},{"$f":"IF(H13<=K13,3,IF(H13<=L13,2,1))","v":3},{"$f":"IF(I13=1,\"Red\",IF(I13=2,\"Yellow\",IF(I13=3,\"Green\")))","v":"Green"},{"$f":"IF(OR(Petrol,Diesel,E_85),N13,IF(OR(CNG_Dual,CNG_Mono,Hydrogen),P13,IF(Electric,R13,\"?\")))","v":25.3},35.5,3,7.9,10.7,null,null,25.3,35.5]
[null,null,null,null,null,null,"rural",{"$f":"'Driving Experience Input'!G5","v":0},{"$f":"IF(H14<=K14,3,IF(H14<=L14,2,1))","v":3},{"$f":"IF(I14=1,\"Red\",IF(I14=2,\"Yellow\",IF(I14=3,\"Green\")))","v":"Green"},20.7,26.2,3,5.3,6.8,null,null,20.7,26.2]
[null,null,null,null,null,null,"highway",{"$f":"'Driving Experience Input'!H5","v":0},3,"Green",25.8,30.7,3,6,7.7,null,null,25.8,30.7]
[null,null,null,null,null,null,"mixed",{"$f":"'Driving Experience Input'!I5","v":0},3,"Green",24.1,31.2,3,6.5,8.6,null,null,24.1,31.2]
[null,null,null,null,null,null,null,"Sum",{"$f":"SUM(I13:I16)","v":12},null,null,null,{"$f":"SUM(M13:M16)","v":12}]
[null,null,null,null,null,null,null,"Score",{"$f":"ROUND(I17/M17*M18,0)","v":3},{"$f":"IF(I18=1,\"Red\",IF(I18=2,\"Yellow\",IF(I18=3,\"Green\")))","v":"Green"},null,null,3]
[]
[null,null,null,null,null,null,null,"Total Section Score",{"$f":"ROUND((I18+I11)/(M11+M18)*3,0)","v":3},{"$f":"IF(I20=1,\"Red\",IF(I20=2,\"Yellow\",IF(I20=3,\"Green\")))","v":"Green"}]
[]
[]
[null,null,null,null,null,null,null,"l/100km",null,null,"Applicable thresholds",null,"Maximum Score"]
[null,null,null,"PHEV",null,null,null,"value","score","grade","lower ","upper"]
[]
[null,null,null,null,null,"Warm Weather - Fuel Mode","urban",{"$f":"'Driving Experience Input'!F24","v":0},{"$f":"IF(H26<=K26,3,IF(H26<=L26,2,1))","v":3},{"$f":"IF(I26=1,\"Red\",IF(I26=2,\"Yellow\",IF(I26=3,\"Green\")))","v":"Green"},5,9,3]
[null,null,null,null,null,null,"rural",{"$f":"'Driving Experience Input'!G24","v":0},{"$f":"IF(H27<=K27,3,IF(H27<=L27,2,1))","v":3},{"$f":"IF(I27=1,\"Red\",IF(I27=2,\"Yellow\",IF(I27=3,\"Green\")))","v":"Green"},3,7,3]
[null,null,null,null,null,null,"highway",{"$f":"'Driving Experience Input'!H24","v":0},3,"Green",4,5,3]
[null,null,null,null,null,null,"mixed",{"$f":"'Driving Experience Input'!I24","v":0},3,"Green",4,9,3]
[null,null,null,null,null,null,null,"Sum",{"$f":"SUM(I26:I29)","v":12},null,null,null,{"$f":"SUM(M26:M29)","v":12}]
[null,null,null,null,null,null,null,"Score",{"$f":"ROUND(I30/M30*M31,0)","v":3},{"$f":"IF(I31=1,\"Red\",IF(I31=2,\"Yellow\",IF(I31=3,\"Green\")))","v":"Green"},null,null,3]
[]
[null,null,null,null,null,"Cold Winter - Fuel Mode","urban",{"$f":"'Driving Experience Input'!F31","v":0},{"$f":"IF(H33<=K33,3,IF(H33<=L33,2,1))","v":3},{"$f":"IF(I33=1,\"Red\",IF(I33=2,\"Yellow\",IF(I33=3,\"Green\")))","v":"Green"},5,9,3]
[null,null,null,null,null,null,"rural",{"$f":"'Driving Experience Input'!G31","v":0},{"$f":"IF(H34<=K34,3,IF(H34<=L34,2,1))","v":3},{"$f":"IF(I34=1,\"Red\",IF(I34=2,\"Yellow\",IF(I34=3,\"Green\")))","v":"Green"},3,7,3]
[null,null,null,null,null,null,"highway",{"$f":"'Driving Experience Input'!H31","v":0},3,"Green",4,5,3]
[null,null,null,null,null,null,"mixed",{"$f":"'Driving Experience Input'!I31","v":0},3,"Green",4,9,3]
[null,null,null,null,null,null,null,"Sum",{"$f":"SUM(I33:I36)","v":12},null,null,null,{"$f":"SUM(M33:M36)","v":12}]
[null,null,null,null,null,null,null,"Score",{"$f":"ROUND(I37/M37*M38,0)","v":3},{"$f":"IF(I38=1,\"Red\",IF(I38=2,\"Yellow\",IF(I38=3,\"Green\")))","v":"Green"},null,null,3]
[]
[]
[null,null,null,null,null,null,null,"kWh/100km",null,null,"Applicable thresholds",null,"Maximum Score"]
[null,null,null,null,null,null,null,"value","score","grade","lower ","upper"]
[]
[null,null,null,null,null,"Warm Weather - Electric Mode","urban",{"$f":"'Driving Experience Input'!F42","v":0},{"$f":"IF(H44<=K44,3,IF(H44<=L44,2,1))","v":3},{"$f":"IF(I44=1,\"Red\",IF(I44=2,\"Yellow\",IF(I44=3,\"Green\")))","v":"Green"},10,20,3]
[null,null,null,null,null,null,"rural",{"$f":"'Driving Experience Input'!G42","v":0},{"$f":"IF(H45<=K45,3,IF(H45<=L45,2,1))","v":3},{"$f":"IF(I45=1,\"Red\",IF(I45=2,\"Yellow\",IF(I45=3,\"Green\")))","v":"Green"},10,20,3]
[null,null,null,null,null,null,"highway",{"$f":"'Driving Experience Input'!H42","v":0},3,"Green",10,20,3]
[null,null,null,null,null,null,"mixed",{"$f":"'Driving Experience Input'!I42","v":0},3,"Green",10,20,3]
[null,null,null,null,null,null,null,"Sum",{"$f":"SUM(I44:I47)","v":12},null,null,null,{"$f":"SUM(M44:M47)","v":12}]
[null,null,null,null,null,null,null,"Score",{"$f":"ROUND(I48/M48*M49,0)","v":3},{"$f":"IF(I49=1,\"Red\",IF(I49=2,\"Yellow\",IF(I49=3,\"Green\")))","v":"Green"},null,null,3]
[]
[null,null,null,null,null,"Cold Winter - Electric Mode","urban",{"$f":"'Driving Experience Input'!F49","v":0},{"$f":"IF(H51<=K51,3,IF(H51<=L51,2,1))","v":3},{"$f":"IF(I51=1,\"Red\",IF(I51=2,\"Yellow\",IF(I51=3,\"Green\")))","v":"Green"},10,20,3]
[null,null,null,null,null,null,"rural",{"$f":"'Driving Experience Input'!G49","v":0},{"$f":"IF(H52<=K52,3,IF(H52<=L52,2,1))","v":3},{"$f":"IF(I52=1,\"Red\",IF(I52=2,\"Yellow\",IF(I52=3,\"Green\")))","v":"Green"},10,20,3]
[null,null,null,null,null,null,"highway",{"$f":"'Driving Experience Input'!H49","v":0},3,"Green",10,20,3]
[null,null,null,null,null,null,"mixed",{"$f":"'Driving Experience Input'!I49","v":0},3,"Green",10,20,3]
[null,null,null,null,null,null,null,"Sum",{"$f":"SUM(I51:I54)","v":12},null,null,null,{"$f":"SUM(M51:M54)","v":12}]
[null,null,null,null,null,null,null,"Score",{"$f":"ROUND(I55/M55*M56,0)","v":3},{"$f":"IF(I56=1,\"Red\",IF(I56=2,\"Yellow\",IF(I56=3,\"Green\")))","v":"Green"},null,null,3]
[]
[null,null,null,null,null,null,null,null,null,null,"Applicable thresholds",null,"Maximum Score","thresholds l/100km",null,"thresholds kW/100km"]
[null,null,null,null,null,null,null,"value","score","grade","lower ","upper",null,"lower ","upper","lower ","upper"]
[]
[null,null,null,null,null,"Warm Weather - Combined Mode","Fuel Consumption",{"$f":"'Driving Experience Input'!F17","v":0},{"$f":"IF(H61<=K61,3,IF(H61<=L61,2,1))","v":3},{"$f":"IF(I61=1,\"Red\",IF(I61=2,\"Yellow\",IF(I61=3,\"Green\")))","v":"Green"},{"$f":"N61","v":5},{"$f":"O61","v":9},3,5,9]
[null,null,null,null,null,"Warm Weather - Combined Mode","Electricity Use",{"$f":"'Driving Experience Input'!G17","v":0},3,"Green",{"$f":"P62","v":10},{"$f":"Q62","v":20},3,null,null,10,20]
[null,null,null,null,null,null,null,"Sum",{"$f":"SUM(I59:I62)","v":6},null,null,null,{"$f":"SUM(M61:M62)","v":6}]
[null,null,null,null,null,null,null,"Score",{"$f":"ROUND(I63/M63*M64,0)","v":3},{"$f":"IF(I64=1,\"Red\",IF(I64=2,\"Yellow\",IF(I64=3,\"Green\")))","v":"Green"},null,null,3]
[]
[null,null,null,null,null,null,null,"Total Section Score",{"$f":"ROUND((I31+I38+I49+I56+I64)/(M31+M38+M49+M56+M64)*3,0)","v":3},{"$f":"IF(I66=1,\"Red\",IF(I66=2,\"Yellow\",IF(I66=3,\"Green\")))","v":"Green"}]
[]
[]
[]
[null,null,"Driving Range","BEV",null,null,null,"km",null,null,"Applicable thresholds",null,"Maximum Score"]
[null,null,null,null,null,null,null,"value","score","grade","lower ","upper"]
[]
[null,null,null,null,null,"Warm Weather","urban",{"$f":"'Driving Experience Input'!F22","v":{"$error":"#DIV/0!"}},{"$f":"IF(H73<K73,1,IF(H73<L73,2,3))","v":{"$error":"#DIV/0!"}},{"$f":"IF(I73=1,\"Red\",IF(I73=2,\"Yellow\",IF(I73=3,\"Green\")))","v":{"$error":"#DIV/0!"}},345,500,3]
[null,null,null,null,null,null,"rural",{"$f":"'Driving Experience Input'!G22","v":{"$error":"#DIV/0!"}},{"$f":"IF(H74<K74,1,IF(H74<L74,2,3))","v":{"$error":"#DIV/0!"}},{"$f":"IF(I74=1,\"Red\",IF(I74=2,\"Yellow\",IF(I74=3,\"Green\")))","v":{"$error":"#DIV/0!"}},320,480,3]
[null,null,null,null,null,null,"highway",{"$f":"'Driving Experience Input'!H22","v":{"$error":"#DIV/0!"}},{"$error":"#DIV/0!"},{"$error":"#DIV/0!"},280,425,3]
[null,null,null,null,null,null,"mixed",{"$f":"'Driving Experience Input'!I22","v":{"$error":"#DIV/0!"}},{"$error":"#DIV/0!"},{"$error":"#DIV/0!"},320,485,3]
[null,null,null,null,null,null,null,"Sum",{"$f":"SUM(I73:I76)","v":{"$error":"#DIV/0!"}},null,null,null,{"$f":"SUM(M73:M76)","v":12}]
[null,null,null,null,null,null,null,"Score",{"$f":"ROUND(I77/M77*M78,0)","v":{"$error":"#DIV/0!"}},{"$f":"IF(I78=1,\"Red\",IF(I78=2,\"Yellow\",IF(I78=3,\"Green\")))","v":{"$error":"#DIV/0!"}},null,null,3]
[]
[null,null,null,null,null,"Cold Winter","urban",{"$f":"'Driving Experience Input'!F23","v":{"$error":"#DIV/0!"}},{"$f":"IF(H80<K80,1,IF(H80<L80,2,3))","v":{"$error":"#DIV/0!"}},{"$f":"IF(I80=1,\"Red\",IF(I80=2,\"Yellow\",IF(I80=3,\"Green\")))","v":{"$error":"#DIV/0!"}},190,315,3]
[null,null,null,null,null,null,"rural",{"$f":"'Driving Experience Input'!G23","v":{"$error":"#DIV/0!"}},{"$f":"IF(H81<K81,1,IF(H81<L81,2,3))","v":{"$error":"#DIV/0!"}},{"$f":"IF(I81=1,\"Red\",IF(I81=2,\"Yellow\",IF(I81=3,\"Green\")))","v":{"$error":"#DIV/0!"}},240,365,3]
[null,null,null,null,null,null,"highway",{"$f":"'Driving Experience Input'!H23","v":{"$error":"#DIV/0!"}},{"$error":"#DIV/0!"},{"$error":"#DIV/0!"},200,315,3]
[null,null,null,null,null,null,"mixed",{"$f":"'Driving Experience Input'!I23","v":{"$error":"#DIV/0!"}},{"$error":"#DIV/0!"},{"$error":"#DIV/0!"},210,330,3]
[null,null,null,null,null,null,null,"Sum",{"$f":"SUM(I80:I83)","v":{"$error":"#DIV/0!"}},null,null,null,{"$f":"SUM(M80:M83)","v":12}]
[null,null,null,null,null,null,null,"Score",{"$f":"ROUND(I84/M84*M85,0)","v":{"$error":"#DIV/0!"}},{"$f":"IF(I85=1,\"Red\",IF(I85=2,\"Yellow\",IF(I85=3,\"Green\")))","v":{"$error":"#DIV/0!"}},null,null,3]
[]
[null,null,null,null,null,null,null,"Total Section Score",{"$f":"ROUND((I85+I78)/(M78+M85)*3,0)","v":{"$error":"#DIV/0!"}},{"$f":"IF(I87=1,\"Red\",IF(I87=2,\"Yellow\",IF(I87=3,\"Green\")))","v":{"$error":"#DIV/0!"}}]
[]
[]
[]
[null,null,null,"PHEV",null,null,null,"km",null,null,"Applicable thresholds",null,"Maximum Score"]
[null,null,null,null,null,null,null,"value","score","grade","lower ","upper"]
[]
[null,null,null,null,null,"Warm Weather","Pure El. Range",{"$f":"'Driving Experience Input'!F28","v":0},{"$f":"IF(H94<=K94,3,IF(H94<=L94,2,1))","v":3},{"$f":"IF(I94=1,\"Red\",IF(I94=2,\"Yellow\",IF(I94=3,\"Green\")))","v":"Green"},20,70,3]
[null,null,null,null,null,"Warm Weather","EAER",{"$f":"'Driving Experience Input'!G28","v":0},3,"Green",20,70,3]
[null,null,null,null,null,"Cold Winter ","Pure El. Range",{"$f":"'Driving Experience Input'!F29","v":0},3,"Green",5,15,3]
[null,null,null,null,null,"-","-","-","-","-","-","-","-"]
[null,null,null,null,null,null,null,"Sum",{"$f":"SUM(I94:I96)","v":9},null,null,null,{"$f":"SUM(M94:M96)","v":9}]
[null,null,null,null,null,null,null,"Score",{"$f":"ROUND(I98/M98*M99,0)","v":3},{"$f":"IF(I99=1,\"Red\",IF(I99=2,\"Yellow\",IF(I99=3,\"Green\")))","v":"Green"},null,null,3]
[]
[null,null,null,null,null,null,null,"Total Section Score",{"$f":"I99","v":3},{"$f":"J99","v":"Green"}]
[]
[]
[]
[null,null,"Accuracy of Display","BEV, HEV",null,null,null,null,null,"thresholds positive deviation",null,"thresholds negative deviation",null,"Maximum Score"]
[null,null,null,"ICE, PHEV",null,"Deviation Fuel Consumption","Value","score","grade","lower","upper","lower","upper"]
[null,null,"gas vehicles not yet considered",null,null,"l/100km"]
[null,null,"score formula not for PHEV",null,null,"WLTC+ Warm",{"$f":"IF(AND('Driving Experience Input'!F36=0,'Driving Experience Input'!H36=0),,IF(AND('Driving Experience Input'!F36<>0,'Driving Experience Input'!H36<>0),('Driving Experience Input'!F36-'Driving Experience Input'!H36),))","v":0},{"$f":"IF(G108=0,\"\",IF(AND(G108>=0,G108<=J108),3,IF(AND(G108>=0,G108>J108,G108<K108),2,IF(AND(G108>=0,G108>=K108),1,IF(AND(G108<=0,ABS(G108)<=L108),3,IF(AND(G108<=0,ABS(G108)>L108,ABS(G108)<M108),2,IF(AND(G108<=0,ABS(G108)>=M108),1,\"\")))))))","v":""},{"$f":"IF(G108=0,\"\",IF(H108=1,\"Red\",IF(H108=2,\"Yellow\",IF(H108=3,\"Green\"))))","v":""},0.5,1,{"$f":"2*J108","v":1},{"$f":"2*K108","v":2},3]
[null,null,null,null,null,"WLTC+ CAT Cold (-7°C)",{"$f":"IF(AND('Driving Experience Input'!F37=0,'Driving Experience Input'!H37=0),,IF(AND('Driving Experience Input'!F37<>0,'Driving Experience Input'!H37<>0),('Driving Experience Input'!F37-'Driving Experience Input'!H37),))","v":0},{"$f":"IF(G109=0,\"\",IF(AND(G109>=0,G109<=J109),3,IF(AND(G109>=0,G109>J109,G109<K109),2,IF(AND(G109>=0,G109>=K109),1,IF(AND(G109<=0,ABS(G109)<=L109),3,IF(AND(G109<=0,ABS(G109)>L109,ABS(G109)<M109),2,IF(AND(G109<=0,ABS(G109)>=M109),1,\"\")))))))","v":""},"",0.5,1,{"$f":"2*J109","v":1},{"$f":"2*K109","v":2},3]
[null,null,null,null,null,"WLTC+ CAT Warm (-7°C)",{"$f":"IF(AND('Driving Experience Input'!F38=0,'Driving Experience Input'!H38=0),,IF(AND('Driving Experience Input'!F38<>0,'Driving Experience Input'!H38<>0),('Driving Experience Input'!F38-'Driving Experience Input'!H38),))","v":0},"",{"$f":"IF(G110=0,\"\",IF(H110=1,\"Red\",IF(H110=2,\"Yellow\",IF(H110=3,\"Green\"))))","v":""},0.5,1,1,2,3]
[null,null,null,null,null,"BAB130 Motorway",{"$f":"IF(AND('Driving Experience Input'!F39=0,'Driving Experience Input'!H39=0),,IF(AND('Driving Experience Input'!F39<>0,'Driving Experience Input'!H39<>0),('Driving Experience Input'!F39-'Driving Experience Input'!H39),))","v":0},"",{"$f":"IF(G111=0,\"\",IF(H111=1,\"Red\",IF(H111=2,\"Yellow\",IF(H111=3,\"Green\"))))","v":""},0.5,1,1,2,3]
[null,null,null,null,null,"On-Road Drive",{"$f":"IF(AND('Driving Experience Input'!F40=0,'Driving Experience Input'!H40=0),,IF(AND('Driving Experience Input'!F40<>0,'Driving Experience Input'!H40<>0),('Driving Experience Input'!F40-'Driving Experience Input'!H40),))","v":0},"","",0.5,1,1,2,3]
[null,null,null,null,null,"PHEV: WLTC+ Cold CD Sequence",null,null,null,null,null,null,null,3]
[null,null,null,null,null,"PHEV: WLTC+ CAT Cold (-7°C) CD",null,null,null,null,null,null,null,3]
[null,null,null,null,null,"PHEV: On-Road Drive CD",null,null,null,null,null,null,null,3]
[]
[]
[null,null,null,null,null,null,null,null,null,"thresholds positive deviation",null,"thresholds negative deviation",null,"Maximum Score"]
[null,null,null,null,null,"Deviation Electricity Use","Value","score","grade","lower","upper","lower","upper"]
[null,null,null,null,null,"kWh/100km"]
[null,null,null,null,null,"WLTC+ Warm",{"$f":"IF(AND('Driving Experience Input'!G36=0,'Driving Experience Input'!I36=0),,IF(AND('Driving Experience Input'!G36<>0,'Driving Experience Input'!I36<>0),('Driving Experience Input'!G36-'Driving Experience Input'!I36),))","v":0},{"$f":"IF(G121=0,\"\",IF(AND(G121>=0,G121<=J121),3,IF(AND(G121>=0,G121>J121,G121<K121),2,IF(AND(G121>=0,G121>=K121),1,IF(AND(G121<=0,ABS(G121)<=L121),3,IF(AND(G121<=0,ABS(G121)>L121,ABS(G121)<M121),2,IF(AND(G121<=0,ABS(G121)>=M121),1,\"\")))))))","v":""},{"$f":"IF(G121=0,\"\",IF(H121=1,\"Red\",IF(H121=2,\"Yellow\",IF(H121=3,\"Green\"))))","v":""},0.5,1,{"$f":"2*J121","v":1},{"$f":"2*K121","v":2},3]
[null,null,null,null,null,"WLTC+ CAT Cold (-7°C)",{"$f":"IF(AND('Driving Experience Input'!G37=0,'Driving Experience Input'!I37=0),,IF(AND('Driving Experience Input'!G37<>0,'Driving Experience Input'!I37<>0),('Driving Experience Input'!G37-'Driving Experience Input'!I37),))","v":0},{"$f":"IF(G122=0,\"\",IF(AND(G122>=0,G122<=J122),3,IF(AND(G122>=0,G122>J122,G122<K122),2,IF(AND(G122>=0,G122>=K122),1,IF(AND(G122<=0,ABS(G122)<=L122),3,IF(AND(G122<=0,ABS(G122)>L122,ABS(G122)<M122),2,IF(AND(G122<=0,ABS(G122)>=M122),1,\"\")))))))","v":""},"",0.5,1,{"$f":"2*J122","v":1},{"$f":"2*K122","v":2},3]
[null,null,null,null,null,"WLTC+ CAT Warm (-7°C)",{"$f":"IF(AND('Driving Experience Input'!G38=0,'Driving Experience Input'!I38=0),,IF(AND('Driving Experience Input'!G38<>0,'Driving Experience Input'!I38<>0),('Driving Experience Input'!G38-'Driving Experience Input'!I38),))","v":0},"",{"$f":"IF(G123=0,\"\",IF(H123=1,\"Red\",IF(H123=2,\"Yellow\",IF(H123=3,\"Green\"))))","v":""},0.5,1,1,2,3]
[null,null,null,null,null,"BAB130 Motorway",{"$f":"IF(AND('Driving Experience Input'!G39=0,'Driving Experience Input'!I39=0),,IF(AND('Driving Experience Input'!G39<>0,'Driving Experience Input'!I39<>0),('Driving Experience Input'!G39-'Driving Experience Input'!I39),))","v":0},"",{"$f":"IF(G124=0,\"\",IF(H124=1,\"Red\",IF(H124=2,\"Yellow\",IF(H124=3,\"Green\"))))","v":""},0.5,1,1,2,3]
[null,null,null,null,null,"On-Road Drive",{"$f":"IF(AND('Driving Experience Input'!G40=0,'Driving Experience Input'!I40=0),,IF(AND('Driving Experience Input'!G40<>0,'Driving Experience Input'!I40<>0),('Driving Experience Input'!G40-'Driving Experience Input'!I40),))","v":0},"","",0.5,1,1,2,3]
[null,null,null,null,null,"PHEV: WLTC+ Cold CD Sequence",null,null,null,null,null,null,null,3]
[null,null,null,null,null,"PHEV: WLTC+ CAT Cold (-7°C) CD",null,null,null,null,null,null,null,3]
[null,null,null,null,null,"PHEV: On-Road Drive CD",null,null,null,null,null,null,null,3]
[]
[null,null,null,null,null,null,"avg deviation","score","grade",null,null,"Maximum Score"]
[null,null,null,null,null,"AVG Score Fuel Consumption [l/100km]",{"$f":"ROUND(AVERAGEIF(G108:G112,\"<>0\"),2)","v":{"$error":"#DIV/0!"}},{"$f":"ROUND(AVERAGE(H108:H112),0)","v":{"$error":"#DIV/0!"}},{"$f":"IF(H131=1,\"Red\",IF(H131=2,\"Yellow\",IF(H131=3,\"Green\")))","v":{"$error":"#DIV/0!"}},null,null,3]
[null,null,null,null,null,"AVG Score Electricity Use [kWh/100km]",{"$f":"ROUND(AVERAGEIF(G121:G125,\"<>0\"),2)","v":{"$error":"#DIV/0!"}},{"$f":"ROUND(AVERAGE(H121:H125),0)","v":{"$error":"#DIV/0!"}},{"$f":"IF(H132=1,\"Red\",IF(H132=2,\"Yellow\",IF(H132=3,\"Green\")))","v":{"$error":"#DIV/0!"}},null,null,3]
[]
[null,null,null,null,null,null,"Score",{"$f":"IF(OR(Petrol, Diesel,E_85),H131,IF(Electric,H132,\"??\"))","v":{"$error":"#DIV/0!"}},{"$f":"IF(H134<=1,\"Red\",IF(AND(1<H134,H134<=2),\"Yellow\",IF(AND(2<H134,H134<=3),\"Green\")))","v":{"$error":"#DIV/0!"}},null,null,3]
[]
[null,null,null,null,null,null,"Total Section Score",{"$f":"H134","v":{"$error":"#DIV/0!"}},{"$f":"I134","v":{"$error":"#DIV/0!"}}]
[]
[]
["Cold Winter Performance","Total Score"]
[null,{"$f":"IF(Electric,ROUND((I148+I164+I179)/(M146+M162+M175)*3,0),IF(AND(OR(Petrol,Diesel,E_85),SPECS!M11=TRUE),ROUND((I164+I179)/(M162+M175)*3,0),))","v":2},"Driving Range Benefit of Pre-Warming","BEV",null,null,null,"km",null,null,"Applicable thresholds",null,"Maximum Score"]
[null,{"$f":"IF(AND(OR(Petrol,Diesel,E_85),SPECS!M11=FALSE),\"Not Applicable\",IF(B140<=1,\"Poor\",IF(B140<=2,\"Adequate\",IF(B140<=3,\"Good\",\"\"))))","v":"Adequate"},null,null,null,null,null,"value","score","grade","lower ","upper"]
[null,{"$f":"IF(B141=\"Good\",\"Green\",IF(B141=\"Adequate\",\"Yellow\",IF(B141=\"Poor\",\"Red\",IF(B141=\"Not Applicable\",\"Grey\",))))","v":"Yellow"}]
[null,null,null,null,null,"Diference CAT Warm to CAT Cold","Urban Trip",{"$f":"'Driving Experience Input'!F48","v":0},{"$f":"IF(H143<=K143,1,IF(H143<=L143,2,3))","v":1},{"$f":"IF(I143=1,\"Red\",IF(I143=2,\"Yellow\",IF(I143=3,\"Green\")))","v":"Red"},80,130,3]
[null,null,null,null,null,"Diference CAT Warm to CAT Cold","Mixed Trip",{"$f":"'Driving Experience Input'!F49","v":0},{"$f":"IF(H144<=K144,1,IF(H144<=L144,2,3))","v":1},{"$f":"IF(I144=1,\"Red\",IF(I144=2,\"Yellow\",IF(I144=3,\"Green\")))","v":"Red"},50,80,3]
[null,null,null,null,null,null,null,"Sum",{"$f":"SUM(I143:I144)","v":2},null,null,null,{"$f":"SUM(M143:M144)","v":6}]
[null,null,null,null,null,null,null,"Score",{"$f":"ROUND(I145/M145*M146,0)","v":1},{"$f":"IF(I146=1,\"Red\",IF(I146=2,\"Yellow\",IF(I146=3,\"Green\")))","v":"Red"},null,null,3]
[]
[null,null,null,null,null,null,null,"Total Section Score",{"$f":"I146","v":1},{"$f":"J146","v":"Red"}]
[]
[]
[null,null,"Cabin Heating","HEV, BEV, PHEV",null,"Time to reach 16°C [s]",null,"time [s]",null,null,"Applicable thresholds",null,"Maximum Score"]
[null,null,null,null,null,null,null,"value","score","grade","lower ","upper","for Temperature"]
[]
[null,null,null,null,null,null,"Front Right Head Area",{"$f":"'Driving Experience Input'!F53","v":0},{"$f":"IF(H154<=K154,3,IF(H154<=L154,2,1))","v":3},{"$f":"IF(I154=1,\"Red\",IF(I154=2,\"Yellow\",IF(I154=3,\"Green\")))","v":"Green"},300,480,3]
[null,null,null,null,null,null,"Front Right Footwell",{"$f":"'Driving Experience Input'!F54","v":0},{"$f":"IF(H155<=K155,3,IF(H155<=L155,2,1))","v":3},{"$f":"IF(I155=1,\"Red\",IF(I155=2,\"Yellow\",IF(I155=3,\"Green\")))","v":"Green"},300,480,3]
[null,null,null,null,null,null,"Rear Head Area",{"$f":"'Driving Experience Input'!G53","v":0},3,"Green",420,600,3]
[null,null,null,null,null,null,"Front Left Head Area",{"$f":"H154","v":0},3,"Green",{"$f":"K154","v":300},{"$f":"L154","v":480},3]
[null,null,null,null,null,null,"Front Left Footwell",{"$f":"H155","v":0},3,"Green",{"$f":"K155","v":300},{"$f":"L155","v":480},3]
[null,null,null,null,null,null,"Rear Left Footwell",{"$f":"'Driving Experience Input'!G54","v":0}]
[null,null,null,null,null,null,"Rear Right Footwell",{"$f":"'Driving Experience Input'!H54","v":0}]
[null,null,null,null,null,null,null,"Sum",{"$f":"SUM(I154:I158)","v":15},null,null,null,{"$f":"SUM(M154:M158)","v":15}]
[null,null,null,null,null,null,null,"Score",{"$f":"ROUND(I161/M161*M162,0)","v":3},{"$f":"IF(I162=1,\"Red\",IF(I162=2,\"Yellow\",IF(I162=3,\"Green\")))","v":"Green"},null,null,3]
[]
[null,null,null,null,null,null,null,"Total Section Score",{"$f":"I162","v":3},{"$f":"J162","v":"Green"}]
[]
[]
[]
[null,null,"Additional Heating Functions","HEV, BEV, PHEV",null,"Only Checkboxes for additional consumer info, no assessment. See sheet \"Driving Experience Input\"."]
[]
[]
[]
[null,null,"Cabin Thermal Insulation","HEV, BEV, PHEV",null,null,null,"time [s]",null,null,"Applicable thresholds",null,"Maximum Score"]
[null,null,null,null,null,null,null,"value","score","grade","lower ","upper"]
[null,null,null,null,null,"Temperature drop after 30 min at -7°C"]
[null,null,null,null,null,null,"Temperature drop",{"$f":"'Driving Experience Input'!I76","v":18},{"$f":"IF(H175<=K175,3,IF(H175<=L175,2,1))","v":1},{"$f":"IF(I175=1,\"Red\",IF(I175=2,\"Yellow\",IF(I175=3,\"Green\")))","v":"Red"},5.5,9,3]
[]
[null,null,null,null,null,null,null,"Score",{"$f":"I175","v":1},{"$f":"IF(I177=1,\"Red\",IF(I177=2,\"Yellow\",IF(I177=3,\"Green\")))","v":"Red"}]
[]
[null,null,null,null,null,null,null,"Total Section Score",{"$f":"I177","v":1},{"$f":"J177","v":"Red"}]
[]
["Charging Capability","Total Score"]
[null,{"$f":"IF(Electric,ROUND((I192+I203+I216)/(M188+M199+K214)*3,0),)","v":1},"Pre-Charge Battery Conditioning ","BEV",null,"Only Checkboxes for additional consumer info, no assessment. See sheet \"Driving Experience Input\"."]
[null,{"$f":"IF(Electric,IF(B182<=1,\"Poor\",IF(B182<=2,\"Adequate\",IF(B182<=3,\"Good\"))),\"Not Applicable\")","v":"Poor"}]
[null,{"$f":"IF(B183=\"Good\",\"Green\",IF(B183=\"Adequate\",\"Yellow\",IF(B183=\"Poor\",\"Red\",IF(B183=\"Not Applicable\",\"Grey\",))))","v":"Red"}]
[null,null,"Fast Charging Performance","BEV",null,null,null,"percentage/min",null,null,"Applicable thresholds",null,"Maximum Score"]
[null,null,null,null,null,null,null,"value","score","grade","lower ","upper"]
[null,null,null,null,null,"Average Battery % charged per minute"]
[null,null,null,null,null,null,"batt%/minute",{"$f":"'Driving Experience Input'!F87","v":0},{"$f":"IF(H188<=K188,1,IF(H188<=L188,2,3))","v":1},{"$f":"IF(I188=1,\"Red\",IF(I188=2,\"Yellow\",IF(I188=3,\"Green\")))","v":"Red"},2,2.8,3]
[]
[null,null,null,null,null,null,null,"Score",{"$f":"I188","v":1},{"$f":"IF(I190=1,\"Red\",IF(I190=2,\"Yellow\",IF(I190=3,\"Green\")))","v":"Red"}]
[]
[null,null,null,null,null,null,null,"Total Section Score",{"$f":"I190","v":1},{"$f":"IF(I192<=1,\"Red\",IF(AND(1<I192,I192<=2),\"Yellow\",IF(AND(2<I192,I192<=3),\"Green\")))","v":"Red"}]
[]
[]
[]
[null,null,"Home Charging Efficiency","BEV",null,"Grid-to-battery-output efficiency in home charging",null,"percentage",null,null,"Applicable thresholds",null,"Maximum Score"]
[null,null,null,null,null,null,null,"value","score","grade","lower ","upper"]
[]
[null,null,null,null,null,null,"Efficiency",{"$f":"'Driving Experience Input'!F95","v":0},{"$f":"IF(H199<=K199,1,IF(H199<=L199,2,3))","v":1},{"$f":"IF(I199=1,\"Red\",IF(I199=2,\"Yellow\",IF(I199=3,\"Green\")))","v":"Red"},0.85,0.9,3]
[]
[null,null,null,null,null,null,null,"Score",{"$f":"I199","v":1},{"$f":"IF(I201=1,\"Red\",IF(I201=2,\"Yellow\",IF(I201=3,\"Green\")))","v":"Red"}]
[]
[null,null,null,null,null,null,null,"Total Section Score",{"$f":"I201","v":1},{"$f":"J201","v":"Red"}]
[]
[]
[]
[null,null,"Bidirectional Charging","BEV"]
[null,null,null,null,null,null,null,"value","score","grade","Maximum Score","Applicable thresholds"]
[null,null,null,null,null,null,null,null,null,null,null,"lower ","upper"]
[null,null,null,null,null,null,"Power Output [kW]",{"$f":"'Driving Experience Input'!F102","v":0},{"$f":"IF(H210<=L210,1,IF(H210<=M210,2,3))","v":1},{"$f":"IF(I210=1,\"Red\",IF(I210=2,\"Yellow\",IF(I210=3,\"Green\")))","v":"Red"},3,3,7.4]
[null,null,null,null,null,null,"Compatibility",{"$f":"'Driving Experience Input'!F103","v":0},{"$f":"IF(H211=L211,2,IF(H211=M211,2,IF(H211=N211,3,1)))","v":1},{"$f":"IF(I211=1,\"Red\",IF(I211=2,\"Yellow\",IF(I211=3,\"Green\")))","v":"Red"},3,{"$f":"'Driving Experience Input'!J103","v":"V2L"},{"$f":"'Driving Experience Input'!J104","v":"V2H"},{"$f":"'Driving Experience Input'!J105","v":"V2G"}]
[null,null,null,null,null,null,"Grid Integration",{"$f":"'Driving Experience Input'!F104","v":0},{"$f":"IF(H212=L212,1,IF(H212=M212,2,IF(H212=N212,3,1)))","v":1},{"$f":"IF(I212=1,\"Red\",IF(I212=2,\"Yellow\",IF(I212=3,\"Green\")))","v":"Red"},3,{"$f":"'Driving Experience Input'!J107","v":"Basic"},{"$f":"'Driving Experience Input'!J108","v":"Limited"},{"$f":"'Driving Experience Input'!J109","v":"Advanced"}]
[null,null,null,null,null,null,null,"Sum",{"$f":"SUM(I210:I212)","v":3},null,{"$f":"SUM(K210:K212)","v":9}]
[null,null,null,null,null,null,null,"Score",{"$f":"ROUND(I213/K213*K214,0)","v":1},"Red",3]
[]
[null,null,null,null,null,null,null,"Total Section Score",{"$f":"I214","v":1},{"$f":"J214","v":"Red"}]

{"sheet":"LIMITS Clean Air","index":10,"n_rows":102,"n_cols":24,"rows_kept":102,"cut":false,"hidden":false,"merged":[[2,18,2,22],[1,0,1,11],[3,5,3,6],[17,1,18,2],[3,1,3,2],[17,5,18,6],[3,9,3,10],[17,9,18,10],[3,13,3,15],[17,13,18,15]]}
[]
["Clean Air (Pollutants)"]
[null,null,null,null,null,null,null,null,null,null,null,null,null,null,null,null,null,null,"Upstream LCA Factors (W-t-T) mg/kWh",null,null,null,null,"Energy Source"]
[null,"Upper Thresholds (labtests \nw/o WLTC+ CAT (-7°C))",null,"gross excess",null,"Upper Thresholds\n(On-Road Drive)",null,"gross excess",null,"Upper Thresholds\n WLTC+ CAT (-7°C)\n (extended bouderies)",null,"gross excess",null,"Congestion Simulation\nUpper Thresholds",null,null,null,null,"Petrol E10","Diesel B7","Electric EU27","Hydrogen natural gas","Petrol E85",{"$f":"IF(Petrol,\"Petrol\",IF(Diesel,\"Diesel\",IF(Electric,\"Electric\",IF(Hydrogen,\"Hydrogen\",IF(E_85,\"Ethanol E85\")))))","v":"Electric"}]
[null,null,null,null,null,null,null,null,null,null,null,null,null,null,"Max","Average",null,"NMHC",145,153,32.624275877191188,189.90104569869035,83,{"$f":"IF(Petrol,S5,IF(Diesel,T5,IF(Electric,U5,\"\")))","v":32.624275877191188}]
[null,"NMHC",68,{"$f":"1.5*C6","v":102},null,"NMHC",{"$f":"C6*$H$14","v":89.76},{"$f":"1.5*G6","v":134.64000000000001},null,"NMHC",{"$f":"C6*$L$14","v":89.76},{"$f":"1.5*K6","v":134.64000000000001},null,null,"mg/s","mg/s",null,"NOx",216,207,305.9162191945058,131,363,305.9162191945058]
[null,"NOx",60,{"$f":"1.5*C7","v":90},null,"NOx",79.2,{"$f":"1.5*G7","v":118.80000000000001},null,"NOx",79.2,{"$f":"1.5*K7","v":118.80000000000001},null,"NOx",1,0.5,null,"NO2"]
[null,"NO2",20,{"$f":"1.5*C8","v":30},null,"NO2",26.400000000000002,39.6,null,"NO2",26.400000000000002,39.6,null,null,null,null,null,"NH3",46,32,2.0783638327422995,2.6998843926282095,510,2.0783638327422995]
[null,"NH3",10,15,null,"NH3",13.200000000000001,19.8,null,"NH3",13.200000000000001,19.8,null,null,null,null,null,"CO",131,120,135.31811326033312,92.89515953553007,312,135.31811326033312]
[null,"CO",500,750,null,"CO",660,990,null,"CO",660,990,null,null,null,null,null,"PM2.5",382,379.37514783914361,383.46174005324042,99.380596492692518,146,383.46174005324042]
[null,"PM",4.5,6.75,null,"PM",5.94,8.91,null,"PM",5.94,8.91,null,null,null,null,null,"PN"]
[null,"PN10/23",600000000000,6000000000000,null,"PN10/23",792000000000,1188000000000,null,"PN10/23",792000000000,1188000000000,null,null,null,null,null,"SOx",397,392,188.01940248436532,43.298558415432296,209,{"$f":"IF(Petrol,S12,IF(Diesel,T12,IF(Electric,U12,\"\")))","v":188.01940248436532}]
[null,"log10 (PN10/23) = ",{"$f":"LOG10(C12)","v":11.778151250383644},{"$f":"LOG10(D12)","v":12.778151250383644},null,"log10 (PN10/23) = ",{"$f":"LOG10(G12)","v":11.898725181589494},{"$f":"LOG10(H12)","v":12.074816440645174},null,"log10 (PN10/23) = ",{"$f":"LOG10(K12)","v":11.898725181589494},{"$f":"LOG10(L12)","v":12.074816440645174}]
[null,null,null,null,null,null,"CF:",1.32,null,null,"CF:",1.32]
[]
[]
[]
[null,"Lower Thresholds",null,null,null,"Lower Thresholds",null,null,null,"Lower Thresholds ",null,null,null,"Friction brake share WLTC+ Warm"]
[]
[null,"NMHC",0.5,null,null,"NMHC",{"$f":"C20","v":0.5},null,null,"NMHC",{"$f":"G20","v":0.5},null,null,"Fixed factors"]
[null,"NOx",0.5,null,null,"NOx",0.5,null,null,"NOx",0.5,null,null,"Conventional vehicles",null,100]
[null,"NO2",0,null,null,"NO2",0,null,null,"NO2",0,null,null,"HEV <=20 V",null,90]
[null,"NH3",0.1,null,null,"NH3",0.1,null,null,"NH3",0.1,null,null,"HEV <=60 V",null,72]
[null,"CO",5,null,null,"CO",5,null,null,"CO",5,null,null,"HEV ",null,52]
[null,"PM",0,null,null,"PM",0,null,null,"PM",0,null,null,"PHEV",null,34]
[null,"PN10/23",100000000,null,null,"PN10/23",100000000,null,null,"PN10/23",100000000,null,null,"Measured values"]
[null,"log10 (PN23) = ",{"$f":"LOG10(C26)","v":8},null,null,"log10 (PN23) = ",{"$f":"LOG10(G26)","v":8},null,null,"log10 (PN23) = ",{"$f":"LOG10(K26)","v":8},null,null,"PEV"]
[]
[]
[]
[]
[]
[]
[]
[]
[]
[]
[]
[]
[]
[]
[]
[]
[]
[]
[]
[]
[]
[]
[]
[]
[]
[]
[]
[]
[]
[]
[]
[]
[]
[]
[]
[]
[]
[]
[]
[]
[]
[]
[]
[]
[]
[]
[]
[]
[]
[]
[]
[]
[]
[]
[]
[]
[]
[]
[]
[]
[]
[]
[]
[]
[]
[]
[]
[]
[]
[]
[]
[]
[]
[]
[null,null,null,null,"=SI(ET(MOYENNE(E102,Efficiency!F29,Greenhouse!F93)>='LIMITS Clean Air'!P19,(MIN(Greenhouse!F93,Efficiency!F29,'Clean Air'!E102)>='LIMITS Clean 'LIMITS Clean Air'!P19Air'!P23)),\"YES\",\"NO\")"]

{"sheet":"LIMITS Efficiency","index":11,"n_rows":17,"n_cols":9,"rows_kept":17,"cut":false,"hidden":false,"merged":[[4,6,4,7],[14,1,14,4],[1,1,1,4],[4,1,4,2]]}
[]
[null,"Energy Efficiency"]
[]
[null,"Fuel / Energy Consumption Conversion Factors"]
[null,"Multiplication liquid fuel (l/100km) or gaseous fuel (kg/100km) --> energy (kWh/100km)",null,null,null,null,"LCA  Upstream Factors (W-t-W) (kWh/kWh)",null,"Relevant here"]
[null,"Energy Carrier","Factor (default)",null,null,null,{"$f":"B7","v":"Petrol E10"},1.35,{"$f":"IF(Petrol,H6,IF(Diesel,H7,IF(Electric,H9,IF(E_85,H11,IF(Hydrogen,H10,IF(CNG_Mono,H8))))))","v":2.1215999999999999}]
[null,"Petrol E10",8.64,null,null,null,"Diesel B7",1.27]
[null,"Diesel B7",9.7899999999999991,null,null,null,"CNG",1.1599999999999999]
[null,"CNG",13.8925,null,null,null,"Electric",{"$f":"2.08*1.02","v":2.1215999999999999}]
[null,"Electric",1,null,null,null,"Hydrogene",1.78]
[null,"Hydrogene",33.61,null,null,null,"Ethanol E85",2.29]
[null,"Ethanol E85",6.41]
[]
[]
[null,"Driving Resistance Thresholds"]
[null,null,"Unit","Lower","Upper"]
[null,"Avg F@25 kph","N",100,200]

{"sheet":"LIMITS Greenhouse","index":12,"n_rows":25,"n_cols":4,"rows_kept":25,"cut":false,"hidden":false,"merged":[[22,1,22,2],[17,1,18,3],[19,1,19,3],[20,1,20,2],[21,1,21,2],[15,1,15,2],[8,1,8,3],[10,1,10,2],[11,1,11,2],[12,1,12,2],[14,1,14,2],[9,1,9,3],[13,1,13,2],[1,1,1,6],[3,2,3,3],[4,2,4,3],[5,2,5,3],[6,2,6,3]]}
[]
[null,"Greenhouse gases"]
[]
[null,"GWP"]
[null,298,"N2O"]
[null,34,"CH4"]
[null,1,"CO2"]
[]
[null,"CO2-eq upstream factor (W-t-T)"]
[null,"kWh/100km > gCO2-eq./km "]
[null,"Petrol E10",null,0.85499999999999998]
[null,"Diesel B7",null,0.65900000000000003]
[null,"Electricity EU27","NO2",{"$f":"2.082*1.02","v":2.12364}]
[null,"CNG",null,0.438]
[null,"Hydrogen (nat. gas)",null,3.53]
[null,"Ethanol E85",null,1.655]
[]
[null,"Upstream CO2 reduction factor due to neutral bio-fuel share combustion carbon balance"]
[]
[null,"-"]
[null,"Petrol E10",null,0.93100000000000005]
[null,"Diesel B7",null,0.93500000000000005]
[null,"Ethanol E85",null,0.214]
[]
[null,"Assumed Lifetime Mileage [km]: ",240000]

{"sheet":"WEBSITE SUMMARY","index":13,"n_rows":389,"n_cols":9,"rows_kept":389,"cut":false,"hidden":false,"merged":[]}
["Car Model",{"$f":"CONCATENATE(SPECS!B1,\" \",SPECS!B2)","v":" "},null,"Type"]
["Type",{"$f":"SPECS!B3","v":0},null,null,null,null,null,"Keep for child"]
["Country of Manufacturing",{"$f":"IF(SPECS!B6=0,\"\",SPECS!B6)","v":"Europe"},"New 2025",null,"will overwrite manual input in dashboard!",null,null,"Keep for child"]
["Start of Production",{"$f":"IF(SPECS!B42=\"\",\"\",SPECS!B42)","v":""},"New 2301","empty or date: DD/MM/YYYY","currently not in use"]
["End of Production",{"$f":"IF(SPECS!B43<=SPECS!B42,\"\",IF(SPECS!B43=\"\",\"\",SPECS!B43))","v":""},"New 2301","empty or date: DD/MM/YYYY","currently not in use"]
["Engine",{"$f":"SPECS!B8","v":"Electric"},null,null,null,null,null,"Take from basemodel"]
["Gearbox",{"$f":"SPECS!B26","v":0},null,null,null,null,null,"Take from basemodel"]
["Number of Doors",{"$f":"SPECS!B28","v":0},"New 2301","Number - no decimals",null,null,null,"obsolete if child"]
["Emissions Class",{"$f":"SPECS!B30","v":0},null,null,null,null,null,"Take from basemodel"]
["Stars",{"$f":"Stars","v":5},null,null,null,null,null,"Take from basemodel"]
["Test #",{"$f":"SPECS!B4","v":0}]
["Engine Size 2",{"$f":"SPECS!B32","v":0},null,null,null,null,null,"Take from basemodel"]
["Mass",{"$f":"SPECS!B41","v":0},null,null,null,null,null,"obsolete if child"]
["Clean Air Index",{"$f":"ROUND('Clean Air'!Q134,1)","v":8.5},null,null,null,null,null,"Take from basemodel"]
["CA Exhaust Emissions - Score",{"$f":"ROUND('Clean Air'!O119,1)","v":10},"New 2025","Number - 1 decimal place",null,null,null,"obsolete if child"]
["CA Exhaust Emissions - Colour",{"$f":"Colour_Local('Clean Air'!O119,B15)","v":"Green"},"New 2025","Brown - Green - Orange - Red - Yellow",null,null,null,"obsolete if child"]
["Clean Air Lab Tests - Overall Performance",{"$f":"Colour_Local(SUM('Clean Air'!J26,'Clean Air'!J35,'Clean Air'!J44,'Clean Air'!J52,'Clean Air'!J62),B18)","v":"Green"},null,null,null,null,null,"obsolete if child"]
["Clean Air Lab Tests - Overall Performance - Score",{"$f":"ROUND(SUM('Clean Air'!J26,'Clean Air'!J35,'Clean Air'!J44,'Clean Air'!J52,'Clean Air'!J62)/SUM('Clean Air'!M26,'Clean Air'!M35,'Clean Air'!M44,'Clean Air'!M52,'Clean Air'!M62)*10,1)","v":10},"New 2025","Number - 1 decimal place",null,null,null,"obsolete if child"]
["CA Legal Test - Score",{"$f":"ROUND('Clean Air'!J26,1)","v":8},"New 2025","Number - 1 decimal place",null,null,null,"obsolete if child"]
["CA Legal Test - NMHC Colour","Grey","New 2025","Brown - Green - Orange - Red - Yellow - Grey",null,null,null,"obsolete if child"]
["CA Legal Test - NOx Colour",{"$f":"Colour_Local('Clean Air'!J20,'Clean Air'!M20)","v":"Green"},"New 2025","Brown - Green - Orange - Red - Yellow",null,null,null,"obsolete if child"]
["CA Legal Test - NH3 Colour","Grey","New 2025","Brown - Green - Orange - Red - Yellow",null,null,null,"obsolete if child"]
["CA Legal Test - CO Colour",{"$f":"Colour_Local('Clean Air'!J22,'Clean Air'!M22)","v":"Green"},"New 2025","Brown - Green - Orange - Red - Yellow",null,null,null,"obsolete if child"]
["CA Legal Test - PN Colour","Grey","New 2025","Brown - Green - Orange - Red - Yellow - Grey",null,null,null,"obsolete if child"]
["CA Legal Test - PM Colour",{"$f":"Colour_Local('Clean Air'!J23,'Clean Air'!M23)","v":"Green"},"New 2025","Brown - Green - Orange - Red - Yellow",null,null,null,"obsolete if child"]
["CA Warm Weather - Score",{"$f":"ROUND('Clean Air'!J35,1)","v":10},"New 2025","Number - 1 decimal place",null,null,null,"obsolete if child"]
["CA Warm Weather - NMHC Colour",{"$f":"Colour_Local('Clean Air'!J28,'Clean Air'!M28)","v":"Green"},"New 2025","Brown - Green - Orange - Red - Yellow",null,null,null,"obsolete if child"]
["CA Warm Weather - NOx Colour",{"$f":"Colour_Local('Clean Air'!J29,'Clean Air'!M29)","v":"Green"},"New 2025","Brown - Green - Orange - Red - Yellow",null,null,null,"obsolete if child"]
["CA Warm Weather - NH3 Colour",{"$f":"Colour_Local('Clean Air'!J30,'Clean Air'!M30)","v":"Green"},"New 2025","Brown - Green - Orange - Red - Yellow",null,null,null,"obsolete if child"]
["CA Warm Weather - CO Colour",{"$f":"Colour_Local('Clean Air'!J31,'Clean Air'!M31)","v":"Green"},"New 2025","Brown - Green - Orange - Red - Yellow",null,null,null,"obsolete if child"]
["CA Warm Weather - PN Colour",{"$f":"Colour_Local('Clean Air'!J33,'Clean Air'!M33)","v":"Green"},"New 2025","Brown - Green - Orange - Red - Yellow",null,null,null,"obsolete if child"]
["CA Warm Weather - PM Colour",{"$f":"Colour_Local('Clean Air'!J32,'Clean Air'!M32)","v":"Green"},"New 2025","Brown - Green - Orange - Red - Yellow",null,null,null,"obsolete if child"]
["CA Highway Test - Score",{"$f":"ROUND('Clean Air'!J62,1)","v":10},null,null,null,null,null,"obsolete if child"]
["CA Highway Test - NMHC Colour",{"$f":"Colour_Local('Clean Air'!J55,'Clean Air'!M55)","v":"Green"},"previously HC > to be renamed in dashboard",null,null,null,null,"obsolete if child"]
["CA Highway Test - NOx Colour",{"$f":"Colour_Local('Clean Air'!J56,'Clean Air'!M56)","v":"Green"},null,null,null,null,null,"obsolete if child"]
["CA Highway Test - NH3 Colour",{"$f":"Colour_Local('Clean Air'!J57,'Clean Air'!M57)","v":"Green"},null,"Brown - Green - Orange - Red - Yellow",null,null,null,"obsolete if child"]
["CA Highway Test - CO Colour",{"$f":"Colour_Local('Clean Air'!J58,'Clean Air'!M58)","v":"Green"},null,null,null,null,null,"obsolete if child"]
["CA Highway Test - PN Colour",{"$f":"Colour_Local('Clean Air'!J60,'Clean Air'!M60)","v":"Green"},null,null,null,null,null,"obsolete if child"]
["CA Highway Test - PM Colour",{"$f":"Colour_Local('Clean Air'!J59,'Clean Air'!M59)","v":"Green"},"New 2025",null,null,null,null,"obsolete if child"]
["CA Winter Cold Start - Score",{"$f":"ROUND('Clean Air'!J44,1)","v":10},"New 2025","Number - 1 decimal place",null,null,null,"obsolete if child"]
["CA Winter Cold Start - NMHC Colour",{"$f":"Colour_Local('Clean Air'!J37,'Clean Air'!M37)","v":"Green"},"New 2025","Brown - Green - Orange - Red - Yellow",null,null,null,"obsolete if child"]
["CA Winter Cold Start - NOx Colour",{"$f":"Colour_Local('Clean Air'!J38,'Clean Air'!M38)","v":"Green"},"New 2025","Brown - Green - Orange - Red - Yellow",null,null,null,"obsolete if child"]
["CA Winter Cold Start - NH3 Colour",{"$f":"Colour_Local('Clean Air'!J39,'Clean Air'!M39)","v":"Green"},"New 2025","Brown - Green - Orange - Red - Yellow",null,null,null,"obsolete if child"]
["CA Winter Cold Start - CO Colour",{"$f":"Colour_Local('Clean Air'!J40,'Clean Air'!M40)","v":"Green"},"New 2025","Brown - Green - Orange - Red - Yellow",null,null,null,"obsolete if child"]
["CA Winter Cold Start - PN Colour",{"$f":"Colour_Local('Clean Air'!J42,'Clean Air'!M42)","v":"Green"},"New 2025","Brown - Green - Orange - Red - Yellow",null,null,null,"obsolete if child"]
["CA Winter Cold Start - PM Colour",{"$f":"Colour_Local('Clean Air'!J41,'Clean Air'!M41)","v":"Green"},"New 2025","Brown - Green - Orange - Red - Yellow",null,null,null,"obsolete if child"]
["CA Winter Warm Start - Score",{"$f":"ROUND('Clean Air'!J53,1)","v":10},"New 2025","Number - 1 decimal place",null,null,null,"obsolete if child"]
["CA Winter Warm Start - NMHC Colour",{"$f":"Colour_Local('Clean Air'!J46,'Clean Air'!M46)","v":"Green"},"New 2025","Brown - Green - Orange - Red - Yellow",null,null,null,"obsolete if child"]
["CA Winter Warm Start - NOx Colour",{"$f":"Colour_Local('Clean Air'!J47,'Clean Air'!M47)","v":"Green"},"New 2025","Brown - Green - Orange - Red - Yellow",null,null,null,"obsolete if child"]
["CA Winter Warm Start - NH3 Colour",{"$f":"Colour_Local('Clean Air'!J48,'Clean Air'!M48)","v":"Green"},"New 2025","Brown - Green - Orange - Red - Yellow",null,null,null,"obsolete if child"]
["CA Winter Warm Start - CO Colour",{"$f":"Colour_Local('Clean Air'!J49,'Clean Air'!M49)","v":"Green"},"New 2025","Brown - Green - Orange - Red - Yellow",null,null,null,"obsolete if child"]
["CA Winter Warm Start - PN Colour",{"$f":"Colour_Local('Clean Air'!J51,'Clean Air'!M51)","v":"Green"},"New 2025","Brown - Green - Orange - Red - Yellow",null,null,null,"obsolete if child"]
["CA Winter Warm Start - PM Colour",{"$f":"Colour_Local('Clean Air'!J50,'Clean Air'!M50)","v":"Green"},"New 2025","Brown - Green - Orange - Red - Yellow",null,null,null,"obsolete if child"]
["CA Road Test - Overall Performance Colour",{"$f":"Colour_Local(B55,10)","v":"Green"},null,"Brown - Green - Orange - Red - Yellow",null,null,null,"obsolete if child"]
["CA Road Test - Overall Performance Score",{"$f":"ROUND(SUM('Clean Air'!J69,'Clean Air'!J74,'Clean Air'!J78)/SUM('Clean Air'!M69,'Clean Air'!M74,'Clean Air'!M78)*10,1)","v":10},"New 2025","Number - 1 decimal place",null,null,null,"obsolete if child"]
["CA Real World Mixed Drive - Score",{"$f":"ROUND('Clean Air'!J69,1)","v":10},"New 2025","Number - 1 decimal place",null,null,null,"obsolete if child"]
["CA Real World Mixed Drive - NMHC Colour","Grey","New 2025","Brown - Green - Orange - Red - Yellow - Grey",null,null,null,"obsolete if child"]
["CA Real World Mixed Drive - NOx Colour",{"$f":"Colour_Local('Clean Air'!J64,'Clean Air'!M64)","v":"Green"},"New 2025","Brown - Green - Orange - Red - Yellow",null,null,null,"obsolete if child"]
["CA Real World Mixed Drive - NH3 Colour","Grey","New 2025","Brown - Green - Orange - Red - Yellow - Grey",null,null,null,"obsolete if child"]
["CA Real World Mixed Drive - CO Colour",{"$f":"Colour_Local('Clean Air'!J66,'Clean Air'!M66)","v":"Green"},"New 2025","Brown - Green - Orange - Red - Yellow",null,null,null,"obsolete if child"]
["CA Real World Mixed Drive - PN Colour",{"$f":"Colour_Local('Clean Air'!J67,'Clean Air'!M67)","v":"Green"},"New 2025","Brown - Green - Orange - Red - Yellow",null,null,null,"obsolete if child"]
["CA Real World Mixed Drive - PM Colour","Grey","New 2025","Brown - Green - Orange - Red - Yellow - Grey",null,null,null,"obsolete if child"]
["CA Short City Trip - Score",{"$f":"ROUND('Clean Air'!J74,1)","v":10},"New 2025","Number - 1 decimal place",null,null,null,"obsolete if child"]
["CA Short City Trip - NMHC Colour","Grey","New 2025","Brown - Green - Orange - Red - Yellow - Grey",null,null,null,"obsolete if child"]
["CA Short City Trip - NOx Colour",{"$f":"Colour_Local('Clean Air'!J71,'Clean Air'!M71)","v":"Green"},"New 2025","Brown - Green - Orange - Red - Yellow",null,null,null,"obsolete if child"]
["CA Short City Trip - NH3 Colour","Grey","New 2025","Brown - Green - Orange - Red - Yellow - Grey",null,null,null,"obsolete if child"]
["CA Short City Trip - CO Colour",{"$f":"Colour_Local('Clean Air'!J72,'Clean Air'!M72)","v":"Green"},"New 2025","Brown - Green - Orange - Red - Yellow",null,null,null,"obsolete if child"]
["CA Short City Trip - PN Colour",{"$f":"Colour_Local('Clean Air'!J73,'Clean Air'!M73)","v":"Green"},"New 2025","Brown - Green - Orange - Red - Yellow",null,null,null,"obsolete if child"]
["CA Short City Trip - PM Colour","Grey","New 2025","Brown - Green - Orange - Red - Yellow - Grey",null,null,null,"obsolete if child"]
["CA Congestion - Score",{"$f":"ROUND('Clean Air'!J78,1)","v":2},null,"Number - 1 decimal place",null,null,null,"obsolete if child"]
["CA Congestion - NMHC Colour","Grey",null,"Brown - Green - Orange - Red - Yellow - Grey",null,null,null,"obsolete if child"]
["CA Congestion - NOx Colour",{"$f":"Colour_Local('Clean Air'!J78,'Clean Air'!M78)","v":"Green"},null,"Brown - Green - Orange - Red - Yellow",null,null,null,"obsolete if child"]
["CA Congestion - NH3 Colour","Grey",null,"Brown - Green - Orange - Red - Yellow - Grey",null,null,null,"obsolete if child"]
["CA Congestion - CO Colour","Grey",null,"Brown - Green - Orange - Red - Yellow",null,null,null,"obsolete if child"]
["CA Congestion - PN Colour","Grey",null,"Brown - Green - Orange - Red - Yellow",null,null,null,"obsolete if child"]
["CA Congestion - PM Colour","Grey","New 2025","Brown - Green - Orange - Red - Yellow - Grey",null,null,null,"obsolete if child"]
["CA Non-Exhaust Emissions - Score",{"$f":"ROUND('Clean Air'!O120, 1)","v":2.5},"New 2025","Number - 1 decimal place",null,null,null,"obsolete if child"]
["CA Non-Exhaust Emissions - Colour",{"$f":"Colour_Local(B77,'Clean Air'!P120)","v":"Brown"},"New 2025","Brown - Green - Orange - Red - Yellow",null,null,null,"obsolete if child"]
["CA Tyre Wear - Score",{"$f":"ROUND('Clean Air'!J85,1)","v":3},"New 2025","Number - 1 decimal place",null,null,null,"obsolete if child"]
["CA Tyre Wear - Colour",{"$f":"Colour_Local(B79,'Clean Air'!M85)","v":"Orange"},"New 2025","Brown - Green - Orange - Red - Yellow",null,null,null,"obsolete if child"]
["CA Mass Influence - Score",{"$f":"ROUND('Clean Air'!J82,1)","v":3},"New 2025","Number - 1 decimal place",null,null,null,"obsolete if child"]
["CA Mass Influence - Colour",{"$f":"Colour_Local(B81,'Clean Air'!M82)","v":"Green"},"New 2025","Brown - Green - Orange - Red - Yellow",null,null,null,"obsolete if child"]
["CA Wheel Alignment - Score",{"$f":"ROUND('Clean Air'!J83,1)","v":0},"New 2025","Number - 1 decimal place",null,null,null,"obsolete if child"]
["CA Wheel Alignment - Colour",{"$f":"Colour_Local(B83,'Clean Air'!M83)","v":"Red"},"New 2025","Brown - Green - Orange - Red - Yellow",null,null,null,"obsolete if child"]
["CA Accelerator Response - Score",{"$f":"ROUND('Clean Air'!J84,1)","v":0},"New 2025","Number - 1 decimal place",null,null,null,"obsolete if child"]
["CA Accelerator Response - Colour",{"$f":"Colour_Local(B85,'Clean Air'!M84)","v":"Red"},"New 2025","Brown - Green - Orange - Red - Yellow",null,null,null,"obsolete if child"]
["CA Brake Wear - Score",{"$f":"ROUND('Clean Air'!J94, 1)","v":0},"New 2025","Number - 1 decimal place",null,null,null,"obsolete if child"]
["CA Brake Wear - Colour",{"$f":"Colour_Local(B87,'Clean Air'!M94)","v":"Red"},"New 2025","Brown - Green - Orange - Red - Yellow",null,null,null,"obsolete if child"]
["CA Brake Dust Mitigation - Score",{"$f":"ROUND('Clean Air'!J90,1)","v":0},"New 2025","Number - 1 decimal place",null,null,null,"obsolete if child"]
["CA Brake Dust Mitigation - Colour",{"$f":"Colour_Local(B89,'Clean Air'!M90)","v":"Red"},"New 2025","Brown - Green - Orange - Red - Yellow",null,null,null,"obsolete if child"]
["CA Brake Dust Containment - Score",{"$f":"ROUND('Clean Air'!J91,1)","v":0},"New 2025","Number - 1 decimal place",null,null,null,"obsolete if child"]
["CA Brake Dust Containment - Colour",{"$f":"Colour_Local(B91,'Clean Air'!M91)","v":"Red"},"New 2025","Brown - Green - Orange - Red - Yellow",null,null,null,"obsolete if child"]
["CA Recuperative Braking Warm - Score",{"$f":"ROUND('Clean Air'!J92,1)","v":0},"New 2025","Number - 1 decimal place",null,null,null,"obsolete if child"]
["CA Recuperative Braking Warm - Colour",{"$f":"Colour_Local(B93,'Clean Air'!M92)","v":"Red"},"New 2025","Brown - Green - Orange - Red - Yellow",null,null,null,"obsolete if child"]
["CA Additional LCA - Score",{"$f":"ROUND('Clean Air'!O128,1)","v":10},"New 2025","Number - 1 decimal place",null,null,null,"obsolete if child"]
["CA Additional LCA - Colour",{"$f":"Colour_Local(B95,'Clean Air'!P128)","v":"Green"},"New 2025","Brown - Green - Orange - Red - Yellow",null,null,null,"obsolete if child"]
["CA Graph 1 Production - NMVOC",{"$f":"ROUND('LCA RESULTS'!$C$8,1)","v":0},"New 2025","Number",null,null,"Graph 1 title: Pollutants (excluding direct emissions)","obsolete if child"]
["CA Graph 1 Production - NOx",{"$f":"ROUND('LCA RESULTS'!$C$9,1)","v":0},"New 2025","Number",null,null,"Graph 1 Name: [permalink]&\"_CA Graph 1\"","obsolete if child"]
["CA Graph 1 Production - NH3",{"$f":"ROUND('LCA RESULTS'!$C$10,1)","v":0},"New 2025","Number",null,null,null,"obsolete if child"]
["CA Graph 1 Production - CO",{"$f":"ROUND('LCA RESULTS'!$C$11,1)","v":0},"New 2025","Number",null,null,null,"obsolete if child"]
["CA Graph 1 Production - PM2.5",{"$f":"ROUND('LCA RESULTS'!$C$12,1)","v":0},"New 2025","Number",null,null,null,"obsolete if child"]
["CA Graph 1 Production - SOx",{"$f":"ROUND('LCA RESULTS'!$C$13,1)","v":0},"New 2025","Number",null,null,null,"obsolete if child"]
["CA Graph 1 Energy Supply - NMVOC",{"$f":"ROUND(AVERAGE('Clean Air'!$G$19,'Clean Air'!$G$28,'Clean Air'!$G$37,'Clean Air'!$G$46,'Clean Air'!$G$55),1)","v":0},"New 2025","Number",null,null,null,"obsolete if child"]
["CA Graph 1 Energy Supply - NOx",{"$f":"ROUND(AVERAGE('Clean Air'!$G$20,'Clean Air'!$G$29,'Clean Air'!$G$38,'Clean Air'!$G$47,'Clean Air'!$G$56),1)","v":0},"New 2025","Number",null,null,null,"obsolete if child"]
["CA Graph 1 Energy Supply - NH3",{"$f":"ROUND(AVERAGE('Clean Air'!$G$21,'Clean Air'!$G$30,'Clean Air'!$G$39,'Clean Air'!$G$48,'Clean Air'!$G$57),1)","v":0},"New 2025","Number",null,null,null,"obsolete if child"]
["CA Graph 1 Energy Supply - CO",{"$f":"ROUND(AVERAGE('Clean Air'!$G$22,'Clean Air'!$G$31,'Clean Air'!$G$40,'Clean Air'!$G$49,'Clean Air'!$G$58),1)","v":0},"New 2025","Number",null,null,null,"obsolete if child"]
["CA Graph 1 Energy Supply - PM2.5",{"$f":"ROUND(AVERAGE('Clean Air'!$G$23,'Clean Air'!$G$32,'Clean Air'!$G$41,'Clean Air'!$G$50,'Clean Air'!$G$59),1)","v":0},"New 2025","Number",null,null,null,"obsolete if child"]
["CA Graph 1 Energy Supply - SOx",{"$f":"ROUND(AVERAGE('Clean Air'!$G$25,'Clean Air'!$G$34,'Clean Air'!$G$43,'Clean Air'!$G$52,'Clean Air'!$G$61),1)","v":0},"New 2025","Number",null,null,null,"obsolete if child"]
["CA Graph 1 Direct Exhaust Emissions - NMHC",{"$f":"ROUND(AVERAGE('Clean Air'!F19,'Clean Air'!F28,'Clean Air'!F37,'Clean Air'!F46,'Clean Air'!F55),1)","v":0},"New 2025","Number",null,null,null,"obsolete if child"]
["CA Graph 1 Direct Exhaust Emissions - NOx",{"$f":"ROUND(AVERAGE('Clean Air'!F20,'Clean Air'!F29,'Clean Air'!F38,'Clean Air'!F47,'Clean Air'!F56,'Clean Air'!F64,'Clean Air'!F71),1)","v":0},"New 2025","Number",null,null,null,"obsolete if child"]
["CA Graph 1 Direct Exhaust Emissions - NH3",{"$f":"ROUND(AVERAGE('Clean Air'!F30,'Clean Air'!F39,'Clean Air'!F48,'Clean Air'!F57),1)","v":0},"New 2025","Number",null,null,null,"obsolete if child"]
["CA Graph 1 Direct Exhaust Emissions - CO",{"$f":"ROUND(AVERAGE('Clean Air'!F22,'Clean Air'!F31,'Clean Air'!F40,'Clean Air'!F49,'Clean Air'!F58,'Clean Air'!F66,'Clean Air'!F72),1)","v":0},"New 2025","Number",null,null,null,"obsolete if child"]
["CA Graph 1 Direct Exhaust Emissions - PM",{"$f":"ROUND(AVERAGE('Clean Air'!F23,'Clean Air'!F32,'Clean Air'!F41,'Clean Air'!F50,'Clean Air'!F59),1)","v":0},"New 2025","Number",null,null,null,"obsolete if child"]
["CA Graph 1 Direct Exhaust Emissions - SOx",0,"New 2025","Number",null,null,null,"obsolete if child"]
["CA Graph 1 Maintenance - NMVOC",{"$f":"ROUND('LCA RESULTS'!$C$16,1)","v":0},"New 2025","Number",null,null,null,"obsolete if child"]
["CA Graph 1 Maintenance - NOx",{"$f":"ROUND('LCA RESULTS'!$C$17,1)","v":0},"New 2025","Number",null,null,null,"obsolete if child"]
["CA Graph 1 Maintenance - NH3",{"$f":"ROUND('LCA RESULTS'!$C$18,1)","v":0},"New 2025","Number",null,null,null,"obsolete if child"]
["CA Graph 1 Maintenance - CO",{"$f":"ROUND('LCA RESULTS'!$C$19,1)","v":0},"New 2025","Number",null,null,null,"obsolete if child"]
["CA Graph 1 Maintenance - PM2.5",{"$f":"ROUND('LCA RESULTS'!$C$20,1)","v":0},"New 2025","Number",null,null,null,"obsolete if child"]
["CA Graph 1 Maintenance - SOx",{"$f":"ROUND('LCA RESULTS'!$C$21,1)","v":0},"New 2025","Number",null,null,null,"obsolete if child"]
["CA Graph 1 End-of-Life - NMVOC",{"$f":"ROUND('LCA RESULTS'!$C$24,1)","v":0},"New 2025","Number",null,null,null,"obsolete if child"]
["CA Graph 1 End-of-Life - NOx",{"$f":"ROUND('LCA RESULTS'!$C$25,1)","v":0},"New 2025","Number",null,null,null,"obsolete if child"]
["CA Graph 1 End-of-Life - NH3",{"$f":"ROUND('LCA RESULTS'!$C$26,1)","v":0},"New 2025","Number",null,null,null,"obsolete if child"]
["CA Graph 1 End-of-Life - CO",{"$f":"ROUND('LCA RESULTS'!$C$27,1)","v":0},"New 2025","Number",null,null,null,"obsolete if child"]
["CA Graph 1 End-of-Life - PM2.5",{"$f":"ROUND('LCA RESULTS'!$C$28,1)","v":0},"New 2025","Number",null,null,null,"obsolete if child"]
["CA Graph 1 End-of-Life - SOx",{"$f":"ROUND('LCA RESULTS'!$C$29,1)","v":0},"New 2025","Number",null,null,null,"obsolete if child"]
[]
["Energy Efficiency Index",{"$f":"ROUND(Efficiency!L46,1)","v":10},null,null,null,null,null,"Take from basemodel"]
["EE Energy Consumption - Score",{"$f":"ROUND(Efficiency!I42,1)","v":10},"New 2025","Number - 1 decimal place",null,null,null,"obsolete if child"]
["EE Energy Consumption - Colour",{"$f":"Colour_Local(B129,Efficiency!L42)","v":"Green"},"New 2025","Brown - Green - Orange - Red - Yellow",null,null,null,"obsolete if child"]
["Energy Efficiency Lab Tests - Overall performance",{"$f":"Colour_Local(B132,Efficiency!L34)","v":"Green"},null,"Brown - Green - Orange - Red - Yellow",null,null,null,"obsolete if child"]
["Energy Efficiency Lab Tests - Overall performance - Score",{"$f":"ROUND(Efficiency!I34,1)","v":10},"New 2025","Number - 1 decimal place",null,null,null,"obsolete if child"]
["EE Legal Test - Energy Efficiency Value (1st fuel source)",{"$f":"ROUND(IF(OR(Petrol,Diesel,E_85),Efficiency!P10,IF(Electric,Efficiency!S10,IF(OR(CNG_Dual,CNG_Mono,Hydrogen),Efficiency!V10,\"???\"))),2)","v":0},"New 2025","Number - 1 decimal place","Also needed for TRM charts",null,"Graph Name: [permalink]&\"_EE Graph legal_1st fuel source","obsolete if child"]
["EE Legal Test - Energy Efficiency Value (2nd fuel source)",{"$f":"IF(CNG_Dual,ROUND(Efficiency!V10,2),\"\")","v":""},"New 2025","Number - 1 decimal place - if vehicle has only 1 fuel source, set formula to leave cell bank","Also needed for TRM charts",null,"Graph Name: [permalink]&\"_EE Graph legal_2nd fuel source -- tbd if it can be fitted in one progress bar","obsolete if child"]
["EE Warm Weather - Energy Efficiency Value (1st fuel source)",{"$f":"ROUND(IF(OR(Petrol,Diesel,E_85),Efficiency!P11,IF(Electric,Efficiency!S11,IF(OR(CNG_Dual,CNG_Mono,Hydrogen),Efficiency!V11,\"???\"))),2)","v":0},"New 2025","Number - 1 decimal place","Also needed for TRM charts",null,"Graph Name: [permalink]&\"_EE Graph Warm Weather_1st fuel source","obsolete if child"]
["EE Warm Weather - Energy Efficiency Value (2nd fuel source)",{"$f":"IF(CNG_Dual,ROUND(Efficiency!V11,2),\"\")","v":""},"New 2025","Number - 1 decimal place - if vehicle has only 1 fuel source, set formula to leave cell bank","Also needed for TRM charts",null,"Graph Name: [permalink]&\"_EE Graph Warm Weather_2nd fuel source -- tbd …","obsolete if child"]
["EE Highway - Energy Efficiency Value (1st fuel source)",{"$f":"ROUND(IF(OR(Petrol,Diesel,E_85),Efficiency!P14,IF(Electric,Efficiency!S14,IF(OR(CNG_Dual,CNG_Mono,Hydrogen),Efficiency!V14,\"???\"))),2)","v":0},"New 2025","Number - 1 decimal place","Also needed for TRM charts",null,"Graph Name: [permalink]&\"_EE Graph Highway_1st fuel source","obsolete if child"]
["EE Highway - Energy Efficiency Value (2nd fuel source)",{"$f":"IF(CNG_Dual,ROUND(Efficiency!V14,2),\"\")","v":""},"New 2025","Number - 1 decimal place - if vehicle has only 1 fuel source, set formula to leave cell bank","Also needed for TRM charts",null,"Graph Name: [permalink]&\"_EE Graph Highway_2nd fuel source -- tbd","obsolete if child"]
["EE Winter Cold Start - Energy Efficiency Value (1st fuel source)",{"$f":"ROUND(IF(OR(Petrol,Diesel,E_85),Efficiency!P12,IF(Electric,Efficiency!S12,IF(OR(CNG_Dual,CNG_Mono,Hydrogen),Efficiency!V12,\"???\"))),2)","v":0},"New 2025","Number - 1 decimal place","Also needed for TRM charts",null,"Graph Name: [permalink]&\"_EE Graph winter cold_1st fuel source","obsolete if child"]
["EE Winter Cold Start - Energy Efficiency Value (2nd fuel source)",{"$f":"IF(CNG_Dual,ROUND(Efficiency!V12,2),\"\")","v":""},"New 2025","Number - 1 decimal place - if vehicle has only 1 fuel source, set formula to leave cell bank","Also needed for TRM charts",null,"Graph Name: [permalink]&\"_EE Graph winter cold_2nd fuel source -- tbd","obsolete if child"]
["EE Winter Warm Start - Energy Efficiency Value (1st fuel source)",{"$f":"ROUND(IF(OR(Petrol,Diesel,E_85),Efficiency!P13,IF(Electric,Efficiency!S13,IF(OR(CNG_Dual,CNG_Mono,Hydrogen),Efficiency!V13,\"???\"))),2)","v":0},"New 2025","Number - 1 decimal place","Also needed for TRM charts",null,"Graph Name: [permalink]&\"_EE Graph winter warm_1st fuel source","obsolete if child"]
["EE Winter Warm Start - Energy Efficiency Value (2nd fuel source)",{"$f":"IF(CNG_Dual,ROUND(Efficiency!V13,2),\"\")","v":""},"New 2025","Number - 1 decimal place - if vehicle has only 1 fuel source, set formula to leave cell bank","Also needed for TRM charts",null,"Graph Name: [permalink]&\"_EE Graph winter warm_2nd fuel source -- tbd","obsolete if child"]
["EE Rolling Resistance - Score",{"$f":"ROUND(Efficiency!I30,1)","v":10},"New 2025","Number - 1 decimal place",null,null,null,"obsolete if child"]
["EE Rolling Resistance - Colour",{"$f":"Colour_Local(B143,Efficiency!L30)","v":"Green"},"New 2025","Brown - Green - Orange - Red - Yellow",null,null,null,"obsolete if child"]
["EE Additional LCA - Score",{"$f":"ROUND(Efficiency!I38,1)","v":10},"New 2025","Number - 1 decimal place",null,null,null,"obsolete if child"]
["EE Additional LCA - colour",{"$f":"Colour_Local(B145,Efficiency!L38)","v":"Green"},"New 2025","Brown - Green - Orange - Red - Yellow",null,null,null,"obsolete if child"]
["EE Graph 1 Total",{"$f":"ROUND(Efficiency!H42,1)","v":0},"New 2025","number 1 decimal",null,null,"Graph 1 title: Energy Consumption","obsolete if child"]
["EE Graph 1 Production Recycling",{"$f":"ROUND((Efficiency!H5+Efficiency!H25-'LCA RESULTS'!F9*100),1)","v":0},"New 2025","number 1 decimal",null,null,"Graph 1 Name: [permalink]&\"_EE Graph 1\"","obsolete if child"]
["EE Graph 1 Fuel Cell Production",{"$f":"ROUND('LCA RESULTS'!F10*100,1)","v":0},"New 2025","number 1 decimal",null,null,null,"obsolete if child"]
["EE Graph 1 Maintenance",{"$f":"ROUND(Efficiency!H20,1)","v":0},"New 2025","number 1 decimal",null,null,null,"obsolete if child"]
["EE Graph 1 Battery Production",{"$f":"ROUND('LCA RESULTS'!F9*100,1)","v":0},"New 2025","number 1 decimal",null,null,null,"obsolete if child"]
["EE Graph 1 Fuel Energy Supply",{"$f":"ROUND(AVERAGE(Efficiency!H10:H14),1)","v":0},"New 2025","number 1 decimal",null,null,null,"obsolete if child"]
["EE Graph 1 Total - label","Total","New 2025","number 1 decimal",null,null,null,"obsolete if child"]
["EE Graph 1 Production Recycling - label","Production & Recycling","New 2025","number 1 decimal",null,null,null,"obsolete if child"]
["EE Graph 1 Fuel Cell Production - label","Fuel Cell Production","New 2025","number 1 decimal",null,null,null,"obsolete if child"]
["EE Graph 1 Maintenance - label","Maintenance","New 2025","number 1 decimal",null,null,null,"obsolete if child"]
["EE Graph 1 Battery Production - label","Battery Production","New 2025","number 1 decimal",null,null,null,"obsolete if child"]
["EE Graph 1 Fuel Energy Supply - label","Fuel / Energy Supply","New 2025","number 1 decimal",null,null,null,"obsolete if child"]
["EE Graph 2 Fossil",{"$f":"ROUND('LCA RESULTS'!F15,1)","v":0},"New 2025","number 1 decimal",null,null,"Graph 2 title: Energy Source","obsolete if child"]
["EE Graph 2 Renewable",{"$f":"ROUND('LCA RESULTS'!F16,1)","v":0},"New 2025","number 1 decimal",null,null,"Graph 2 Name: [permalink]&\"_EE Graph 2\"","obsolete if child"]
["EE Graph 2 Other",{"$f":"ROUND('LCA RESULTS'!F17,1)","v":0},"New 2025","number 1 decimal",null,null,null,"obsolete if child"]
["EE Graph 2 Fossil - label","Fossil","New 2025","number 1 decimal",null,null,null,"obsolete if child"]
["EE Graph 2 Renewable - label","Renewable","New 2025","number 1 decimal",null,null,null,"obsolete if child"]
["EE Graph 2 Other - label","Other","New 2025","number 1 decimal",null,null,null,"obsolete if child"]
["Average Consumption (1st fuel source)",{"$f":"ROUND(IF(OR(Petrol,Diesel,E_85),Efficiency!P16,IF(Electric,Efficiency!S16,IF(OR(CNG_Dual,CNG_Mono,Hydrogen),Efficiency!V16,\"???\"))),2)","v":0},"from 2025 only consumer tool","Number - 2 decimal places (cfr Joanneum calculation)",null,null,null,"obsolete if child"]
["Best-Case Consumption (1st fuel source)",{"$f":"ROUND(IF(OR(Petrol,Diesel,E_85),Efficiency!P20,IF(Electric,Efficiency!S20,IF(OR(CNG_Dual,CNG_Mono,Hydrogen),Efficiency!V20,\"???\"))),2)","v":0},"from 2025 only consumer tool","Number - 2 decimal places (cfr Joanneum calculation)",null,null,null,"obsolete if child"]
["Worst-Case Consumption (1st fuel source)",{"$f":"ROUND(IF(OR(Petrol,Diesel,E_85),Efficiency!P21,IF(Electric,Efficiency!S21,IF(OR(CNG_Dual,CNG_Mono,Hydrogen),Efficiency!V21,\"???\"))),2)","v":0},"from 2025 only consumer tool","Number - 2 decimal places (cfr Joanneum calculation)",null,null,null,"obsolete if child"]
["Average Consumption (2nd fuel source)",{"$f":"ROUND(IF(CNG_Dual,Efficiency!V16,\"0\"),2)","v":0},"from 2025 only consumer tool","Number - 2 decimal places (cfr Joanneum calculation)",null,null,null,"obsolete if child"]
["Best-Case Consumption (2nd fuel source)",{"$f":"ROUND(IF(CNG_Dual,Efficiency!V20,\"0\"),2)","v":0},"from 2025 only consumer tool","Number - 2 decimal places (cfr Joanneum calculation)",null,null,null,"obsolete if child"]
["Worst-Case Consumption (2nd fuel source)",{"$f":"ROUND(IF(CNG_Dual,Efficiency!V21,\"0\"),2)","v":0},"from 2025 only consumer tool","Number - 2 decimal places (cfr Joanneum calculation)",null,null,null,"obsolete if child"]
["Driving Range - Average (1st fuel source)",{"$f":"ROUND(IF(OR(Petrol,Diesel,E79),Efficiency!P41,IF(Electric,Efficiency!S41,IF(OR(CNG_Dual,CNG_Mono,Hydrogen),Efficiency!V41,\"???\"))),0)","v":0},"from 2025 only consumer tool","Number - no decimal places",null,null,null,"obsolete if child"]
["Driving Range - Best-Case (1st fuel source)",{"$f":"ROUND(IF(OR(Petrol,Diesel,E79),Efficiency!P45,IF(Electric,Efficiency!S45,IF(OR(CNG_Dual,CNG_Mono,Hydrogen),Efficiency!V45,\"???\"))),0)","v":0},"from 2025 only consumer tool","Number - no decimal places",null,null,null,"obsolete if child"]
["Driving Range - Worst-Case (1st fuel source)",{"$f":"ROUND(IF(OR(Petrol,Diesel,E79),Efficiency!P46,IF(Electric,Efficiency!S46,IF(OR(CNG_Dual,CNG_Mono,Hydrogen),Efficiency!V46,\"???\"))),0)","v":0},"from 2025 only consumer tool","Number - no decimal places",null,null,null,"obsolete if child"]
["Driving Range - Average (2nd fuel source)",{"$f":"ROUND(IF(CNG_Dual,Efficiency!V41,\"0\"),0)","v":0},"from 2025 only consumer tool","Number - no decimal places",null,null,null,"obsolete if child"]
["Driving Range - Best-Case (2nd fuel source)",{"$f":"ROUND(IF(CNG_Dual,Efficiency!V45,\"0\"),0)","v":0},"from 2025 only consumer tool","Number - no decimal places",null,null,null,"obsolete if child"]
["Driving Range - Worst-Case (2nd fuel source)",{"$f":"ROUND(IF(CNG_Dual,Efficiency!V46,\"0\"),0)","v":0},"from 2025 only consumer tool","Number - no decimal places",null,null,null,"obsolete if child"]
[]
["Greenhouse Gas Index",{"$f":"ROUND(Greenhouse!L118,1)","v":10},null,"Number - 1 decimal place",null,null,null,"Take from basemodel"]
["GG Exhaust Emissions - Score",{"$f":"Greenhouse!I93","v":10},null,"Number - 1 decimal place",null,null,null,"obsolete if child"]
["GG Exhaust Emissions - Colour",{"$f":"Colour_Local(B179,Greenhouse!L93)","v":"Green"},null,"Brown - Green - Orange - Red - Yellow",null,null,null,"obsolete if child"]
["GG Legal Test - Direct GG Emissions",{"$f":"ROUND((Greenhouse!F21+Greenhouse!F22+Greenhouse!F23),1)","v":0},"New 2025","Number - 1 decimal place",null,"Also needed for TRM charts","Graph Name: [permalink]&\"_GG Graph legal","obsolete if child"]
["GG Warm Weather - Direct GG Emissions",{"$f":"ROUND((Greenhouse!F30+Greenhouse!F31+Greenhouse!F32),1)","v":0},"New 2025","Number - 1 decimal place",null,"Also needed for TRM charts","Graph Name: [permalink]&\"_GG Graph warm weather","obsolete if child"]
["GG Highway Test - Direct GG Emissions",{"$f":"ROUND((Greenhouse!F57+Greenhouse!F58+Greenhouse!F59),1)","v":0},"New 2025","Number - 1 decimal place",null,"Also needed for TRM charts","Graph Name: [permalink]&\"_GG Graph Highway","obsolete if child"]
["GG Winter Cold Start - Direct GG Emissions",{"$f":"ROUND((Greenhouse!F39+Greenhouse!F40+Greenhouse!F41),1)","v":0},"New 2025","Number - 1 decimal place",null,"Also needed for TRM charts","Graph Name: [permalink]&\"_GG Graph Winter Cold","obsolete if child"]
["GG Winter Warm Start - Direct GG Emissions",{"$f":"ROUND((Greenhouse!F48+Greenhouse!F49+Greenhouse!F50),1)","v":0},"New 2025","Number - 1 decimal place",null,"Also needed for TRM charts","Graph Name: [permalink]&\"_GG Graph Winter Warm","obsolete if child"]
["GG Additional LCA - Score",{"$f":"ROUND(Greenhouse!I99,1)","v":10},"New 2025","Number - 1 decimal place",null,null,null,"obsolete if child"]
["GG Additional LCA - colour",{"$f":"Colour_Local(B186,Greenhouse!L99)","v":"Green"},"New 2025","Brown - Green - Orange - Red - Yellow",null,null,null,"obsolete if child"]
["GG Graph 1 Total",{"$f":"ROUND(Greenhouse!G105,1)","v":0},"New 2025","number 1 decimal",null,null,"Graph 1 Title: GHG Emission","obsolete if child"]
["GG Graph 1 Production Recycling",{"$f":"ROUND((Greenhouse!G12+Greenhouse!G86-'LCA RESULTS'!I11),1)","v":0},"New 2025","number 1 decimal",null,null,"Graph 1 Name: [permalink]&\"_GG Graph 1\"","obsolete if child"]
["GG Graph 1 Fuel Cell Production",{"$f":"ROUND('LCA RESULTS'!I12,1)","v":0},"New 2025","number 1 decimal",null,null,null,"obsolete if child"]
["GG Graph 1 Maintenance",{"$f":"ROUND('LCA RESULTS'!I18,1)","v":0},"New 2025","number 1 decimal",null,null,null,"obsolete if child"]
["GG Graph 1 Battery Production",{"$f":"ROUND('LCA RESULTS'!I11,1)","v":0},"New 2025","number 1 decimal",null,null,null,"obsolete if child"]
["GG Graph 1 Fuel Energy Supply",{"$f":"ROUND(AVERAGE(Greenhouse!F24,Greenhouse!F33,Greenhouse!F42,Greenhouse!F51,Greenhouse!F60),1)","v":0},"New 2025","number 1 decimal",null,null,null,"obsolete if child"]
["GG Graph 1 Tailpipe Emissions",{"$f":"ROUND(Greenhouse!G93,1)","v":0},"New 2025","number 1 decimal",null,null,null,"obsolete if child"]
["GG Graph 1 Total - label","Total","New 2025","fixed string: Total",null,null,null,"obsolete if child"]
["GG Graph 1 Production Recycling - label","Production & Recycling","New 2025","fixed string: Production & Recycling",null,null,null,"obsolete if child"]
["GG Graph 1 Fuel Cell Production - label","Fuel Cell Production","New 2025","fixed string: Fuel Cell Production",null,null,null,"obsolete if child"]
["GG Graph 1 Maintenance - label","Maintenance","New 2025","fixed string: Maintenance",null,null,null,"obsolete if child"]
["GG Graph 1 Battery Production - label","Battery Production","New 2025","fixed string: Battery Production",null,null,null,"obsolete if child"]
["GG Graph 1 Fuel Energy Supply - label","Fuel / Energy Supply","New 2025","fixed string: Fuel/Energy Supply",null,null,null,"obsolete if child"]
["GG Graph 1 Exhaust Emissions - label","Exhaust Emissions","New 2025","fixed string: Exhaust Emissions",null,null,null,"obsolete if child"]
["GG Graph 2 Total Emissions - Average",{"$f":"ROUND(B188*'LIMITS Greenhouse'!C25/1000000,1)","v":0},"New 2025","number 1 decimal",null,null,"Graph 2 Title: Total GHG Emissions","obsolete if child"]
["GG Graph 2 Total Emissions - Best",{"$f":"ROUND('LIMITS Greenhouse'!C25*'LCA RESULTS'!I30/1000000,1)","v":0},"New 2025","number 1 decimal",null,null,"Graph 2 Name: [permalink]&\"_GG Graph 2\"","obsolete if child"]
["GG Graph 2 Total Emissions - Worst",{"$f":"ROUND('LIMITS Greenhouse'!C25*'LCA RESULTS'!I31/1000000,1)","v":0},"New 2025","number 1 decimal",null,null,null,"obsolete if child"]
["GG Graph 2 Total Emissions - Lower Threshold",20,"New 2025","number 1 decimal",null,null,null,"obsolete if child"]
["GG Graph 2 Total Emissions - Upper Threshold",80,"New 2025","number 1 decimal",null,null,null,"obsolete if child"]
["GG Malus",{"$f":"'LCA RESULTS'!I3","v":1.2},"New 2025","number - 1 decimal place - can be blank (internal use)",null,null,null,"obsolete if child"]
["GG Replacement of Generic LCA data",{"$f":"'LCA RESULTS'!I2","v":"No"},"New 2025","Yes/No (internal use)",null,null,null,"obsolete if child"]
[]
["Verdict",{"$f":"IF(Child=\"yes\",\"<p>This assessment inherits the rating of the tested {[Base_Model_permalink]§[Base_Model]}. Green NCAP’s Family Building procedure allows the transfer of test results to vehicles with equal key technical specifications.</p>\",FormatAsHTML(Verdict))","v":""},null,"use [stars] to show the stars value of the spreadsheet\n\nuse [AvS] to show the Average Score (don't include '%')",null,null,null,"Keep for child","[link on Family Building procedure] for child vehicles"]
["VIN of Tested Car",{"$f":"SPECS!B29","v":0},{"$f":"RIGHT(SUBSTITUTE(B385,CHAR(10),REPT(\" \",999)))","v":""},null,null,null,null,"obsolete if child"]
["Mass",{"$f":"SPECS!B41","v":0},null,null,null,null,null,"obsolete if child"]
["Engine Size",{"$f":"SPECS!B32","v":0},null,null,null,null,null,"Take from basemodel"]
["Engine Power",{"$f":"SPECS!B33","v":0},null,null,null,null,null,"Take from basemodel"]
["Torque",{"$f":"SPECS!B34","v":0},null,null,null,null,null,"Take from basemodel"]
["Tyres",{"$f":"SPECS!B35","v":0},null,null,null,null,null,"obsolete if child"]
["Published CO2",{"$f":"IF(Electric,\"\",SPECS!B15)","v":""},null,null,null,null,null,"obsolete if child"]
["Rating Validity",{"$f":"IF(Child=\"Yes\",\"All \"&SPECS!B2&\" with the same charging specifications and cabin heating concept as the [Base_Model]\",\"\")","v":""},null,null,null,null,null,"Keep for child"]
["Consumption type (l - kg - kW)",{"$f":"IF(OR(Petrol,Diesel,E70),\"l\",IF(OR(Hydrogen,CNG_Mono,CNG_Dual),\"kg\",IF(Electric,\"kW\",\"???\")))","v":"kW"},null,null,"!! Update - see issues with Mazda MX 30 early 2025",null,null,"obsolete if child"]
["Consumption per","100 km",null,null,null,null,null,"obsolete if child"]
["Primary fuel source",{"$f":"IF(Petrol,\"Petrol\",IF(Diesel,\"Diesel\",IF(E70,\"E85 Ethanol\",IF(Hydrogen,\"Hydrogen\",IF(CNG_Mono,\"CNG\",IF(Electric,\"Electric\",IF(CNG_Dual,\"CNG\",\"???\")))))))","v":"Electric"},null,null,"!! Update - see issues with Mazda MX 30 early 2025",null,null,"Take from basemodel"]
["Secondary fuel source",{"$f":"IF(CNG_Dual,\"Petrol\",\"\")","v":""},null,null,"!! Update - see issues with Mazda MX 30 early 2025",null,null,"Take from basemodel"]
["Published Driving Range",{"$f":"SPECS!B19","v":0},"= declared driving range","Number - no decimal place",null,null,null,"obsolete if child"]
["Declared Driving Range City",{"$f":"SPECS!B20","v":0},"New 2203","Number - no decimal place",null,null,null,"obsolete if child"]
["Declared Consumption (1st Energy Source)",{"$f":"IF(SPECS!B16>0,ROUND(SPECS!B16,1),ROUND(SPECS!B18,1))","v":0},"New 2203","Number - 1 decimal place",null,null,null,"obsolete if child"]
["Declared Consumption (2nd Energy Source)",{"$f":"SPECS!B17","v":0},"New 2203","Number - 1 decimal place",null,null,null,"obsolete if child"]
["Primary fuel consumption units",{"$f":"IF(OR(Petrol,Diesel,E70),\"l/100km\",IF(OR(CNG_Dual,CNG_Mono,Hydrogen),\"kg/100km\",IF(Electric,\"kWh/100km\")))","v":"kWh/100km"},null,null,"!! Update - see issues with Mazda MX 30 early 2025",null,null,"obsolete if child"]
["Secondary fuel consumption units",{"$f":"IF(CNG_Dual,\"l/100km\",\"\")","v":""},null,null,"!! Update - see issues with Mazda MX 30 early 2025",null,null,"obsolete if child"]
["Single/Dual Fuel source",{"$f":"IF(OR(Petrol,Diesel,E70,CNG_Mono,Hydrogen,Electric),\"Single\",IF(OR(Petrol_PHEV,Diesel_PHEV,CNG_Dual),\"Dual\",\"?????\"))","v":"Single"},null,null,"!! Update - see issues with Mazda MX 30 early 2025",null,null,"obsolete if child"]
["Battery capacity",{"$f":"ROUND(SPECS!B13,IF(SPECS!B13<10,2,1))","v":0},"Declared Battery Capacity (usable)","Number - 1 decimal place > 10 - else 2 decimals",null,null,"Usable - net","Take from basemodel"]
["Declared Battery Capacity (installed)",{"$f":"ROUND(SPECS!B14,IF(SPECS!B14<10,2,1))","v":0},"New 2301","Number - 1 decimal place > 10 - else 2 decimals","n.a. if we don't have the info!!!",null,"Installed - gross","Take from basemodel"]
["Traction battery voltage [V]",{"$f":"IF(SPECS!B24=\"\",\"\",SPECS!B24)","v":""},"New 2507","Number - no decimal place",null,null,null,"Take from basemodel"]
["Heating concept",{"$f":"SPECS!B25","v":0},"New 2302","text",null,null,null,"Take from basemodel"]
["Drivetrain",{"$f":"SPECS!B7","v":0},null,null,null,null,null,"Take from basemodel"]
["Short_Variant",null,null,null,null,null,null,"Keep for child"]
["Chassis",{"$f":"VLOOKUP(SPECS!B27,SPECS!H28:I34,2,FALSE)","v":{"$error":"#N/A"}},"New 2203","Saloon - Hatchback - Station wagon - Coupe - Convertible - Multi-purpose vehicle - Truck station wagon",null,null,null,"obsolete if child"]
["Internal Combustion Engine",{"$f":"IF(Petrol,\"Petrol\",IF(Diesel,\"Diesel\",IF(E70,\"E85\",IF(CNG_Mono,\"CNG\",IF(CNG_Dual,\"CNG\",\"\")))))","v":""},"New 2206, if tested on E85, it will show E85 as engine on purpose",null," >> double check behaviour cfr Mazda MX30 - ",null,null,"Take from basemodel"]
["Electric Engine",{"$f":"IF(Hydrogen,\"Hydrogen\",IF(Electric,\"BEV\",IF(SPECS!M11=TRUE,\"Hybrid\",\"\")))","v":"BEV"},"New 2206",null," >> double check behaviour cfr Mazda MX30 - ",null,null,"Take from basemodel"]
["Weighted Overall Index",{"$f":"'OVERALL RATING (avg)'!D36","v":9.5},"New 2209","Number - 1 decimal place"]
["Average Score",{"$f":"B239/10","v":0.95},"New 2305","%",null,null,null,"Take from basemodel"]
["Applies to",{"$f":"IF(LEFT(Versions!B4,5)=\"e.g.:\",\"\",_xlfn.TEXTJOIN(CHAR(10), TRUE, Versions!F4:F41))","v":""},"New 2025","Fill in table in tab 'Versions' - information is linked to this field!\nFill in info on 'child vehicles' in the corresponding tab\nVehicles will have to be created in the dashboard, spreadsheet to be created based on this one, no detail of the indexes / DX pillars to be shown (only top level).\nVerdict to mention the name of the base model",null,null,null,"obsolete if child","too much for a vehicle that was not tested"]
["DX 1 Consumption - Range",{"$f":"'Driving Experience'!$B$4","v":{"$error":"#DIV/0!"}},"New 2025","Good - Adequate - Poor - Not Applicable",null,null,null,"Take from basemodel"]
["DX 1 Consumption - Range - Colour",{"$f":"'Driving Experience'!B5","v":{"$error":"#DIV/0!"}},"New 2025","Green - Grey - Yellow - Red",null,null,null,"Take from basemodel"]
["DX 1.1 Estimated Actual Consumption",{"$f":"IF(OR(Petrol, Diesel, E_85, CNG_Mono, Hydrogen, Electric),'Driving Experience'!J20,\"??\")","v":"Green"},"New 2025","Green - Yellow - Red",null,null,null,"obsolete if child"]
["DX 1.1 Cons Warm Highway - Score",{"$f":"'Driving Experience'!$H$8","v":0},"New 2025","number - 1 decimal",null,null,null,"obsolete if child"]
["DX 1.1 Cons Warm Highway - Colour",{"$f":"'Driving Experience'!$J$8","v":"Green"},"New 2025","Green - Grey - Red - Yellow ",null,null,null,"obsolete if child"]
["DX 1.1 Cons Warm Mixed - Score",{"$f":"'Driving Experience'!$H$9","v":0},"New 2025","number - 1 decimal",null,null,null,"obsolete if child"]
["DX 1.1 Cons Warm Mixed- Colour",{"$f":"'Driving Experience'!$J$9","v":"Green"},"New 2025","Green - Grey - Red - Yellow ",null,null,null,"obsolete if child"]
["DX 1.1 Cons Warm Rural - Score",{"$f":"'Driving Experience'!$H$7","v":0},"New 2025","number - 1 decimal",null,null,null,"obsolete if child"]
["DX 1.1 Cons Warm Rural - Colour",{"$f":"'Driving Experience'!$J$7","v":"Green"},"New 2025","Green - Grey - Red - Yellow ",null,null,null,"obsolete if child"]
["DX 1.1 Cons Warm Urban - Score",{"$f":"'Driving Experience'!$H$6","v":0},"New 2025","number - 1 decimal",null,null,null,"obsolete if child"]
["DX 1.1 Cons Warm Urban - Colour",{"$f":"'Driving Experience'!$J$6","v":"Green"},"New 2025","Green - Grey - Red - Yellow ",null,null,null,"obsolete if child"]
["DX 1.1 Cons Cold Highway - Score",{"$f":"'Driving Experience'!$H$15","v":0},"New 2025","number - 1 decimal",null,null,null,"obsolete if child"]
["DX 1.1 Cons Cold Highway - Colour",{"$f":"'Driving Experience'!$J$15","v":"Green"},"New 2025","Green - Grey - Red - Yellow ",null,null,null,"obsolete if child"]
["DX 1.1 Cons Cold Mixed - Score",{"$f":"'Driving Experience'!$H$16","v":0},"New 2025","number - 1 decimal",null,null,null,"obsolete if child"]
["DX 1.1 Cons Cold Mixed- Colour",{"$f":"'Driving Experience'!$J$16","v":"Green"},"New 2025","Green - Grey - Red - Yellow ",null,null,null,"obsolete if child"]
["DX 1.1 Cons Cold Rural - Score",{"$f":"'Driving Experience'!$H$14","v":0},"New 2025","number - 1 decimal",null,null,null,"obsolete if child"]
["DX 1.1 Cons Cold Rural - Colour",{"$f":"'Driving Experience'!$J$14","v":"Green"},"New 2025","Green - Grey - Red - Yellow ",null,null,null,"obsolete if child"]
["DX 1.1 Cons Cold Urban - Score",{"$f":"'Driving Experience'!$H$13","v":0},"New 2025","number - 1 decimal",null,null,null,"obsolete if child"]
["DX 1.1 Cons Cold Urban - Colour",{"$f":"'Driving Experience'!$J$13","v":"Green"},"New 2025","Green - Grey - Red - Yellow ",null,null,null,"obsolete if child"]
["DX 1.1 Cons PHEV Warm Fuel Mode Highway - Score",{"$f":"IF(OR(Diesel,Petrol,Electric,CNG_Dual,CNG_Mono,Hydrogen,E_85),\"\",'Driving Experience'!$H$28)","v":""},"New 2025","number - 1 decimal",null,null,null,"obsolete if child"]
["DX 1.1 Cons PHEV Warm Fuel Mode Highway - Colour",{"$f":"IF(OR(Diesel,Petrol,Electric,CNG_Dual,CNG_Mono,Hydrogen,E_85),\"\",'Driving Experience'!$J$28)","v":""},"New 2025","Green - Grey - Red - Yellow ",null,null,null,"obsolete if child"]
["DX 1.1 Cons PHEV Warm Fuel Mode Mixed - Score",{"$f":"IF(OR(Diesel,Petrol,Electric,CNG_Dual,CNG_Mono,Hydrogen,E_85),\"\",'Driving Experience'!$H$29)","v":""},"New 2025","number - 1 decimal",null,null,null,"obsolete if child"]
["DX 1.1 Cons PHEV Warm Fuel Mode Mixed- Colour",{"$f":"IF(OR(Diesel,Petrol,Electric,CNG_Dual,CNG_Mono,Hydrogen,E_85),\"\",'Driving Experience'!$J$29)","v":""},"New 2025","Green - Grey - Red - Yellow ",null,null,null,"obsolete if child"]
["DX 1.1 Cons PHEV Warm Fuel Mode Rural - Score",{"$f":"IF(OR(Diesel,Petrol,Electric,CNG_Dual,CNG_Mono,Hydrogen,E_85),\"\",'Driving Experience'!$H$27)","v":""},"New 2025","number - 1 decimal",null,null,null,"obsolete if child"]
["DX 1.1 Cons PHEV Warm Fuel Mode Rural - Colour",{"$f":"IF(OR(Diesel,Petrol,Electric,CNG_Dual,CNG_Mono,Hydrogen,E_85),\"\",'Driving Experience'!$J$27)","v":""},"New 2025","Green - Grey - Red - Yellow ",null,null,null,"obsolete if child"]
["DX 1.1 Cons PHEV Warm Fuel Mode Urban - Score",{"$f":"IF(OR(Diesel,Petrol,Electric,CNG_Dual,CNG_Mono,Hydrogen,E_85),\"\",'Driving Experience'!$H$26)","v":""},"New 2025","number - 1 decimal",null,null,null,"obsolete if child"]
["DX 1.1 Cons PHEV Warm Fuel Mode Urban - Colour",{"$f":"IF(OR(Diesel,Petrol,Electric,CNG_Dual,CNG_Mono,Hydrogen,E_85),\"\",'Driving Experience'!$J$26)","v":""},"New 2025","Green - Grey - Red - Yellow ",null,null,null,"obsolete if child"]
["DX 1.1 Cons PHEV Cold Fuel Mode Highway - Score",{"$f":"IF(OR(Diesel,Petrol,Electric,CNG_Dual,CNG_Mono,Hydrogen,E_85),\"\",'Driving Experience'!$H$35)","v":""},"New 2025","number - 1 decimal",null,null,null,"obsolete if child"]
["DX 1.1 Cons PHEV Cold Fuel Mode Highway - Colour",{"$f":"IF(OR(Diesel,Petrol,Electric,CNG_Dual,CNG_Mono,Hydrogen,E_85),\"\",'Driving Experience'!$J$35)","v":""},"New 2025","Green - Grey - Red - Yellow ",null,null,null,"obsolete if child"]
["DX 1.1 Cons PHEV Cold Fuel Mode Mixed - Score",{"$f":"IF(OR(Diesel,Petrol,Electric,CNG_Dual,CNG_Mono,Hydrogen,E_85),\"\",'Driving Experience'!$H$36)","v":""},"New 2025","number - 1 decimal",null,null,null,"obsolete if child"]
["DX 1.1 Cons PHEV Cold Fuel Mode Mixed- Colour",{"$f":"IF(OR(Diesel,Petrol,Electric,CNG_Dual,CNG_Mono,Hydrogen,E_85),\"\",'Driving Experience'!$J$36)","v":""},"New 2025","Green - Grey - Red - Yellow ",null,null,null,"obsolete if child"]
["DX 1.1 Cons PHEV Cold Fuel Mode Rural - Score",{"$f":"IF(OR(Diesel,Petrol,Electric,CNG_Dual,CNG_Mono,Hydrogen,E_85),\"\",'Driving Experience'!$H$34)","v":""},"New 2025","number - 1 decimal",null,null,null,"obsolete if child"]
["DX 1.1 Cons PHEV Cold Fuel Mode Rural - Colour",{"$f":"IF(OR(Diesel,Petrol,Electric,CNG_Dual,CNG_Mono,Hydrogen,E_85),\"\",'Driving Experience'!$J$34)","v":""},"New 2025","Green - Grey - Red - Yellow ",null,null,null,"obsolete if child"]
["DX 1.1 Cons PHEV Cold Fuel Mode Urban - Score",{"$f":"IF(OR(Diesel,Petrol,Electric,CNG_Dual,CNG_Mono,Hydrogen,E_85),\"\",'Driving Experience'!$H$33)","v":""},"New 2025","number - 1 decimal",null,null,null,"obsolete if child"]
["DX 1.1 Cons PHEV Cold Fuel Mode Urban - Colour",{"$f":"IF(OR(Diesel,Petrol,Electric,CNG_Dual,CNG_Mono,Hydrogen,E_85),\"\",'Driving Experience'!$J$33)","v":""},"New 2025","Green - Grey - Red - Yellow ",null,null,null,"obsolete if child"]
["DX 1.1 Cons PHEV Warm Electric Mode Highway - Score",{"$f":"IF(OR(Diesel,Petrol,Electric,CNG_Dual,CNG_Mono,Hydrogen,E_85),\"\",'Driving Experience'!$H$46)","v":""},"New 2025","number - 1 decimal",null,null,null,"obsolete if child"]
["DX 1.1 Cons PHEV Warm Electric Mode Highway - Colour",{"$f":"IF(OR(Diesel,Petrol,Electric,CNG_Dual,CNG_Mono,Hydrogen,E_85),\"\",'Driving Experience'!$J$46)","v":""},"New 2025","Green - Grey - Red - Yellow ",null,null,null,"obsolete if child"]
["DX 1.1 Cons PHEV Warm Electric Mode Mixed - Score",{"$f":"IF(OR(Diesel,Petrol,Electric,CNG_Dual,CNG_Mono,Hydrogen,E_85),\"\",'Driving Experience'!$H$47)","v":""},"New 2025","number - 1 decimal",null,null,null,"obsolete if child"]
["DX 1.1 Cons PHEV Warm Electric Mode Mixed- Colour",{"$f":"IF(OR(Diesel,Petrol,Electric,CNG_Dual,CNG_Mono,Hydrogen,E_85),\"\",'Driving Experience'!$J$47)","v":""},"New 2025","Green - Grey - Red - Yellow ",null,null,null,"obsolete if child"]
["DX 1.1 Cons PHEV Warm Electric Mode Rural - Score",{"$f":"IF(OR(Diesel,Petrol,Electric,CNG_Dual,CNG_Mono,Hydrogen,E_85),\"\",'Driving Experience'!$H$45)","v":""},"New 2025","number - 1 decimal",null,null,null,"obsolete if child"]
["DX 1.1 Cons PHEV Warm Electric Mode Rural - Colour",{"$f":"IF(OR(Diesel,Petrol,Electric,CNG_Dual,CNG_Mono,Hydrogen,E_85),\"\",'Driving Experience'!$J$45)","v":""},"New 2025","Green - Grey - Red - Yellow ",null,null,null,"obsolete if child"]
["DX 1.1 Cons PHEV Warm Electric Mode Urban - Score",{"$f":"IF(OR(Diesel,Petrol,Electric,CNG_Dual,CNG_Mono,Hydrogen,E_85),\"\",'Driving Experience'!$H$44)","v":""},"New 2025","number - 1 decimal",null,null,null,"obsolete if child"]
["DX 1.1 Cons PHEV Warm Electric Mode Urban - Colour",{"$f":"IF(OR(Diesel,Petrol,Electric,CNG_Dual,CNG_Mono,Hydrogen,E_85),\"\",'Driving Experience'!$J$44)","v":""},"New 2025","Green - Grey - Red - Yellow ",null,null,null,"obsolete if child"]
["DX 1.1 Cons PHEV Cold Electric Mode Highway - Score",{"$f":"IF(OR(Diesel,Petrol,Electric,CNG_Dual,CNG_Mono,Hydrogen,E_85),\"\",'Driving Experience'!$H$53)","v":""},"New 2025","number - 1 decimal",null,null,null,"obsolete if child"]
["DX 1.1 Cons PHEV Cold Electric Mode Highway - Colour",{"$f":"IF(OR(Diesel,Petrol,Electric,CNG_Dual,CNG_Mono,Hydrogen,E_85),\"\",'Driving Experience'!$J$53)","v":""},"New 2025","Green - Grey - Red - Yellow ",null,null,null,"obsolete if child"]
["DX 1.1 Cons PHEV Cold Electric Mode Mixed - Score",{"$f":"IF(OR(Diesel,Petrol,Electric,CNG_Dual,CNG_Mono,Hydrogen,E_85),\"\",'Driving Experience'!$H$54)","v":""},"New 2025","number - 1 decimal",null,null,null,"obsolete if child"]
["DX 1.1 Cons PHEV Cold Electric Mode Mixed- Colour",{"$f":"IF(OR(Diesel,Petrol,Electric,CNG_Dual,CNG_Mono,Hydrogen,E_85),\"\",'Driving Experience'!$J$54)","v":""},"New 2025","Green - Grey - Red - Yellow ",null,null,null,"obsolete if child"]
["DX 1.1 Cons PHEV Cold Electric Mode Rural - Score",{"$f":"IF(OR(Diesel,Petrol,Electric,CNG_Dual,CNG_Mono,Hydrogen,E_85),\"\",'Driving Experience'!$H$52)","v":""},"New 2025","number - 1 decimal",null,null,null,"obsolete if child"]
["DX 1.1 Cons PHEV Cold Electric Mode Rural - Colour",{"$f":"IF(OR(Diesel,Petrol,Electric,CNG_Dual,CNG_Mono,Hydrogen,E_85),\"\",'Driving Experience'!$J$52)","v":""},"New 2025","Green - Grey - Red - Yellow ",null,null,null,"obsolete if child"]
["DX 1.1 Cons PHEV Cold Electric Mode Urban - Score",{"$f":"IF(OR(Diesel,Petrol,Electric,CNG_Dual,CNG_Mono,Hydrogen,E_85),\"\",'Driving Experience'!$H$51)","v":""},"New 2025","number - 1 decimal",null,null,null,"obsolete if child"]
["DX 1.1 Cons PHEV Cold Electric Mode Urban - Colour",{"$f":"IF(OR(Diesel,Petrol,Electric,CNG_Dual,CNG_Mono,Hydrogen,E_85),\"\",'Driving Experience'!$J$51)","v":""},"New 2025","Green - Grey - Red - Yellow ",null,null,null,"obsolete if child"]
["DX 1.1 Cons PHEV Warm Combined (1st fuel source)",{"$f":"IF(OR(Diesel,Petrol,Electric,CNG_Dual,CNG_Mono,Hydrogen,E_85),\"\",'Driving Experience'!$H$61)","v":""},"New 2025","number - 1 decimal",null,null,null,"obsolete if child"]
["DX 1.1 Cons PHEV Warm Combined (2nd fuel source)",{"$f":"IF(OR(Diesel,Petrol,Electric,CNG_Dual,CNG_Mono,Hydrogen,E_85),\"\",'Driving Experience'!$H$62)","v":""},"New 2025","number - 1 decimal",null,null,null,"obsolete if child"]
["DX 1.2 DRange - Colour",{"$f":"IF(OR(Electric,Hydrogen),'Driving Experience'!$J$87,\"\")","v":{"$error":"#DIV/0!"}},"New 2025","Green - Yellow - Red - blank",null,null,null,"obsolete if child"]
["DX 1.2 DRange BEV Warm Highway - Score",{"$f":"IF(OR(Electric,Hydrogen),'Driving Experience'!$H$75,\"\")","v":{"$error":"#DIV/0!"}},"New 2025","number - no decimal",null,null,null,"obsolete if child"]
["DX 1.2 DRange BEV Warm Mixed - Score",{"$f":"IF(OR(Electric,Hydrogen),'Driving Experience'!$H$76,\"\")","v":{"$error":"#DIV/0!"}},"New 2025","number - no decimal",null,null,null,"obsolete if child"]
["DX 1.2 DRange BEV Warm Rural - Score",{"$f":"IF(OR(Electric,Hydrogen),'Driving Experience'!$H$74,\"\")","v":{"$error":"#DIV/0!"}},"New 2025","number - no decimal",null,null,null,"obsolete if child"]
["DX 1.2 DRange BEV Warm Urban - Score",{"$f":"IF(OR(Electric,Hydrogen),'Driving Experience'!$H$73,\"\")","v":{"$error":"#DIV/0!"}},"New 2025","number - no decimal",null,null,null,"obsolete if child"]
["DX 1.2 DRange BEV Cold Highway - Score",{"$f":"IF(OR(Electric,Hydrogen),'Driving Experience'!$H$82,\"\")","v":{"$error":"#DIV/0!"}},"New 2025","number - no decimal",null,null,null,"obsolete if child"]
["DX 1.2 DRange BEV Cold Mixed - Score",{"$f":"IF(OR(Electric,Hydrogen),'Driving Experience'!$H$83,\"\")","v":{"$error":"#DIV/0!"}},"New 2025","number - no decimal",null,null,null,"obsolete if child"]
["DX 1.2 DRange BEV Cold Rural - Score",{"$f":"IF(OR(Electric,Hydrogen),'Driving Experience'!$H$81,\"\")","v":{"$error":"#DIV/0!"}},"New 2025","number - no decimal",null,null,null,"obsolete if child"]
["DX 1.2 DRange BEV Cold Urban - Score",{"$f":"IF(OR(Electric,Hydrogen),'Driving Experience'!$H$80,\"\")","v":{"$error":"#DIV/0!"}},"New 2025","number - no decimal",null,null,null,"obsolete if child"]
["DX 1.2 DRange PHEV Warm Pure Electric - Score",{"$f":"IF(ISERROR(OR(Diesel_PHEV,Petrol_PHEV)),\"\",'Driving Experience'!$H$94)","v":""},"New 2025","string",null,null,null,"obsolete if child"]
["DX 1.2 DRange PHEV Cold Pure Electric - Score",{"$f":"IF(ISERROR(OR(Diesel_PHEV,Petrol_PHEV)),\"\",'Driving Experience'!$H$96)","v":""},"New 2025","number - no decimal - ","greater than character needs to be coded in the lay-out of the datasheet / website, so don't add it here, 0-23 no '>', 24 show '>23'",null,null,"obsolete if child"]
["DX 1.2 DRange PHEV Warm Combined Electric - Score",{"$f":"IF(ISERROR(OR(Diesel_PHEV,Petrol_PHEV)),\"\",'Driving Experience'!$H$95)","v":""},"New 2025","number - no decimal",null,null,null,"obsolete if child"]
["DX 1.2 DRange PHEV Cold Combined Electric - Score",null,"New 2026","number - no decimal - empty if no PHEV",null,null,null,"obsolete if child"]
["DX 1.3 Accuracy Display - Colour",{"$f":"IF('Driving Experience'!$I$136<>\"\",'Driving Experience'!$I$136,\"\")","v":{"$error":"#DIV/0!"}},"New 2025","Green - Grey - Red - Yellow or empty",null,null,null,"obsolete if child"]
["DX 1.3 Accuracy Display - Electricity",{"$f":"IF(ISTEXT('Driving Experience'!$I$132),'Driving Experience'!$I$132,\"\")","v":""},"New 2025","Green - Grey - Red - Yellow or empty",null,null,null,"obsolete if child"]
["DX 1.3 Accuracy Display - Fuel",{"$f":"IF(ISTEXT('Driving Experience'!$I$131),'Driving Experience'!$I$131,\"\")","v":""},"New 2025","Green - Grey - Red - Yellow or empty",null,null,null,"obsolete if child"]
["DX 1.3.1 Accuracy Display - Deviation (1st fuel source)",{"$f":"IF(OR(Petrol,Diesel,E_85),'Driving Experience'!G131,IF(Electric,'Driving Experience'!G132,\"??\"))","v":{"$error":"#DIV/0!"}},"New 2025","number - 1 decimal (internal use)",null,null,null,"obsolete if child"]
["DX 1.3.1 Accuracy Display - Deviation (2nd fuel source)",null,"New 2025","number - 1 decimal (internal use) - leave field empty if no 2nd fuel source",null,null,null,"obsolete if child"]
["DX 2 Cold Winter Performance",{"$f":"'Driving Experience'!$B$141","v":"Adequate"},"New 2025","Good - Adequate - Poor - Not Applicable",null,null,null,"Take from basemodel"]
["DX 2 Cold Winter Performance - Colour",{"$f":"'Driving Experience'!B142","v":"Yellow"},"New 2025","Green - Grey - Yellow - Red",null,null,null,"Take from basemodel"]
["DX 2.1 DRange Benefit - Colour",{"$f":"IF(OR(Electric,Hydrogen),'Driving Experience'!$J$148,\"\")","v":"Red"},"New 2025","Green - Yellow - Red - blank",null,null,null,"obsolete if child"]
["DX 2.1 DRange Benefit - Urban",{"$f":"IF(OR(Electric,Hydrogen),'Driving Experience'!$H$143,\"\")","v":0},"New 2025","number no decimal - explicit sign notation  - can be blank","(+ needs to be coded in the lay-out of the datasheet / website, so don't add it here)",null,null,"obsolete if child"]
["DX 2.1 DRange Benefit - Urban - Colour",{"$f":"IF(OR(Electric,Hydrogen),'Driving Experience'!$J$143,\"\")","v":"Red"},"New 2025","Green - Yellow - Red - blank",null,null,null,"obsolete if child"]
["DX 2.1 DRange Benefit - Mixed",{"$f":"IF(OR(Electric,Hydrogen),'Driving Experience'!$H$144,\"\")","v":0},"New 2025","number no decimal - explicit sign notation  - can be blank","(+ needs to be coded in the lay-out of the datasheet / website, so don't add it here)",null,null,"obsolete if child"]
["DX 2.1 DRange Benefit - Mixed - Colour",{"$f":"IF(OR(Electric,Hydrogen),'Driving Experience'!$J$144,\"\")","v":"Red"},"New 2025","Green - Yellow - Red - blank",null,null,null,"obsolete if child"]
["DX 2.2 Cabin heating - Head - Front",{"$f":"IF(OR(AND(Petrol, NOT(Hybrid)),\n       AND(Diesel, NOT(Hybrid)),\n       E_85, CNG_Dual, CNG_Mono),\n   \"\",\n   'Driving Experience'!$J$154)","v":"Green"},"New 2025","Green - Grey - Red - Yellow  - blank",null,null,null,"obsolete if child"]
["DX 2.2.1 Cabin heating - Head - Front - seconds",{"$f":"IF(OR(AND(Petrol, NOT(Hybrid)),\n       AND(Diesel, NOT(Hybrid)),\n       E_85, CNG_Dual, CNG_Mono),\n   \"\",\n   'Driving Experience'!$H$154)","v":0},"New 2025","number - 1 decimal (internal use) - can be blank",null,null,null,"obsolete if child"]
["DX 2.2 Cabin heating - Head - Rear",{"$f":"IF(OR(AND(Petrol, NOT(Hybrid)),\n       AND(Diesel, NOT(Hybrid)),\n       E_85, CNG_Dual, CNG_Mono),\n   \"\",\n   'Driving Experience'!$J$156)","v":"Green"},"New 2025","Green - Grey - Red - Yellow  - blank",null,null,null,"obsolete if child"]
["DX 2.2.1 Cabin heating - Head - Rear - seconds",{"$f":"IF(OR(AND(Petrol, NOT(Hybrid)),\n       AND(Diesel, NOT(Hybrid)),\n       E_85, CNG_Dual, CNG_Mono),\n   \"\",\n   'Driving Experience'!$H$156)","v":0},"New 2025","number - 1 decimal (internal use) - can be blank",null,null,null,"obsolete if child"]
["DX 2.2 Cabin heating - Footwell - Front",{"$f":"IF(OR(AND(Petrol, NOT(Hybrid)),\n       AND(Diesel, NOT(Hybrid)),\n       E_85, CNG_Dual, CNG_Mono),\n   \"\",\n   'Driving Experience'!$J$155)","v":"Green"},"New 2025","Green - Grey - Red - Yellow  - blank",null,null,null,"obsolete if child"]
["DX 2.2.1 Cabin heating - Footwell - Front - seconds",{"$f":"IF(OR(AND(Petrol, NOT(Hybrid)),\n       AND(Diesel, NOT(Hybrid)),\n       E_85, CNG_Dual, CNG_Mono),\n   \"\",\n   'Driving Experience'!$H$155)","v":0},"New 2025","number - 1 decimal (internal use) - can be blank",null,null,null,"obsolete if child"]
["DX 2.2 Cabin heating - Footwell - Rear Comment",{"$f":"IF(OR(Electric,Hydrogen,Hybrid),SUBSTITUTE(SUBSTITUTE('Driving Experience Input'!E57,\"[rear left]\",INDIRECT(\"'Driving Experience Input'!G54\")),\"[rear right]\",INDIRECT(\"'Driving Experience Input'!H54\")),\"\")","v":"Replace contents of this cell. The rear footwell area left reached the temperature in  seconds and in the right in  seconds."},"New 2025","Long text",null,null,null,"obsolete if child"]
["DX 2.2.1 Cabin heating - Footwell - Rear Left- seconds",{"$f":"_xlfn.LET(_xlpm.result, IF(OR(Hybrid,Electric,Hydrogen), 'Driving Experience'!$H$159,\"\"), IF(_xlpm.result=\"NA\", \"\", _xlpm.result))","v":0},"New 2025","number - 1 decimal (internal use) - can be blank",null,null,{"$f":"'Driving Experience Input'!G54","v":0},"obsolete if child"]
["DX 2.2.1 Cabin heating - Footwell - Rear Right- seconds",{"$f":"_xlfn.LET(_xlpm.result, IF(OR(Hybrid,Electric,Hydrogen), 'Driving Experience'!$H$160,\"\"), IF(_xlpm.result=\"NA\", \"\", _xlpm.result))","v":0},"New 2025","number - 1 decimal (internal use) - can be blank",null,null,null,"obsolete if child"]
["DX 2.2.1 Cabin heating - Colour",{"$f":"_xlfn.LET(_xlpm.result, IF(OR(Hybrid,Electric,Hydrogen), 'Driving Experience'!$J$164,\"\"), IF(_xlpm.result=\"NA\", \"\", _xlpm.result))","v":"Green"},"New 2025","Green - Grey - Red - Yellow  - blank",null,null,null,"obsolete if child"]
["DX 2.3 Add Heating F - Heat pump",{"$f":"IF('Driving Experience Input'!$F$63<>\"\",'Driving Experience Input'!$F$63,\"\")","v":""},"New 2025","Yes/No/blank",null,null,null,"obsolete if child"]
["DX 2.3 Add Heating F - Heat pump - Comment",{"$f":"IF('Driving Experience Input'!$G$63<>\"\",'Driving Experience Input'!$G$63,\"\")","v":""},"New 2025","String: Optional / Standard / Regionally Dependent / Unkown /  Standard for the tested version / Optional for the tested version",null,null,null,"obsolete if child"]
["DX 2.3 Add Heating F - Seat Front",{"$f":"IF('Driving Experience Input'!$F$64<>\"\",'Driving Experience Input'!$F$64,\"\")","v":""},"New 2025","Yes/No/blank",null,null,null,"obsolete if child"]
["DX 2.3 Add Heating F - Seat Front - Comment",{"$f":"IF('Driving Experience Input'!$G$64<>\"\",'Driving Experience Input'!$G$64,\"\")","v":""},"New 2025","String: Optional / Standard / Regionally Dependent / Unkown /  Standard for the tested version / Optional for the tested version",null,null,null,"obsolete if child"]
["DX 2.3 Add Heating F - Seat Rear",{"$f":"IF('Driving Experience Input'!$F$65<>\"\",'Driving Experience Input'!$F$65,\"\")","v":""},"New 2025","Yes/No/blank",null,null,null,"obsolete if child"]
["DX 2.3 Add Heating F - Seat Rear - Comment",{"$f":"IF('Driving Experience Input'!$G$65<>\"\",'Driving Experience Input'!$G$65,\"\")","v":""},"New 2025","String: Optional / Standard / Regionally Dependent / Unkown /  Standard for the tested version / Optional for the tested version",null,null,null,"obsolete if child"]
["DX 2.3 Add Heating F - Steering Wheel",{"$f":"IF('Driving Experience Input'!$F$66<>\"\",'Driving Experience Input'!$F$66,\"\")","v":""},"New 2025","Yes/No/blank",null,null,null,"obsolete if child"]
["DX 2.3 Add Heating F - Steering Wheel - Comment",{"$f":"IF('Driving Experience Input'!$G$66<>\"\",'Driving Experience Input'!$G$66,\"\")","v":""},"New 2025","String: Optional / Standard / Regionally Dependent / Unkown /  Standard for the tested version / Optional for the tested version",null,null,null,"obsolete if child"]
["DX 2.3 Add Heating F - Pre-heating Seats",{"$f":"IF('Driving Experience Input'!$F$67<>\"\",'Driving Experience Input'!$F$67,\"\")","v":""},"New 2025","Yes/No/blank",null,null,null,"obsolete if child"]
["DX 2.3 Add Heating F - Pre-heating Seats - Comment",{"$f":"IF('Driving Experience Input'!$G$67<>\"\",'Driving Experience Input'!$G$67,\"\")","v":""},"New 2025","String: Optional / Standard / Regionally Dependent / Unkown /  Standard for the tested version / Optional for the tested version",null,null,null,"obsolete if child"]
["DX 2.3 Add Heating F - Pre-heating Steering Wheel",{"$f":"IF('Driving Experience Input'!$F$68<>\"\",'Driving Experience Input'!$F$68,\"\")","v":""},"New 2025","Yes/No/blank",null,null,null,"obsolete if child"]
["DX 2.3 Add Heating F - Pre-heating Steering Wheel - Comment",{"$f":"IF('Driving Experience Input'!$G$68<>\"\",'Driving Experience Input'!$G$68,\"\")","v":""},"New 2025","String: Optional / Standard / Regionally Dependent / Unkown /  Standard for the tested version / Optional for the tested version",null,null,null,"obsolete if child"]
["DX 2.3 Add Heating F - Pre-heating Cabin Air",{"$f":"IF('Driving Experience Input'!$F$69<>\"\",'Driving Experience Input'!$F$69,\"\")","v":""},"New 2025","Yes/No/blank",null,null,null,"obsolete if child"]
["DX 2.3 Add Heating F - Pre-heating Cabin Air - Comment",{"$f":"IF('Driving Experience Input'!$G$69<>\"\",'Driving Experience Input'!$G$69,\"\")","v":""},"New 2025","String: Optional / Standard / Regionally Dependent / Unkown /  Standard for the tested version / Optional for the tested version",null,null,null,"obsolete if child"]
["DX 2.3 Add Heating F - Smart Cabin",{"$f":"IF('Driving Experience Input'!$F$70<>\"\",'Driving Experience Input'!$F$70,\"\")","v":""},"New 2025","Yes/No/blank",null,null,null,"obsolete if child"]
["DX 2.3 Add Heating F - Smart Cabin - Comment",{"$f":"IF('Driving Experience Input'!$G$70<>\"\",'Driving Experience Input'!$G$70,\"\")","v":""},"New 2025","String: Optional / Standard / Regionally Dependent / Unkown /  Standard for the tested version / Optional for the tested version",null,null,null,"obsolete if child"]
["DX 2.4 Cabin Thermal Insulation",{"$f":"IF(OR(Electric,Hybrid,Hydrogen),'Driving Experience'!$J$179,\"\")","v":"Red"},"New 2025","Green - Grey - Red - Yellow  - blank","adjust formula for PHEV",null,null,"obsolete if child"]
["DX 2.4.1 Cabin Thermal Insulation - avg temp >30min",{"$f":"IF(OR(Electric,Hybrid,Hydrogen),'Driving Experience'!$H$175,\"\")","v":18},"New 2025","number - 1 decimal (internal use) - can be blank","adjust formula for PHEV",null,null,"obsolete if child"]
["DX 2.4 Graph 1 - start",{"$f":"IF(OR(Electric,Hybrid,Hydrogen),'Driving Experience Input'!$E$76,\"\")","v":18},"New 2025","number - 1 decimal - can be blank","adjust formula for PHEV",null,"Graph Name: [permalink]&\"_DX 2 Graph 1","obsolete if child"]
["DX 2.4 Graph 1 - >5min",{"$f":"IF('Driving Experience Input'!$F$76<>\"\",'Driving Experience Input'!$F$76,\"\")","v":""},"New 2025","number - 1 decimal - can be blank","adjust formula for PHEV",null,null,"obsolete if child"]
["DX 2.4 Graph 1 - >15min",{"$f":"IF('Driving Experience Input'!$G$76<>\"\",'Driving Experience Input'!$G$76,\"\")","v":""},"New 2025","number - 1 decimal - can be blank","adjust formula for PHEV",null,null,"obsolete if child"]
["DX 2.4 Graph 1 - >30min",{"$f":"IF('Driving Experience Input'!$H$76<>\"\",'Driving Experience Input'!$H$76,\"\")","v":""},"New 2025","number - 1 decimal - can be blank","adjust formula for PHEV",null,null,"obsolete if child"]
["DX 2.4 Graph 1 - lower threshold",9,"New 2025","number - 1 decimal - can be blank","adjust formula for PHEV",null,null,"obsolete if child"]
["DX 2.4 Graph 1 - upper threshold",12.5,"New 2025","number - 1 decimal - can be blank","adjust formula for PHEV",null,null,"obsolete if child"]
["DX 3 Charging Capability",{"$f":"'Driving Experience'!$B$183","v":"Poor"},"New 2025","Good - Adequate - Poor - Not Applicable",null,null,null,"Take from basemodel"]
["DX 3 Charging Capability - Colour",{"$f":"'Driving Experience'!B184","v":"Red"},"New 2025","Green - Grey - Yellow - Red",null,null,null,"Take from basemodel"]
["DX 3.1 Battery Pre-Conditioning - Manual",{"$f":"IF('Driving Experience Input'!$F$81<>\"\",'Driving Experience Input'!$F$81,\"\")","v":""},"New 2025","Yes/No/Empty",null,null,null,"obsolete if child"]
["DX 3.1 Battery Pre-Conditioning - Automatic",{"$f":"IF('Driving Experience Input'!$G$81<>\"\",'Driving Experience Input'!$G$81,\"\")","v":""},"New 2025","Yes/No/Empty",null,null,null,"obsolete if child"]
["DX 3.2 Fast Charging - Colour",{"$f":"IF(Electric,'Driving Experience'!$J$192,\"\")","v":"Red"},"New 2025","Green Yellow Red blank",null,null,null,"obsolete if child"]
["DX 3.2 Graph 1 - Title",{"$f":"IF(Electric,D359,\"\")","v":"Charging Time"},"New 2025","Charging Time",null,null,"Graph Name: [permalink]&\"_DX 3.2 Graph 1","obsolete if child"]
["DX 3.2 Graph 2 - Title",{"$f":"IF(Electric,D360,\"\")","v":"Recharged Range Gain per Charging Time"},"New 2025","Recharged Range Gain per Charging Time",null,null,"Graph Name: [permalink]&\"_DX 3.2 Graph 2","obsolete if child"]
["DX 3.2 Graph 3 - Title",{"$f":"IF(Electric,D361,\"\")","v":"Charging Power"},"New 2025","Charging Power",null,null,"Graph Name: [permalink]&\"_DX 3.2 Graph 3","obsolete if child"]
["DX 3.2.1 Fast Charging - Average %",{"$f":"IF('Driving Experience'!$H$188=0,\"\",'Driving Experience'!$H$188)","v":""},"New 2025","number - 1 decimal (internal use) - can be blank + %",null,null,null,"obsolete if child"]
["DX 3.2.1 Fast Charging - Max Charging Power kW",{"$f":"IF('Driving Experience Input'!$F$88<>\"\",'Driving Experience Input'!$F$88,\"\")","v":""},"New 2025","number - 1 decimal (internal use) - can be blank + kW",null,null,null,"obsolete if child"]
["DX 3.2.1 Fast Charging - Avg Charging Power kW",{"$f":"IF('Driving Experience Input'!$F$89<>\"\",'Driving Experience Input'!$F$89,\"\")","v":""},"New 2025","number - 1 decimal (internal use) - can be blank + kW",null,null,null,"obsolete if child"]
["DX 3.2.1 Fast Charging - Charging Time 10-80% min",{"$f":"IF('Driving Experience Input'!$F$90<>\"\",'Driving Experience Input'!$F$90,\"\")","v":""},"New 2025","number - 1 decimal (internal use) - can be blank + min",null,null,null,"obsolete if child"]
["DX 3.2.1 Fast Charging - 10 min - consumption A",{"$f":"IF('Fast charging'!J7<>\"\",'Fast charging'!J7,\"\")","v":""},"New 2025","number - 1 decimal (internal use) - can be blank + km",null,null,null,"obsolete if child"]
["DX 3.2.1 Fast Charging - 10 min - consumption B",{"$f":"IF('Fast charging'!J8<>\"\",'Fast charging'!J8,\"\")","v":""},"New 2025","number - 1 decimal (internal use) - can be blank + km",null,null,null,"obsolete if child"]
["DX 3.2.1 Fast Charging - 10 min - consumption C",{"$f":"IF('Fast charging'!J9<>\"\",'Fast charging'!J9,\"\")","v":""},"New 2025","number - 1 decimal (internal use) - can be blank + km",null,null,null,"obsolete if child"]
["DX 3.2.1 Fast Charging Data ADAC","No","New 2025","Yes/No (standard value: No)",null,null,null,"obsolete if child"]
["DX 3.3 Home Charging Efficiency",{"$f":"IF(OR(Electric,CheckRange(\"diesel_phev\"),CheckRange(\"petrol_phev\")),'Driving Experience'!$J$203,\"\")","v":"Red"},"New 2025","Green Yellow Red blank",null,null,null,"obsolete if child"]
["DX 3.3 Home Charging Efficiency - %",{"$f":"IF(OR(Electric,CheckRange(\"diesel_phev\"),CheckRange(\"petrol_phev\")),'Driving Experience'!H199,\"\")","v":0},"New 2025","number - no decimals + %",null,null,null,"obsolete if child"]
["DX 3.3 Home Charging Efficiency - Colour",{"$f":"IF(B370<>\"\",B370,\"\")","v":"Red"},"New 2025","Green Yellow Red blank",null,null,null,"obsolete if child"]
["DX 3.3 Max Power",{"$f":"IF(OR(Electric,CheckRange(\"diesel_phev\"),CheckRange(\"petrol_phev\")),'Driving Experience Input'!$F$96,\"\")","v":0},"New 2025","number - 1 decimal - can be blank (internal use)",null,null,null,"obsolete if child"]
["DX 3.3.1 Max Power - Comment",{"$f":"IF(OR(Electric,CheckRange(\"diesel_phev\"),CheckRange(\"petrol_phev\")),'Driving Experience Input'!$G$96,\"\")","v":0},"New 2025","String: Optional / Standard / Regionally Dependent / Unkown / blank",null,null,null,"obsolete if child"]
["DX 3.4 Power Output",{"$f":"IF(OR(Electric,Hydrogen,CheckRange(\"diesel_phev\"),CheckRange(\"petrol_phev\")),'Driving Experience Input'!$F$102,\"\")","v":0},"New 2025","number - 1 decimal - can be blank",null,null,null,"obsolete if child"]
["DX 3.4 Power Output - Comment",{"$f":"IF(Electric,'Driving Experience Input'!G102,\"\")","v":0},"New 2025","String: Optional / Standard / Regionally Dependent / Unkown /  Standard for the tested version / Optional for the tested version",null,null,null,"obsolete if child"]
["DX 3.4 Bidirectional charging - Colour",{"$f":"IF(Electric,'Driving Experience'!$J$216,\"\")","v":"Red"},"New 2025","Green Yellow Red blank",null,null,null,"obsolete if child"]
["DX 3.4 Bidirectional charging - Compatibility",{"$f":"IF(Electric,'Driving Experience Input'!$F$103,\"\")","v":0},"New 2025","V2L - V2H - V2G - blank",null,null,null,"obsolete if child"]
["DX 3.4 Bidirectional charging - Compatibility - Comment",{"$f":"IF(Electric,'Driving Experience Input'!G103,\"\")","v":0},"New 2025","String: Optional / Standard / Regionally Dependent / Unkown /  Standard for the tested version / Optional for the tested version",null,null,null,"obsolete if child"]
["DX 3.4 Bidirectional charging - Grid Integration",{"$f":"IF(Electric,'Driving Experience Input'!$F$104,\"\")","v":0},"New 2025","Basic - Limited - Advanced - blank",null,null,null,"obsolete if child"]
["DX 3.4 Bidirectional charging - Grid Integration - Comment",{"$f":"IF(Electric,'Driving Experience Input'!G104,\"\")","v":0},"New 2025","String: Optional / Standard / Regionally Dependent / Unkown /  Standard for the tested version / Optional for the tested version",null,null,null,"obsolete if child"]
["DX 3.4 Bidirectional charging - Limitations",{"$f":"IF(Electric,'Driving Experience Input'!F105,\"\")","v":0},"New 2025","Text e.g. 'Unlimited' / '100 times battery charge'",null,null,null,"obsolete if child"]
["DriverExperienceComment",{"$f":"IF(Child=\"yes\",\"<p>This assessment inherits the results of the tested {[Base_Model_permalink]§[Base_Model]}. Green NCAP allows the transfer of driving experience evaluation to vehicles with equal key technical specifications and similar equipment level.</p>\",FormatAsHTML(DXComment))","v":""},"New 2025","Long text",null,null,null,"Keep for child","see below"]
["Test stage","Stage 1",null,"No longer needed but temporarily added to avoid error message while being fixed"]
["Fill in verdict here",null,null,"Bullet paragraphs must begin with sequential numbers followed by a period and a space (e.g., 1. , 2. , etc.) and end with a full stop. Each bullet point should be limited to a single paragraph — line breaks within bullets will prevent the formula from working correctly.\nDon't paste subscript from Word, a script will put subscript on CO2\nE.g.: The electric Fiat 600e achieves remarkable results in the sustainability assessment. The small EV ...\n1. With no tailpipe emissions and ... \n2. The 600e is equipped ...\n3. Greenhouse gases is the top category ...\nWhile it can be expected that a car with a relatively low mass...\n\nFields that can take data from within the spreadsheet:\n[CAi] [EEi] [GGi] [stars] [AvS]",null,null,null,"obsolete if child","[link on Family Building procedure]"]
["Clean Air Comments",{"$f":"IF(Verdict=\"\",\"\",MID(Verdict,FIND(\"1. \",Verdict,1)+3,FIND(CHAR(10), Verdict, FIND(\"1. \", Verdict))-4-FIND(\"1. \",Verdict,1)+2))","v":""},null,"use [CAi] to show the Clean Air index value, e.g. Model X scores [CAi] out of 10 points.\n\nuse [AvS] to show the Average Score (don't include '%')",null,null,null,"obsolete if child"]
["Energy Efficiency Comment",{"$f":"IF(Verdict=\"\",\"\",MID(Verdict,FIND(\"2. \",Verdict,1)+3,FIND(CHAR(10), Verdict, FIND(\"2. \", Verdict))-4-FIND(\"2. \",Verdict,1)+2))","v":""},null,"use [EEi] to show the Energy Efficiency index value, e.g. Model X scores [EEi] out of 10 points.\n\nuse [AvS] to show the Average Score (don't include '%')",null,null,null,"obsolete if child"]
["Greenhouse Gas Comment",{"$f":"IF(Verdict=\"\", \"\",\n  MID(\n    Verdict,\n    FIND(\"3. \", Verdict) + 3,\n    IFERROR(FIND(CHAR(10), Verdict, FIND(\"3. \", Verdict)) - FIND(\"3. \", Verdict) - 3, LEN(Verdict))\n  )\n)","v":""},null,"use [GGi] to show the Greenhouse Gas index value, e.g. Model X scores [GGi] out of 10 points.\n\nuse [AvS] to show the Average Score (don't include '%')",null,null,null,"obsolete if child"]
["Fill in DX comment here",{"$f":"IF(Child=\"yes\",\"<p>This assessment inherits the rating of the tested {[Base_Model_permalink]§[Base_Model]}. Green NCAP’s Family Building procedure allows the transfer of test results to vehicles with equal key technical specifications.</p>\",\"\")","v":""},null,"Same comments as for verdict",null,null,null,"obsolete if child"]

{"sheet":"Sheet1","index":14,"n_rows":34,"n_cols":6,"rows_kept":34,"cut":false,"hidden":true,"merged":[]}
[]
["=","if('","Driving Experience Input'!$E$76","<>\"\",'",",\"\")",{"$f":"A$2&B$2&C2&D$2&C2&E$2","v":"=if('Driving Experience Input'!$E$76<>\"\",'Driving Experience Input'!$E$76,\"\")"}]
[null,null,"Driving Experience Input'!$F$76",null,null,{"$f":"A$2&B$2&C3&D$2&C3&E$2","v":"=if('Driving Experience Input'!$F$76<>\"\",'Driving Experience Input'!$F$76,\"\")"}]
[null,null,"Driving Experience Input'!$G$76",null,null,"=if('Driving Experience Input'!$G$76<>\"\",'Driving Experience Input'!$G$76,\"\")"]
[null,null,"Driving Experience Input'!$H$76",null,null,"=if('Driving Experience Input'!$H$76<>\"\",'Driving Experience Input'!$H$76,\"\")"]
[null,null,"Driving Experience'!$K$175",null,null,"=if('Driving Experience'!$K$175<>\"\",'Driving Experience'!$K$175,\"\")"]
[null,null,"Driving Experience'!$L$175",null,null,"=if('Driving Experience'!$L$175<>\"\",'Driving Experience'!$L$175,\"\")"]
[null,null,null,null,null,"=if('<>\"\",',\"\")"]
[null,null,null,null,null,"=if('<>\"\",',\"\")"]
[null,null,null,null,null,"=if('<>\"\",',\"\")"]
[null,null,null,null,null,"=if('<>\"\",',\"\")"]
[null,null,null,null,null,"=if('<>\"\",',\"\")"]
[null,null,null,null,null,"=if('<>\"\",',\"\")"]
[null,null,null,null,null,{"$f":"A$2&B$2&C14&D$2&C14&E$2","v":"=if('<>\"\",',\"\")"}]
[null,null,null,null,null,{"$f":"A$2&B$2&C15&D$2&C15&E$2","v":"=if('<>\"\",',\"\")"}]
[null,null,null,null,null,"=if('<>\"\",',\"\")"]
[null,null,null,null,null,"=if('<>\"\",',\"\")"]
[null,null,null,null,null,"=if('<>\"\",',\"\")"]
[null,null,null,null,null,"=if('<>\"\",',\"\")"]
[null,null,null,null,null,"=if('<>\"\",',\"\")"]
[]
[]
[]
[]
[]
[]
[]
[]
[null,null,null,null,null,"=if('Driving Experience Input'!$F$69<>\"\",'Driving Experience Input'!$F$69,\"\")"]
[null,null,null,null,null,"=if('Driving Experience Input'!$G$69<>\"\",'Driving Experience Input'!$G$69,\"\")"]
[null,null,null,null,null,"=if('Driving Experience Input'!$F$70<>\"\",'Driving Experience Input'!$F$70,\"\")"]
[null,null,null,null,null,"=if('Driving Experience Input'!$G$70<>\"\",'Driving Experience Input'!$G$70,\"\")"]
[null,null,null,null,null,"=if('Driving Experience'!$J$179<>\"\",'Driving Experience'!$J$179,\"\")"]
[null,null,null,null,null,"=if('Driving Experience'!$H$175<>\"\",'Driving Experience'!$H$175,\"\")"]

{"sheet":"Versions","index":15,"n_rows":41,"n_cols":10,"rows_kept":41,"cut":false,"hidden":false,"merged":[]}
["Table to enter variants only (enter partner / twin information in the tab 'Child vehicles')",null,null,null,"v 260508"]
[]
["Variant","Trim addition","Engine","Drivetrain","Gearbox","Combined"]
[{"$f":"IF(Table1[[#This Row],[Trim addition]]<>\"\",SPECS!$B$3,\"\")","v":0},"e.g.: Max",{"$f":"IF(Table1[[#This Row],[Trim addition]]<>\"\",LOWER(SPECS!$B$8),\"\")","v":"electric"},{"$f":"IF(Table1[[#This Row],[Trim addition]]<>\"\",SPECS!$B$7,\"\")","v":0},{"$f":"IF(Table1[[#This Row],[Trim addition]]<>\"\",LOWER(SPECS!$B$26),\"\")","v":""},{"$f":"TRIM(IF(ISBLANK(Table1[[#This Row],[Trim addition]]),\"\",\"[Make] [Model]\"&CHAR(10)&\"<strong>\"&Table1[[#This Row],[Variant]]&\" \"&Table1[[#This Row],[Trim addition]]&\" \"&Table1[[#This Row],[Engine]]&\" \"&Table1[[#This Row],[Drivetrain]]&\" \"&Table1[[#This Row],[Gearbox]]&\"</strong>;\"))","v":"[Make] [Model]\n<strong>0 e.g.: Max electric 0 </strong>;"}]
[{"$f":"IF(Table1[[#This Row],[Trim addition]]<>\"\",SPECS!$B$3,\"\")","v":0},"e.g.: Plus",{"$f":"IF(Table1[[#This Row],[Trim addition]]<>\"\",LOWER(SPECS!$B$8),\"\")","v":"electric"},{"$f":"IF(Table1[[#This Row],[Trim addition]]<>\"\",SPECS!$B$7,\"\")","v":0},{"$f":"IF(Table1[[#This Row],[Trim addition]]<>\"\",LOWER(SPECS!$B$26),\"\")","v":""},{"$f":"TRIM(IF(ISBLANK(Table1[[#This Row],[Trim addition]]),\"\",\"[Make] [Model]\"&CHAR(10)&\"<strong>\"&Table1[[#This Row],[Variant]]&\" \"&Table1[[#This Row],[Trim addition]]&\" \"&Table1[[#This Row],[Engine]]&\" \"&Table1[[#This Row],[Drivetrain]]&\" \"&Table1[[#This Row],[Gearbox]]&\"</strong>;\"))","v":"[Make] [Model]\n<strong>0 e.g.: Plus electric 0 </strong>;"},null,null,null,{"$f":"_xlfn.TEXTJOIN(CHAR(10)&CHAR(10), TRUE, F4:F41)","v":"[Make] [Model]\n<strong>0 e.g.: Max electric 0 </strong>;\n\n[Make] [Model]\n<strong>0 e.g.: Plus electric 0 </strong>;"}]
[{"$f":"IF(Table1[[#This Row],[Trim addition]]<>\"\",SPECS!$B$3,\"\")","v":""},null,{"$f":"IF(Table1[[#This Row],[Trim addition]]<>\"\",LOWER(SPECS!$B$8),\"\")","v":""},{"$f":"IF(Table1[[#This Row],[Trim addition]]<>\"\",SPECS!$B$7,\"\")","v":""},{"$f":"IF(Table1[[#This Row],[Trim addition]]<>\"\",LOWER(SPECS!$B$26),\"\")","v":""},{"$f":"TRIM(IF(ISBLANK(Table1[[#This Row],[Trim addition]]),\"\",\"[Make] [Model]\"&CHAR(10)&\"<strong>\"&Table1[[#This Row],[Variant]]&\" \"&Table1[[#This Row],[Trim addition]]&\" \"&Table1[[#This Row],[Engine]]&\" \"&Table1[[#This Row],[Drivetrain]]&\" \"&Table1[[#This Row],[Gearbox]]&\"</strong>;\"))","v":""}]
[{"$f":"IF(Table1[[#This Row],[Trim addition]]<>\"\",SPECS!$B$3,\"\")","v":""},null,{"$f":"IF(Table1[[#This Row],[Trim addition]]<>\"\",LOWER(SPECS!$B$8),\"\")","v":""},{"$f":"IF(Table1[[#This Row],[Trim addition]]<>\"\",SPECS!$B$7,\"\")","v":""},{"$f":"IF(Table1[[#This Row],[Trim addition]]<>\"\",LOWER(SPECS!$B$26),\"\")","v":""},{"$f":"TRIM(IF(ISBLANK(Table1[[#This Row],[Trim addition]]),\"\",\"[Make] [Model]\"&CHAR(10)&\"<strong>\"&Table1[[#This Row],[Variant]]&\" \"&Table1[[#This Row],[Trim addition]]&\" \"&Table1[[#This Row],[Engine]]&\" \"&Table1[[#This Row],[Drivetrain]]&\" \"&Table1[[#This Row],[Gearbox]]&\"</strong>;\"))","v":""}]
[{"$f":"IF(Table1[[#This Row],[Trim addition]]<>\"\",SPECS!$B$3,\"\")","v":""},null,{"$f":"IF(Table1[[#This Row],[Trim addition]]<>\"\",LOWER(SPECS!$B$8),\"\")","v":""},{"$f":"IF(Table1[[#This Row],[Trim addition]]<>\"\",SPECS!$B$7,\"\")","v":""},{"$f":"IF(Table1[[#This Row],[Trim addition]]<>\"\",LOWER(SPECS!$B$26),\"\")","v":""},{"$f":"TRIM(IF(ISBLANK(Table1[[#This Row],[Trim addition]]),\"\",\"[Make] [Model]\"&CHAR(10)&\"<strong>\"&Table1[[#This Row],[Variant]]&\" \"&Table1[[#This Row],[Trim addition]]&\" \"&Table1[[#This Row],[Engine]]&\" \"&Table1[[#This Row],[Drivetrain]]&\" \"&Table1[[#This Row],[Gearbox]]&\"</strong>;\"))","v":""}]
[{"$f":"IF(Table1[[#This Row],[Trim addition]]<>\"\",SPECS!$B$3,\"\")","v":""},null,{"$f":"IF(Table1[[#This Row],[Trim addition]]<>\"\",LOWER(SPECS!$B$8),\"\")","v":""},{"$f":"IF(Table1[[#This Row],[Trim addition]]<>\"\",SPECS!$B$7,\"\")","v":""},{"$f":"IF(Table1[[#This Row],[Trim addition]]<>\"\",LOWER(SPECS!$B$26),\"\")","v":""},{"$f":"TRIM(IF(ISBLANK(Table1[[#This Row],[Trim addition]]),\"\",\"[Make] [Model]\"&CHAR(10)&\"<strong>\"&Table1[[#This Row],[Variant]]&\" \"&Table1[[#This Row],[Trim addition]]&\" \"&Table1[[#This Row],[Engine]]&\" \"&Table1[[#This Row],[Drivetrain]]&\" \"&Table1[[#This Row],[Gearbox]]&\"</strong>;\"))","v":""}]
[{"$f":"IF(Table1[[#This Row],[Trim addition]]<>\"\",SPECS!$B$3,\"\")","v":""},null,{"$f":"IF(Table1[[#This Row],[Trim addition]]<>\"\",LOWER(SPECS!$B$8),\"\")","v":""},{"$f":"IF(Table1[[#This Row],[Trim addition]]<>\"\",SPECS!$B$7,\"\")","v":""},{"$f":"IF(Table1[[#This Row],[Trim addition]]<>\"\",LOWER(SPECS!$B$26),\"\")","v":""},{"$f":"TRIM(IF(ISBLANK(Table1[[#This Row],[Trim addition]]),\"\",\"[Make] [Model]\"&CHAR(10)&\"<strong>\"&Table1[[#This Row],[Variant]]&\" \"&Table1[[#This Row],[Trim addition]]&\" \"&Table1[[#This Row],[Engine]]&\" \"&Table1[[#This Row],[Drivetrain]]&\" \"&Table1[[#This Row],[Gearbox]]&\"</strong>;\"))","v":""}]
[{"$f":"IF(Table1[[#This Row],[Trim addition]]<>\"\",SPECS!$B$3,\"\")","v":""},null,{"$f":"IF(Table1[[#This Row],[Trim addition]]<>\"\",LOWER(SPECS!$B$8),\"\")","v":""},{"$f":"IF(Table1[[#This Row],[Trim addition]]<>\"\",SPECS!$B$7,\"\")","v":""},{"$f":"IF(Table1[[#This Row],[Trim addition]]<>\"\",LOWER(SPECS!$B$26),\"\")","v":""},{"$f":"TRIM(IF(ISBLANK(Table1[[#This Row],[Trim addition]]),\"\",\"[Make] [Model]\"&CHAR(10)&\"<strong>\"&Table1[[#This Row],[Variant]]&\" \"&Table1[[#This Row],[Trim addition]]&\" \"&Table1[[#This Row],[Engine]]&\" \"&Table1[[#This Row],[Drivetrain]]&\" \"&Table1[[#This Row],[Gearbox]]&\"</strong>;\"))","v":""}]
[{"$f":"IF(Table1[[#This Row],[Trim addition]]<>\"\",SPECS!$B$3,\"\")","v":""},null,{"$f":"IF(Table1[[#This Row],[Trim addition]]<>\"\",LOWER(SPECS!$B$8),\"\")","v":""},{"$f":"IF(Table1[[#This Row],[Trim addition]]<>\"\",SPECS!$B$7,\"\")","v":""},{"$f":"IF(Table1[[#This Row],[Trim addition]]<>\"\",LOWER(SPECS!$B$26),\"\")","v":""},{"$f":"TRIM(IF(ISBLANK(Table1[[#This Row],[Trim addition]]),\"\",\"[Make] [Model]\"&CHAR(10)&\"<strong>\"&Table1[[#This Row],[Variant]]&\" \"&Table1[[#This Row],[Trim addition]]&\" \"&Table1[[#This Row],[Engine]]&\" \"&Table1[[#This Row],[Drivetrain]]&\" \"&Table1[[#This Row],[Gearbox]]&\"</strong>;\"))","v":""}]
[{"$f":"IF(Table1[[#This Row],[Trim addition]]<>\"\",SPECS!$B$3,\"\")","v":""},null,{"$f":"IF(Table1[[#This Row],[Trim addition]]<>\"\",LOWER(SPECS!$B$8),\"\")","v":""},{"$f":"IF(Table1[[#This Row],[Trim addition]]<>\"\",SPECS!$B$7,\"\")","v":""},{"$f":"IF(Table1[[#This Row],[Trim addition]]<>\"\",LOWER(SPECS!$B$26),\"\")","v":""},{"$f":"TRIM(IF(ISBLANK(Table1[[#This Row],[Trim addition]]),\"\",\"[Make] [Model]\"&CHAR(10)&\"<strong>\"&Table1[[#This Row],[Variant]]&\" \"&Table1[[#This Row],[Trim addition]]&\" \"&Table1[[#This Row],[Engine]]&\" \"&Table1[[#This Row],[Drivetrain]]&\" \"&Table1[[#This Row],[Gearbox]]&\"</strong>;\"))","v":""}]
[{"$f":"IF(Table1[[#This Row],[Trim addition]]<>\"\",SPECS!$B$3,\"\")","v":""},null,{"$f":"IF(Table1[[#This Row],[Trim addition]]<>\"\",LOWER(SPECS!$B$8),\"\")","v":""},{"$f":"IF(Table1[[#This Row],[Trim addition]]<>\"\",SPECS!$B$7,\"\")","v":""},{"$f":"IF(Table1[[#This Row],[Trim addition]]<>\"\",LOWER(SPECS!$B$26),\"\")","v":""},{"$f":"TRIM(IF(ISBLANK(Table1[[#This Row],[Trim addition]]),\"\",\"[Make] [Model]\"&CHAR(10)&\"<strong>\"&Table1[[#This Row],[Variant]]&\" \"&Table1[[#This Row],[Trim addition]]&\" \"&Table1[[#This Row],[Engine]]&\" \"&Table1[[#This Row],[Drivetrain]]&\" \"&Table1[[#This Row],[Gearbox]]&\"</strong>;\"))","v":""}]
[{"$f":"IF(Table1[[#This Row],[Trim addition]]<>\"\",SPECS!$B$3,\"\")","v":""},null,{"$f":"IF(Table1[[#This Row],[Trim addition]]<>\"\",LOWER(SPECS!$B$8),\"\")","v":""},{"$f":"IF(Table1[[#This Row],[Trim addition]]<>\"\",SPECS!$B$7,\"\")","v":""},{"$f":"IF(Table1[[#This Row],[Trim addition]]<>\"\",LOWER(SPECS!$B$26),\"\")","v":""},{"$f":"TRIM(IF(ISBLANK(Table1[[#This Row],[Trim addition]]),\"\",\"[Make] [Model]\"&CHAR(10)&\"<strong>\"&Table1[[#This Row],[Variant]]&\" \"&Table1[[#This Row],[Trim addition]]&\" \"&Table1[[#This Row],[Engine]]&\" \"&Table1[[#This Row],[Drivetrain]]&\" \"&Table1[[#This Row],[Gearbox]]&\"</strong>;\"))","v":""}]
[{"$f":"IF(Table1[[#This Row],[Trim addition]]<>\"\",SPECS!$B$3,\"\")","v":""},null,{"$f":"IF(Table1[[#This Row],[Trim addition]]<>\"\",LOWER(SPECS!$B$8),\"\")","v":""},{"$f":"IF(Table1[[#This Row],[Trim addition]]<>\"\",SPECS!$B$7,\"\")","v":""},{"$f":"IF(Table1[[#This Row],[Trim addition]]<>\"\",LOWER(SPECS!$B$26),\"\")","v":""},{"$f":"TRIM(IF(ISBLANK(Table1[[#This Row],[Trim addition]]),\"\",\"[Make] [Model]\"&CHAR(10)&\"<strong>\"&Table1[[#This Row],[Variant]]&\" \"&Table1[[#This Row],[Trim addition]]&\" \"&Table1[[#This Row],[Engine]]&\" \"&Table1[[#This Row],[Drivetrain]]&\" \"&Table1[[#This Row],[Gearbox]]&\"</strong>;\"))","v":""}]
[{"$f":"IF(Table1[[#This Row],[Trim addition]]<>\"\",SPECS!$B$3,\"\")","v":""},null,{"$f":"IF(Table1[[#This Row],[Trim addition]]<>\"\",LOWER(SPECS!$B$8),\"\")","v":""},{"$f":"IF(Table1[[#This Row],[Trim addition]]<>\"\",SPECS!$B$7,\"\")","v":""},{"$f":"IF(Table1[[#This Row],[Trim addition]]<>\"\",LOWER(SPECS!$B$26),\"\")","v":""},{"$f":"TRIM(IF(ISBLANK(Table1[[#This Row],[Trim addition]]),\"\",\"[Make] [Model]\"&CHAR(10)&\"<strong>\"&Table1[[#This Row],[Variant]]&\" \"&Table1[[#This Row],[Trim addition]]&\" \"&Table1[[#This Row],[Engine]]&\" \"&Table1[[#This Row],[Drivetrain]]&\" \"&Table1[[#This Row],[Gearbox]]&\"</strong>;\"))","v":""}]
[{"$f":"IF(Table1[[#This Row],[Trim addition]]<>\"\",SPECS!$B$3,\"\")","v":""},null,{"$f":"IF(Table1[[#This Row],[Trim addition]]<>\"\",LOWER(SPECS!$B$8),\"\")","v":""},{"$f":"IF(Table1[[#This Row],[Trim addition]]<>\"\",SPECS!$B$7,\"\")","v":""},{"$f":"IF(Table1[[#This Row],[Trim addition]]<>\"\",LOWER(SPECS!$B$26),\"\")","v":""},{"$f":"TRIM(IF(ISBLANK(Table1[[#This Row],[Trim addition]]),\"\",\"[Make] [Model]\"&CHAR(10)&\"<strong>\"&Table1[[#This Row],[Variant]]&\" \"&Table1[[#This Row],[Trim addition]]&\" \"&Table1[[#This Row],[Engine]]&\" \"&Table1[[#This Row],[Drivetrain]]&\" \"&Table1[[#This Row],[Gearbox]]&\"</strong>;\"))","v":""}]
[{"$f":"IF(Table1[[#This Row],[Trim addition]]<>\"\",SPECS!$B$3,\"\")","v":""},null,{"$f":"IF(Table1[[#This Row],[Trim addition]]<>\"\",LOWER(SPECS!$B$8),\"\")","v":""},{"$f":"IF(Table1[[#This Row],[Trim addition]]<>\"\",SPECS!$B$7,\"\")","v":""},{"$f":"IF(Table1[[#This Row],[Trim addition]]<>\"\",LOWER(SPECS!$B$26),\"\")","v":""},{"$f":"TRIM(IF(ISBLANK(Table1[[#This Row],[Trim addition]]),\"\",\"[Make] [Model]\"&CHAR(10)&\"<strong>\"&Table1[[#This Row],[Variant]]&\" \"&Table1[[#This Row],[Trim addition]]&\" \"&Table1[[#This Row],[Engine]]&\" \"&Table1[[#This Row],[Drivetrain]]&\" \"&Table1[[#This Row],[Gearbox]]&\"</strong>;\"))","v":""}]
[{"$f":"IF(Table1[[#This Row],[Trim addition]]<>\"\",SPECS!$B$3,\"\")","v":""},null,{"$f":"IF(Table1[[#This Row],[Trim addition]]<>\"\",LOWER(SPECS!$B$8),\"\")","v":""},{"$f":"IF(Table1[[#This Row],[Trim addition]]<>\"\",SPECS!$B$7,\"\")","v":""},{"$f":"IF(Table1[[#This Row],[Trim addition]]<>\"\",LOWER(SPECS!$B$26),\"\")","v":""},{"$f":"TRIM(IF(ISBLANK(Table1[[#This Row],[Trim addition]]),\"\",\"[Make] [Model]\"&CHAR(10)&\"<strong>\"&Table1[[#This Row],[Variant]]&\" \"&Table1[[#This Row],[Trim addition]]&\" \"&Table1[[#This Row],[Engine]]&\" \"&Table1[[#This Row],[Drivetrain]]&\" \"&Table1[[#This Row],[Gearbox]]&\"</strong>;\"))","v":""}]
[{"$f":"IF(Table1[[#This Row],[Trim addition]]<>\"\",SPECS!$B$3,\"\")","v":""},null,{"$f":"IF(Table1[[#This Row],[Trim addition]]<>\"\",LOWER(SPECS!$B$8),\"\")","v":""},{"$f":"IF(Table1[[#This Row],[Trim addition]]<>\"\",SPECS!$B$7,\"\")","v":""},{"$f":"IF(Table1[[#This Row],[Trim addition]]<>\"\",LOWER(SPECS!$B$26),\"\")","v":""},{"$f":"TRIM(IF(ISBLANK(Table1[[#This Row],[Trim addition]]),\"\",\"[Make] [Model]\"&CHAR(10)&\"<strong>\"&Table1[[#This Row],[Variant]]&\" \"&Table1[[#This Row],[Trim addition]]&\" \"&Table1[[#This Row],[Engine]]&\" \"&Table1[[#This Row],[Drivetrain]]&\" \"&Table1[[#This Row],[Gearbox]]&\"</strong>;\"))","v":""}]
[{"$f":"IF(Table1[[#This Row],[Trim addition]]<>\"\",SPECS!$B$3,\"\")","v":""},null,{"$f":"IF(Table1[[#This Row],[Trim addition]]<>\"\",LOWER(SPECS!$B$8),\"\")","v":""},{"$f":"IF(Table1[[#This Row],[Trim addition]]<>\"\",SPECS!$B$7,\"\")","v":""},{"$f":"IF(Table1[[#This Row],[Trim addition]]<>\"\",LOWER(SPECS!$B$26),\"\")","v":""},{"$f":"TRIM(IF(ISBLANK(Table1[[#This Row],[Trim addition]]),\"\",\"[Make] [Model]\"&CHAR(10)&\"<strong>\"&Table1[[#This Row],[Variant]]&\" \"&Table1[[#This Row],[Trim addition]]&\" \"&Table1[[#This Row],[Engine]]&\" \"&Table1[[#This Row],[Drivetrain]]&\" \"&Table1[[#This Row],[Gearbox]]&\"</strong>;\"))","v":""}]
[{"$f":"IF(Table1[[#This Row],[Trim addition]]<>\"\",SPECS!$B$3,\"\")","v":""},null,{"$f":"IF(Table1[[#This Row],[Trim addition]]<>\"\",LOWER(SPECS!$B$8),\"\")","v":""},{"$f":"IF(Table1[[#This Row],[Trim addition]]<>\"\",SPECS!$B$7,\"\")","v":""},{"$f":"IF(Table1[[#This Row],[Trim addition]]<>\"\",LOWER(SPECS!$B$26),\"\")","v":""},{"$f":"TRIM(IF(ISBLANK(Table1[[#This Row],[Trim addition]]),\"\",\"[Make] [Model]\"&CHAR(10)&\"<strong>\"&Table1[[#This Row],[Variant]]&\" \"&Table1[[#This Row],[Trim addition]]&\" \"&Table1[[#This Row],[Engine]]&\" \"&Table1[[#This Row],[Drivetrain]]&\" \"&Table1[[#This Row],[Gearbox]]&\"</strong>;\"))","v":""}]
[{"$f":"IF(Table1[[#This Row],[Trim addition]]<>\"\",SPECS!$B$3,\"\")","v":""},null,{"$f":"IF(Table1[[#This Row],[Trim addition]]<>\"\",LOWER(SPECS!$B$8),\"\")","v":""},{"$f":"IF(Table1[[#This Row],[Trim addition]]<>\"\",SPECS!$B$7,\"\")","v":""},{"$f":"IF(Table1[[#This Row],[Trim addition]]<>\"\",LOWER(SPECS!$B$26),\"\")","v":""},{"$f":"TRIM(IF(ISBLANK(Table1[[#This Row],[Trim addition]]),\"\",\"[Make] [Model]\"&CHAR(10)&\"<strong>\"&Table1[[#This Row],[Variant]]&\" \"&Table1[[#This Row],[Trim addition]]&\" \"&Table1[[#This Row],[Engine]]&\" \"&Table1[[#This Row],[Drivetrain]]&\" \"&Table1[[#This Row],[Gearbox]]&\"</strong>;\"))","v":""}]
[{"$f":"IF(Table1[[#This Row],[Trim addition]]<>\"\",SPECS!$B$3,\"\")","v":""},null,{"$f":"IF(Table1[[#This Row],[Trim addition]]<>\"\",LOWER(SPECS!$B$8),\"\")","v":""},{"$f":"IF(Table1[[#This Row],[Trim addition]]<>\"\",SPECS!$B$7,\"\")","v":""},{"$f":"IF(Table1[[#This Row],[Trim addition]]<>\"\",LOWER(SPECS!$B$26),\"\")","v":""},{"$f":"TRIM(IF(ISBLANK(Table1[[#This Row],[Trim addition]]),\"\",\"[Make] [Model]\"&CHAR(10)&\"<strong>\"&Table1[[#This Row],[Variant]]&\" \"&Table1[[#This Row],[Trim addition]]&\" \"&Table1[[#This Row],[Engine]]&\" \"&Table1[[#This Row],[Drivetrain]]&\" \"&Table1[[#This Row],[Gearbox]]&\"</strong>;\"))","v":""}]
[{"$f":"IF(Table1[[#This Row],[Trim addition]]<>\"\",SPECS!$B$3,\"\")","v":""},null,{"$f":"IF(Table1[[#This Row],[Trim addition]]<>\"\",LOWER(SPECS!$B$8),\"\")","v":""},{"$f":"IF(Table1[[#This Row],[Trim addition]]<>\"\",SPECS!$B$7,\"\")","v":""},{"$f":"IF(Table1[[#This Row],[Trim addition]]<>\"\",LOWER(SPECS!$B$26),\"\")","v":""},{"$f":"TRIM(IF(ISBLANK(Table1[[#This Row],[Trim addition]]),\"\",\"[Make] [Model]\"&CHAR(10)&\"<strong>\"&Table1[[#This Row],[Variant]]&\" \"&Table1[[#This Row],[Trim addition]]&\" \"&Table1[[#This Row],[Engine]]&\" \"&Table1[[#This Row],[Drivetrain]]&\" \"&Table1[[#This Row],[Gearbox]]&\"</strong>;\"))","v":""}]
[{"$f":"IF(Table1[[#This Row],[Trim addition]]<>\"\",SPECS!$B$3,\"\")","v":""},null,{"$f":"IF(Table1[[#This Row],[Trim addition]]<>\"\",LOWER(SPECS!$B$8),\"\")","v":""},{"$f":"IF(Table1[[#This Row],[Trim addition]]<>\"\",SPECS!$B$7,\"\")","v":""},{"$f":"IF(Table1[[#This Row],[Trim addition]]<>\"\",LOWER(SPECS!$B$26),\"\")","v":""},{"$f":"TRIM(IF(ISBLANK(Table1[[#This Row],[Trim addition]]),\"\",\"[Make] [Model]\"&CHAR(10)&\"<strong>\"&Table1[[#This Row],[Variant]]&\" \"&Table1[[#This Row],[Trim addition]]&\" \"&Table1[[#This Row],[Engine]]&\" \"&Table1[[#This Row],[Drivetrain]]&\" \"&Table1[[#This Row],[Gearbox]]&\"</strong>;\"))","v":""}]
[{"$f":"IF(Table1[[#This Row],[Trim addition]]<>\"\",SPECS!$B$3,\"\")","v":""},null,{"$f":"IF(Table1[[#This Row],[Trim addition]]<>\"\",LOWER(SPECS!$B$8),\"\")","v":""},{"$f":"IF(Table1[[#This Row],[Trim addition]]<>\"\",SPECS!$B$7,\"\")","v":""},{"$f":"IF(Table1[[#This Row],[Trim addition]]<>\"\",LOWER(SPECS!$B$26),\"\")","v":""},{"$f":"TRIM(IF(ISBLANK(Table1[[#This Row],[Trim addition]]),\"\",\"[Make] [Model]\"&CHAR(10)&\"<strong>\"&Table1[[#This Row],[Variant]]&\" \"&Table1[[#This Row],[Trim addition]]&\" \"&Table1[[#This Row],[Engine]]&\" \"&Table1[[#This Row],[Drivetrain]]&\" \"&Table1[[#This Row],[Gearbox]]&\"</strong>;\"))","v":""}]
[{"$f":"IF(Table1[[#This Row],[Trim addition]]<>\"\",SPECS!$B$3,\"\")","v":""},null,{"$f":"IF(Table1[[#This Row],[Trim addition]]<>\"\",LOWER(SPECS!$B$8),\"\")","v":""},{"$f":"IF(Table1[[#This Row],[Trim addition]]<>\"\",SPECS!$B$7,\"\")","v":""},{"$f":"IF(Table1[[#This Row],[Trim addition]]<>\"\",LOWER(SPECS!$B$26),\"\")","v":""},{"$f":"TRIM(IF(ISBLANK(Table1[[#This Row],[Trim addition]]),\"\",\"[Make] [Model]\"&CHAR(10)&\"<strong>\"&Table1[[#This Row],[Variant]]&\" \"&Table1[[#This Row],[Trim addition]]&\" \"&Table1[[#This Row],[Engine]]&\" \"&Table1[[#This Row],[Drivetrain]]&\" \"&Table1[[#This Row],[Gearbox]]&\"</strong>;\"))","v":""}]
[{"$f":"IF(Table1[[#This Row],[Trim addition]]<>\"\",SPECS!$B$3,\"\")","v":""},null,{"$f":"IF(Table1[[#This Row],[Trim addition]]<>\"\",LOWER(SPECS!$B$8),\"\")","v":""},{"$f":"IF(Table1[[#This Row],[Trim addition]]<>\"\",SPECS!$B$7,\"\")","v":""},{"$f":"IF(Table1[[#This Row],[Trim addition]]<>\"\",LOWER(SPECS!$B$26),\"\")","v":""},{"$f":"TRIM(IF(ISBLANK(Table1[[#This Row],[Trim addition]]),\"\",\"[Make] [Model]\"&CHAR(10)&\"<strong>\"&Table1[[#This Row],[Variant]]&\" \"&Table1[[#This Row],[Trim addition]]&\" \"&Table1[[#This Row],[Engine]]&\" \"&Table1[[#This Row],[Drivetrain]]&\" \"&Table1[[#This Row],[Gearbox]]&\"</strong>;\"))","v":""}]
[{"$f":"IF(Table1[[#This Row],[Trim addition]]<>\"\",SPECS!$B$3,\"\")","v":""},null,{"$f":"IF(Table1[[#This Row],[Trim addition]]<>\"\",LOWER(SPECS!$B$8),\"\")","v":""},{"$f":"IF(Table1[[#This Row],[Trim addition]]<>\"\",SPECS!$B$7,\"\")","v":""},{"$f":"IF(Table1[[#This Row],[Trim addition]]<>\"\",LOWER(SPECS!$B$26),\"\")","v":""},{"$f":"TRIM(IF(ISBLANK(Table1[[#This Row],[Trim addition]]),\"\",\"[Make] [Model]\"&CHAR(10)&\"<strong>\"&Table1[[#This Row],[Variant]]&\" \"&Table1[[#This Row],[Trim addition]]&\" \"&Table1[[#This Row],[Engine]]&\" \"&Table1[[#This Row],[Drivetrain]]&\" \"&Table1[[#This Row],[Gearbox]]&\"</strong>;\"))","v":""}]
[{"$f":"IF(Table1[[#This Row],[Trim addition]]<>\"\",SPECS!$B$3,\"\")","v":""},null,{"$f":"IF(Table1[[#This Row],[Trim addition]]<>\"\",LOWER(SPECS!$B$8),\"\")","v":""},{"$f":"IF(Table1[[#This Row],[Trim addition]]<>\"\",SPECS!$B$7,\"\")","v":""},{"$f":"IF(Table1[[#This Row],[Trim addition]]<>\"\",LOWER(SPECS!$B$26),\"\")","v":""},{"$f":"TRIM(IF(ISBLANK(Table1[[#This Row],[Trim addition]]),\"\",\"[Make] [Model]\"&CHAR(10)&\"<strong>\"&Table1[[#This Row],[Variant]]&\" \"&Table1[[#This Row],[Trim addition]]&\" \"&Table1[[#This Row],[Engine]]&\" \"&Table1[[#This Row],[Drivetrain]]&\" \"&Table1[[#This Row],[Gearbox]]&\"</strong>;\"))","v":""}]
[{"$f":"IF(Table1[[#This Row],[Trim addition]]<>\"\",SPECS!$B$3,\"\")","v":""},null,{"$f":"IF(Table1[[#This Row],[Trim addition]]<>\"\",LOWER(SPECS!$B$8),\"\")","v":""},{"$f":"IF(Table1[[#This Row],[Trim addition]]<>\"\",SPECS!$B$7,\"\")","v":""},{"$f":"IF(Table1[[#This Row],[Trim addition]]<>\"\",LOWER(SPECS!$B$26),\"\")","v":""},{"$f":"TRIM(IF(ISBLANK(Table1[[#This Row],[Trim addition]]),\"\",\"[Make] [Model]\"&CHAR(10)&\"<strong>\"&Table1[[#This Row],[Variant]]&\" \"&Table1[[#This Row],[Trim addition]]&\" \"&Table1[[#This Row],[Engine]]&\" \"&Table1[[#This Row],[Drivetrain]]&\" \"&Table1[[#This Row],[Gearbox]]&\"</strong>;\"))","v":""}]
[{"$f":"IF(Table1[[#This Row],[Trim addition]]<>\"\",SPECS!$B$3,\"\")","v":""},null,{"$f":"IF(Table1[[#This Row],[Trim addition]]<>\"\",LOWER(SPECS!$B$8),\"\")","v":""},{"$f":"IF(Table1[[#This Row],[Trim addition]]<>\"\",SPECS!$B$7,\"\")","v":""},{"$f":"IF(Table1[[#This Row],[Trim addition]]<>\"\",LOWER(SPECS!$B$26),\"\")","v":""},{"$f":"TRIM(IF(ISBLANK(Table1[[#This Row],[Trim addition]]),\"\",\"[Make] [Model]\"&CHAR(10)&\"<strong>\"&Table1[[#This Row],[Variant]]&\" \"&Table1[[#This Row],[Trim addition]]&\" \"&Table1[[#This Row],[Engine]]&\" \"&Table1[[#This Row],[Drivetrain]]&\" \"&Table1[[#This Row],[Gearbox]]&\"</strong>;\"))","v":""}]
[{"$f":"IF(Table1[[#This Row],[Trim addition]]<>\"\",SPECS!$B$3,\"\")","v":""},null,{"$f":"IF(Table1[[#This Row],[Trim addition]]<>\"\",LOWER(SPECS!$B$8),\"\")","v":""},{"$f":"IF(Table1[[#This Row],[Trim addition]]<>\"\",SPECS!$B$7,\"\")","v":""},{"$f":"IF(Table1[[#This Row],[Trim addition]]<>\"\",LOWER(SPECS!$B$26),\"\")","v":""},{"$f":"TRIM(IF(ISBLANK(Table1[[#This Row],[Trim addition]]),\"\",\"[Make] [Model]\"&CHAR(10)&\"<strong>\"&Table1[[#This Row],[Variant]]&\" \"&Table1[[#This Row],[Trim addition]]&\" \"&Table1[[#This Row],[Engine]]&\" \"&Table1[[#This Row],[Drivetrain]]&\" \"&Table1[[#This Row],[Gearbox]]&\"</strong>;\"))","v":""}]
[{"$f":"IF(Table1[[#This Row],[Trim addition]]<>\"\",SPECS!$B$3,\"\")","v":""},null,{"$f":"IF(Table1[[#This Row],[Trim addition]]<>\"\",LOWER(SPECS!$B$8),\"\")","v":""},{"$f":"IF(Table1[[#This Row],[Trim addition]]<>\"\",SPECS!$B$7,\"\")","v":""},{"$f":"IF(Table1[[#This Row],[Trim addition]]<>\"\",LOWER(SPECS!$B$26),\"\")","v":""},{"$f":"TRIM(IF(ISBLANK(Table1[[#This Row],[Trim addition]]),\"\",\"[Make] [Model]\"&CHAR(10)&\"<strong>\"&Table1[[#This Row],[Variant]]&\" \"&Table1[[#This Row],[Trim addition]]&\" \"&Table1[[#This Row],[Engine]]&\" \"&Table1[[#This Row],[Drivetrain]]&\" \"&Table1[[#This Row],[Gearbox]]&\"</strong>;\"))","v":""}]
[{"$f":"IF(Table1[[#This Row],[Trim addition]]<>\"\",SPECS!$B$3,\"\")","v":""},null,{"$f":"IF(Table1[[#This Row],[Trim addition]]<>\"\",LOWER(SPECS!$B$8),\"\")","v":""},{"$f":"IF(Table1[[#This Row],[Trim addition]]<>\"\",SPECS!$B$7,\"\")","v":""},{"$f":"IF(Table1[[#This Row],[Trim addition]]<>\"\",LOWER(SPECS!$B$26),\"\")","v":""},{"$f":"TRIM(IF(ISBLANK(Table1[[#This Row],[Trim addition]]),\"\",\"[Make] [Model]\"&CHAR(10)&\"<strong>\"&Table1[[#This Row],[Variant]]&\" \"&Table1[[#This Row],[Trim addition]]&\" \"&Table1[[#This Row],[Engine]]&\" \"&Table1[[#This Row],[Drivetrain]]&\" \"&Table1[[#This Row],[Gearbox]]&\"</strong>;\"))","v":""}]
[{"$f":"IF(Table1[[#This Row],[Trim addition]]<>\"\",SPECS!$B$3,\"\")","v":""},null,{"$f":"IF(Table1[[#This Row],[Trim addition]]<>\"\",LOWER(SPECS!$B$8),\"\")","v":""},{"$f":"IF(Table1[[#This Row],[Trim addition]]<>\"\",SPECS!$B$7,\"\")","v":""},{"$f":"IF(Table1[[#This Row],[Trim addition]]<>\"\",LOWER(SPECS!$B$26),\"\")","v":""},{"$f":"TRIM(IF(ISBLANK(Table1[[#This Row],[Trim addition]]),\"\",\"[Make] [Model]\"&CHAR(10)&\"<strong>\"&Table1[[#This Row],[Variant]]&\" \"&Table1[[#This Row],[Trim addition]]&\" \"&Table1[[#This Row],[Engine]]&\" \"&Table1[[#This Row],[Drivetrain]]&\" \"&Table1[[#This Row],[Gearbox]]&\"</strong>;\"))","v":""}]
[{"$f":"IF(Table1[[#This Row],[Trim addition]]<>\"\",SPECS!$B$3,\"\")","v":""},null,{"$f":"IF(Table1[[#This Row],[Trim addition]]<>\"\",LOWER(SPECS!$B$8),\"\")","v":""},{"$f":"IF(Table1[[#This Row],[Trim addition]]<>\"\",SPECS!$B$7,\"\")","v":""},{"$f":"IF(Table1[[#This Row],[Trim addition]]<>\"\",LOWER(SPECS!$B$26),\"\")","v":""},{"$f":"TRIM(IF(ISBLANK(Table1[[#This Row],[Trim addition]]),\"\",\"[Make] [Model]\"&CHAR(10)&\"<strong>\"&Table1[[#This Row],[Variant]]&\" \"&Table1[[#This Row],[Trim addition]]&\" \"&Table1[[#This Row],[Engine]]&\" \"&Table1[[#This Row],[Drivetrain]]&\" \"&Table1[[#This Row],[Gearbox]]&\"</strong>;\"))","v":""}]
[{"$f":"IF(Table1[[#This Row],[Trim addition]]<>\"\",SPECS!$B$3,\"\")","v":""},null,{"$f":"IF(Table1[[#This Row],[Trim addition]]<>\"\",LOWER(SPECS!$B$8),\"\")","v":""},{"$f":"IF(Table1[[#This Row],[Trim addition]]<>\"\",SPECS!$B$7,\"\")","v":""},{"$f":"IF(Table1[[#This Row],[Trim addition]]<>\"\",LOWER(SPECS!$B$26),\"\")","v":""},{"$f":"TRIM(IF(ISBLANK(Table1[[#This Row],[Trim addition]]),\"\",\"[Make] [Model]\"&CHAR(10)&\"<strong>\"&Table1[[#This Row],[Variant]]&\" \"&Table1[[#This Row],[Trim addition]]&\" \"&Table1[[#This Row],[Engine]]&\" \"&Table1[[#This Row],[Drivetrain]]&\" \"&Table1[[#This Row],[Gearbox]]&\"</strong>;\"))","v":""}]
[{"$f":"IF(Table1[[#This Row],[Trim addition]]<>\"\",SPECS!$B$3,\"\")","v":""},null,{"$f":"IF(Table1[[#This Row],[Trim addition]]<>\"\",LOWER(SPECS!$B$8),\"\")","v":""},{"$f":"IF(Table1[[#This Row],[Trim addition]]<>\"\",SPECS!$B$7,\"\")","v":""},{"$f":"IF(Table1[[#This Row],[Trim addition]]<>\"\",LOWER(SPECS!$B$26),\"\")","v":""},{"$f":"TRIM(IF(ISBLANK(Table1[[#This Row],[Trim addition]]),\"\",\"[Make] [Model]\"&CHAR(10)&\"<strong>\"&Table1[[#This Row],[Variant]]&\" \"&Table1[[#This Row],[Trim addition]]&\" \"&Table1[[#This Row],[Engine]]&\" \"&Table1[[#This Row],[Drivetrain]]&\" \"&Table1[[#This Row],[Gearbox]]&\"</strong>;\"))","v":""}]

{"sheet":"Child vehicles","index":16,"n_rows":578,"n_cols":16,"rows_kept":578,"cut":false,"hidden":false,"merged":[]}
["Make","Model","Variant name (Type)","Vehicle class / category","Electric Engine","ICE engine","Drivetrain","Gearbox",null,"v 250731",null,null,null,null,"Make","Model"]
[null,null,null,null,null,null,{"$f":"IF(A2<>\"\", SPECS!B$7, \"\")","v":""},{"$f":"IF(A2<>\"\", SPECS!B$26, \"\")","v":""},null,"Model names are provided as reference to existing model names.","Electric Engine","BEV","electric","Fill in the highlighted cell!","AION","#1"]
[null,null,null,null,null,null,{"$f":"IF(A3<>\"\", SPECS!B$7, \"\")","v":""},{"$f":"IF(A3<>\"\", SPECS!B$26, \"\")","v":""},null,"E.g., \"BMW 1 Series\" should not also appear as \"BMW 1-Series\" to maintain consistency.",null,"hybrid","hybrid",null,"Aiways","#3"]
[null,null,null,null,null,null,{"$f":"IF(A4<>\"\", SPECS!B$7, \"\")","v":""},{"$f":"IF(A4<>\"\", SPECS!B$26, \"\")","v":""},null,"If a (new) model name is not listed, please enter it manually.",null,"hydrogen","hydrogen",null,"Alfa Romeo","#5"]
[null,null,null,null,null,null,{"$f":"IF(A5<>\"\", SPECS!B$7, \"\")","v":""},{"$f":"IF(A5<>\"\", SPECS!B$26, \"\")","v":""},null,null,null,"mild hybrid",null,null,"Alpine","001"]
[null,null,null,null,null,null,{"$f":"IF(A6<>\"\", SPECS!B$7, \"\")","v":""},{"$f":"IF(A6<>\"\", SPECS!B$26, \"\")","v":""},null,"Variant names",null,"PHEV","plug-in hybrid",null,"Aston Martin","01"]
[null,null,null,null,null,null,{"$f":"IF(A7<>\"\", SPECS!B$7, \"\")","v":""},{"$f":"IF(A7<>\"\", SPECS!B$26, \"\")","v":""},null,"For ICE models, avoid mentioning litres as unit, if it must be included, use a lower case l preceeded by a space","ICE","CNG","CNG",null,"Audi","02"]
[null,null,null,null,null,null,{"$f":"IF(A8<>\"\", SPECS!B$7, \"\")","v":""},{"$f":"IF(A8<>\"\", SPECS!B$26, \"\")","v":""},null,"Always use a dot as a decimal separator for engine size",null,"CNG-petrol","CNG-petrol",null,"BMW","07"]
[null,null,null,null,null,null,{"$f":"IF(A9<>\"\", SPECS!B$7, \"\")","v":""},{"$f":"IF(A9<>\"\", SPECS!B$26, \"\")","v":""},null,"e.g., 1.5 TSI or 1.0 EcoBoost or 1.6 l",null,"diesel","diesel",null,"BYD","08"]
[null,null,null,null,null,null,null,null,null,null,null,"E85","E85",null,"Byton","1 Series"]
[null,null,null,null,"Info is automatically taken from the base model",null,null,null,null,null,null,"LPG","LPG",null,"Cadillac","2"]
[null,null,null,null,null,null,null,null,null,null,null,"petrol","petrol",null,"Chang'An","2 Hybrid"]
[null,null,null,null,null,null,null,null,null,{"$f":"--(SUMPRODUCT(--ISNUMBER(SEARCH(\"0,\",C2:C30))+--ISNUMBER(SEARCH(\"1,\",C2:C30))+--ISNUMBER(SEARCH(\"2,\",C2:C30))+--ISNUMBER(SEARCH(\"3,\",C2:C30))+--ISNUMBER(SEARCH(\"4,\",C2:C30))+--ISNUMBER(SEARCH(\"5,\",C2:C30))+--ISNUMBER(SEARCH(\"6,\",C2:C30))+--ISNUMBER(SEARCH(\"7,\",C2:C30))+--ISNUMBER(SEARCH(\"8,\",C2:C30))+--ISNUMBER(SEARCH(\"9,\",C2:C30)))>0)","v":0},null,null,null,null,"CHERY","2 Series Active Tourer"]
[null,null,null,null,null,null,null,null,null,null,null,null,null,null,"Chevrolet","2 Series Coupé"]
[null,null,null,null,null,null,null,null,null,null,null,null,null,null,"Chrysler","2 Series Gran Coupe"]
[null,null,null,null,null,null,null,null,null,null,null,null,null,null,"Citroën","2 Series Gran Coupé"]
[null,null,null,null,null,null,null,null,null,null,null,null,null,null,"Cupra","2008"]
[null,null,null,null,null,null,null,null,null,null,null,null,null,null,"Dacia","2023-11-30-Euro-By Op Mgr"]
[null,null,null,null,null,null,null,null,null,null,null,null,null,null,"DAF","2023-11-30-GREEN-By Op Mgr"]
[null,null,null,null,null,null,null,null,null,null,null,null,null,null,"Deepal","208"]
[null,null,null,null,null,null,null,null,null,null,null,null,null,null,"Dodge","3"]
[null,null,null,null,null,null,null,null,null,null,null,null,null,null,"Dongfeng","3 Crossback"]
[null,null,null,null,null,null,null,null,null,null,null,null,null,null,"DS","3 Crossback e-TENSE"]
[null,null,null,null,null,null,null,null,null,null,null,null,null,null,"EBRO","3 Series"]
[null,null,null,null,null,null,null,null,null,null,null,null,null,null,"Exlantix","3008"]
[null,null,null,null,null,null,null,null,null,null,null,null,null,null,"Farizon","3008 Hybrid4"]
[null,null,null,null,null,null,null,null,null,null,null,null,null,null,"FIAT","308"]
[null,null,null,null,null,null,null,null,null,null,null,null,null,null,"firefly","308 PHEV"]
[null,null,null,null,null,null,null,null,null,null,null,null,null,null,"Ford","4"]
[null,null,null,null,null,null,null,null,null,null,null,null,null,null,"GEELY","4 Electric"]
[null,null,null,null,null,null,null,null,null,null,null,null,null,null,"Genesis","4 E-Tech Electric"]
[null,null,null,null,null,null,null,null,null,null,null,null,null,null,"GWM","4 EV Urban"]
[null,null,null,null,null,null,null,null,null,null,null,null,null,null,"Honda","4 Series Convertible"]
[null,null,null,null,null,null,null,null,null,null,null,null,null,null,"Hongqi","4 Series Coupé"]
[null,null,null,null,null,null,null,null,null,null,null,null,null,null,"Hyundai","408"]
[null,null,null,null,null,null,null,null,null,null,null,null,null,null,"IM","4L"]
[null,null,null,null,null,null,null,null,null,null,null,null,null,null,"Infiniti","5"]
[null,null,null,null,null,null,null,null,null,null,null,null,null,null,"Isuzu","5 Series"]
[null,null,null,null,null,null,null,null,null,null,null,null,null,null,"Iveco","500"]
[null,null,null,null,null,null,null,null,null,null,null,null,null,null,"JAECOO","5008"]
[null,null,null,null,null,null,null,null,null,null,null,null,null,null,"Jaguar","500e"]
[null,null,null,null,null,null,null,null,null,null,null,null,null,null,"Jeep","508"]
[null,null,null,null,null,null,null,null,null,null,null,null,null,null,"JuneYao","508 Hybrid"]
[null,null,null,null,null,null,null,null,null,null,null,null,null,null,"Kia","6"]
[null,null,null,null,null,null,null,null,null,null,null,null,null,null,"Lancia","6 Series GT"]
[null,null,null,null,null,null,null,null,null,null,null,null,null,null,"Land Rover","600e"]
[null,null,null,null,null,null,null,null,null,null,null,null,null,null,"Leapmotor","6e"]
[null,null,null,null,null,null,null,null,null,null,null,null,null,null,"LEVC","7 Crossback"]
[null,null,null,null,null,null,null,null,null,null,null,null,null,null,"Lexus","7 Crossback PHEV"]
[null,null,null,null,null,null,null,null,null,null,null,null,null,null,"Lotus","7 PHEV"]
[null,null,null,null,null,null,null,null,null,null,null,null,null,null,"Lucid","7X"]
[null,null,null,null,null,null,null,null,null,null,null,null,null,null,"Lynk & Co","9"]
[null,null,null,null,null,null,null,null,null,null,null,null,null,null,"MAN","A1"]
[null,null,null,null,null,null,null,null,null,null,null,null,null,null,"Maserati","A290"]
[null,null,null,null,null,null,null,null,null,null,null,null,null,null,"Maxus","A3"]
[null,null,null,null,null,null,null,null,null,null,null,null,null,null,"MAZDA","A390"]
[null,null,null,null,null,null,null,null,null,null,null,null,null,null,"Mercedes-Benz","A4"]
[null,null,null,null,null,null,null,null,null,null,null,null,null,null,"MG","A4 Avant g-tron"]
[null,null,null,null,null,null,null,null,null,null,null,null,null,null,"MINI","A5"]
[null,null,null,null,null,null,null,null,null,null,null,null,null,null,"Mitsubishi","A5 PHEV"]
[null,null,null,null,null,null,null,null,null,null,null,null,null,null,"Mobilize","A6"]
[null,null,null,null,null,null,null,null,null,null,null,null,null,null,"NIO","A6 e-tron"]
[null,null,null,null,null,null,null,null,null,null,null,null,null,null,"Nissan","A6 PHEV"]
[null,null,null,null,null,null,null,null,null,null,null,null,null,null,"OMODA","A7"]
[null,null,null,null,null,null,null,null,null,null,null,null,null,null,"Opel","A7 Sportback"]
[null,null,null,null,null,null,null,null,null,null,null,null,null,null,"ORA","Aceman"]
[null,null,null,null,null,null,null,null,null,null,null,null,null,null,"Peugeot","A-Class"]
[null,null,null,null,null,null,null,null,null,null,null,null,null,null,"Polestar","Actros"]
[null,null,null,null,null,null,null,null,null,null,null,null,null,null,"Porsche","Actros L (2024 MY)"]
[null,null,null,null,null,null,null,null,null,null,null,null,null,null,"Renault","Actros L (4x2 Tractor Unit)"]
[null,null,null,null,null,null,null,null,null,null,null,null,null,null,"Renault Trucks","Actros L (6x2 Rigid)"]
[null,null,null,null,null,null,null,null,null,null,null,null,null,null,"Rivian","Air"]
[null,null,null,null,null,null,null,null,null,null,null,null,null,null,"Rolls-Royce","Alhambra"]
[null,null,null,null,null,null,null,null,null,null,null,null,null,null,"Scania","Allspace"]
[null,null,null,null,null,null,null,null,null,null,null,null,null,null,"SEAT","Amarok"]
[null,null,null,null,null,null,null,null,null,null,null,null,null,null,"SERES","Ampera-e"]
[null,null,null,null,null,null,null,null,null,null,null,null,null,null,"Škoda","Ariya"]
[null,null,null,null,null,null,null,null,null,null,null,null,null,null,"smart","Arkana"]
[null,null,null,null,null,null,null,null,null,null,null,null,null,null,"SsangYong","Arona"]
[null,null,null,null,null,null,null,null,null,null,null,null,null,null,"Subaru","Arteon"]
[null,null,null,null,null,null,null,null,null,null,null,null,null,null,"Suzuki","Arteon Shooting Brake"]
[null,null,null,null,null,null,null,null,null,null,null,null,null,null,"Tesla","Astra"]
[null,null,null,null,null,null,null,null,null,null,null,null,null,null,"TêstÖÉM","Astra Plug-in Hybrid"]
[null,null,null,null,null,null,null,null,null,null,null,null,null,null,"Togg","ASX"]
[null,null,null,null,null,null,null,null,null,null,null,null,null,null,"Toyota","Ateca"]
[null,null,null,null,null,null,null,null,null,null,null,null,null,null,"VinFast","ATTO 2"]
[null,null,null,null,null,null,null,null,null,null,null,null,null,null,"Volkswagen","ATTO 3"]
[null,null,null,null,null,null,null,null,null,null,null,null,null,null,"Volvo","Atto3 2022 - Veoneer"]
[null,null,null,null,null,null,null,null,null,null,null,null,null,null,"Voyah","Atto3 2025 - Bosch"]
[null,null,null,null,null,null,null,null,null,null,null,null,null,null,"WEY","Austral"]
[null,null,null,null,null,null,null,null,null,null,null,null,null,null,"XPENG","Austral HEV"]
[null,null,null,null,null,null,null,null,null,null,null,null,null,null,"ZEEKR","Avenger"]
[null,null,null,null,null,null,null,null,null,null,null,null,null,null,null,"Aygo"]
[null,null,null,null,null,null,null,null,null,null,null,null,null,null,null,"Aygo X"]
[null,null,null,null,null,null,null,null,null,null,null,null,null,null,null,"B10"]
[null,null,null,null,null,null,null,null,null,null,null,null,null,null,null,"Baleno"]
[null,null,null,null,null,null,null,null,null,null,null,null,null,null,null,"BAYON"]
[null,null,null,null,null,null,null,null,null,null,null,null,null,null,null,"B-Class"]
[null,null,null,null,null,null,null,null,null,null,null,null,null,null,null,"Berlingo"]
[null,null,null,null,null,null,null,null,null,null,null,null,null,null,null,"Bigster"]
[null,null,null,null,null,null,null,null,null,null,null,null,null,null,null,"Born"]
[null,null,null,null,null,null,null,null,null,null,null,null,null,null,null,"BOX"]
[null,null,null,null,null,null,null,null,null,null,null,null,null,null,null,"Boxer"]
[null,null,null,null,null,null,null,null,null,null,null,null,null,null,null,"bZ4X"]
[null,null,null,null,null,null,null,null,null,null,null,null,null,null,null,"C10"]
[null,null,null,null,null,null,null,null,null,null,null,null,null,null,null,"C3"]
[null,null,null,null,null,null,null,null,null,null,null,null,null,null,null,"C3 Aircross"]
[null,null,null,null,null,null,null,null,null,null,null,null,null,null,null,"C4"]
[null,null,null,null,null,null,null,null,null,null,null,null,null,null,null,"C4 X"]
[null,null,null,null,null,null,null,null,null,null,null,null,null,null,null,"C40 Recharge"]
[null,null,null,null,null,null,null,null,null,null,null,null,null,null,null,"C5 Aircross"]
[null,null,null,null,null,null,null,null,null,null,null,null,null,null,null,"C5 X"]
[null,null,null,null,null,null,null,null,null,null,null,null,null,null,null,"Caddy"]
[null,null,null,null,null,null,null,null,null,null,null,null,null,null,null,"Caddy Cargo"]
[null,null,null,null,null,null,null,null,null,null,null,null,null,null,null,"Caddy PHEV"]
[null,null,null,null,null,null,null,null,null,null,null,null,null,null,null,"Capri"]
[null,null,null,null,null,null,null,null,null,null,null,null,null,null,null,"Captur"]
[null,null,null,null,null,null,null,null,null,null,null,null,null,null,null,"Captur E-TECH"]
[null,null,null,null,null,null,null,null,null,null,null,null,null,null,null,"CAPTUR E-TECH Plug-in Hybrid"]
[null,null,null,null,null,null,null,null,null,null,null,null,null,null,null,"Caravelle"]
[null,null,null,null,null,null,null,null,null,null,null,null,null,null,null,"Cayenne"]
[null,null,null,null,null,null,null,null,null,null,null,null,null,null,null,"C-Class"]
[null,null,null,null,null,null,null,null,null,null,null,null,null,null,null,"C-Class Convertible"]
[null,null,null,null,null,null,null,null,null,null,null,null,null,null,null,"Ceed"]
[null,null,null,null,null,null,null,null,null,null,null,null,null,null,null,"Cherokee"]
[null,null,null,null,null,null,null,null,null,null,null,null,null,null,null,"C-HR"]
[null,null,null,null,null,null,null,null,null,null,null,null,null,null,null,"C-HR PHEV"]
[null,null,null,null,null,null,null,null,null,null,null,null,null,null,null,"C-HR+"]
[null,null,null,null,null,null,null,null,null,null,null,null,null,null,null,"Citan"]
[null,null,null,null,null,null,null,null,null,null,null,null,null,null,null,"Citan Tourer"]
[null,null,null,null,null,null,null,null,null,null,null,null,null,null,null,"CITIGO"]
[null,null,null,null,null,null,null,null,null,null,null,null,null,null,null,"Civic"]
[null,null,null,null,null,null,null,null,null,null,null,null,null,null,null,"CLA"]
[null,null,null,null,null,null,null,null,null,null,null,null,null,null,null,"CLE Coupé"]
[null,null,null,null,null,null,null,null,null,null,null,null,null,null,null,"Clio"]
[null,null,null,null,null,null,null,null,null,null,null,null,null,null,null,"Clio E-TECH Hybrid"]
[null,null,null,null,null,null,null,null,null,null,null,null,null,null,null,"CLS-Class"]
[null,null,null,null,null,null,null,null,null,null,null,null,null,null,null,"C-MAX"]
[null,null,null,null,null,null,null,null,null,null,null,null,null,null,null,"Coffee 01"]
[null,null,null,null,null,null,null,null,null,null,null,null,null,null,null,"Coffee 02"]
[null,null,null,null,null,null,null,null,null,null,null,null,null,null,null,"Combo"]
[null,null,null,null,null,null,null,null,null,null,null,null,null,null,null,"Combo-e Life"]
[null,null,null,null,null,null,null,null,null,null,null,null,null,null,null,"Compass"]
[null,null,null,null,null,null,null,null,null,null,null,null,null,null,null,"Cooper"]
[null,null,null,null,null,null,null,null,null,null,null,null,null,null,null,"Cooper E"]
[null,null,null,null,null,null,null,null,null,null,null,null,null,null,null,"Corolla"]
[null,null,null,null,null,null,null,null,null,null,null,null,null,null,null,"Corolla Cross"]
[null,null,null,null,null,null,null,null,null,null,null,null,null,null,null,"Corsa"]
[null,null,null,null,null,null,null,null,null,null,null,null,null,null,null,"Corsa-E"]
[null,null,null,null,null,null,null,null,null,null,null,null,null,null,null,"Countryman"]
[null,null,null,null,null,null,null,null,null,null,null,null,null,null,null,"COURAGE"]
[null,null,null,null,null,null,null,null,null,null,null,null,null,null,null,"Crafter"]
[null,null,null,null,null,null,null,null,null,null,null,null,null,null,null,"Crossland X"]
[null,null,null,null,null,null,null,null,null,null,null,null,null,null,null,"Crosstrek"]
[null,null,null,null,null,null,null,null,null,null,null,null,null,null,null,"CR-V"]
[null,null,null,null,null,null,null,null,null,null,null,null,null,null,null,"CX-30"]
[null,null,null,null,null,null,null,null,null,null,null,null,null,null,null,"CX-5"]
[null,null,null,null,null,null,null,null,null,null,null,null,null,null,null,"CX-60"]
[null,null,null,null,null,null,null,null,null,null,null,null,null,null,null,"CX-80"]
[null,null,null,null,null,null,null,null,null,null,null,null,null,null,null,"D"]
[null,null,null,null,null,null,null,null,null,null,null,null,null,null,null,"Daily"]
[null,null,null,null,null,null,null,null,null,null,null,null,null,null,null,"Defender"]
[null,null,null,null,null,null,null,null,null,null,null,null,null,null,null,"Defender PHEV"]
[null,null,null,null,null,null,null,null,null,null,null,null,null,null,null,"Demo #1 for TU Graz"]
[null,null,null,null,null,null,null,null,null,null,null,null,null,null,null,"Discovery"]
[null,null,null,null,null,null,null,null,null,null,null,null,null,null,null,"Discovery Sport"]
[null,null,null,null,null,null,null,null,null,null,null,null,null,null,null,"D-Max"]
[null,null,null,null,null,null,null,null,null,null,null,null,null,null,null,"D-MAX Crew Cab"]
[null,null,null,null,null,null,null,null,null,null,null,null,null,null,null,"Doblo"]
[null,null,null,null,null,null,null,null,null,null,null,null,null,null,null,"DOLPHIN"]
[null,null,null,null,null,null,null,null,null,null,null,null,null,null,null,"DOLPHIN SURF"]
[null,null,null,null,null,null,null,null,null,null,null,null,null,null,null,"Ducato"]
[null,null,null,null,null,null,null,null,null,null,null,null,null,null,null,"Duster"]
[null,null,null,null,null,null,null,null,null,null,null,null,null,null,null,"e"]
[null,null,null,null,null,null,null,null,null,null,null,null,null,null,null,"e VITARA"]
[null,null,null,null,null,null,null,null,null,null,null,null,null,null,null,"E07 - CANCELLED"]
[null,null,null,null,null,null,null,null,null,null,null,null,null,null,null,"e208"]
[null,null,null,null,null,null,null,null,null,null,null,null,null,null,null,"e-3008"]
[null,null,null,null,null,null,null,null,null,null,null,null,null,null,null,"ë-Berlingo"]
[null,null,null,null,null,null,null,null,null,null,null,null,null,null,null,"ë-C3"]
[null,null,null,null,null,null,null,null,null,null,null,null,null,null,null,"ë-C4"]
[null,null,null,null,null,null,null,null,null,null,null,null,null,null,null,"EC40"]
[null,null,null,null,null,null,null,null,null,null,null,null,null,null,null,"e-Citan Tourer"]
[null,null,null,null,null,null,null,null,null,null,null,null,null,null,null,"E-Class"]
[null,null,null,null,null,null,null,null,null,null,null,null,null,null,null,"Eclipse Cross"]
[null,null,null,null,null,null,null,null,null,null,null,null,null,null,null,"ecoSport"]
[null,null,null,null,null,null,null,null,null,null,null,null,null,null,null,"eDELIVER 5"]
[null,null,null,null,null,null,null,null,null,null,null,null,null,null,null,"eDELIVER 7"]
[null,null,null,null,null,null,null,null,null,null,null,null,null,null,null,"eDELIVER 9"]
[null,null,null,null,null,null,null,null,null,null,null,null,null,null,null,"Edge"]
[null,null,null,null,null,null,null,null,null,null,null,null,null,null,null,"EHS5"]
[null,null,null,null,null,null,null,null,null,null,null,null,null,null,null,"EHS7"]
[null,null,null,null,null,null,null,null,null,null,null,null,null,null,null,"E-HS9"]
[null,null,null,null,null,null,null,null,null,null,null,null,null,null,null,"EL6"]
[null,null,null,null,null,null,null,null,null,null,null,null,null,null,null,"EL7"]
[null,null,null,null,null,null,null,null,null,null,null,null,null,null,null,"Electric"]
[null,null,null,null,null,null,null,null,null,null,null,null,null,null,null,"Electrified G80"]
[null,null,null,null,null,null,null,null,null,null,null,null,null,null,null,"Electrified GV70"]
[null,null,null,null,null,null,null,null,null,null,null,null,null,null,null,"Elroq"]
[null,null,null,null,null,null,null,null,null,null,null,null,null,null,null,"e-Mehari"]
[null,null,null,null,null,null,null,null,null,null,null,null,null,null,null,"e-Ny1"]
[null,null,null,null,null,null,null,null,null,null,null,null,null,null,null,"Enyaq"]
[null,null,null,null,null,null,null,null,null,null,null,null,null,null,null,"ENYAQ iV"]
[null,null,null,null,null,null,null,null,null,null,null,null,null,null,null,"ENYAQ iV Coupé"]
[null,null,null,null,null,null,null,null,null,null,null,null,null,null,null,"E-Pace"]
[null,null,null,null,null,null,null,null,null,null,null,null,null,null,null,"EQ forfour"]
[null,null,null,null,null,null,null,null,null,null,null,null,null,null,null,"EQA"]
[null,null,null,null,null,null,null,null,null,null,null,null,null,null,null,"EQB"]
[null,null,null,null,null,null,null,null,null,null,null,null,null,null,null,"EQC"]
[null,null,null,null,null,null,null,null,null,null,null,null,null,null,null,"EQE"]
[null,null,null,null,null,null,null,null,null,null,null,null,null,null,null,"EQE SUV"]
[null,null,null,null,null,null,null,null,null,null,null,null,null,null,null,"EQS"]
[null,null,null,null,null,null,null,null,null,null,null,null,null,null,null,"EQT"]
[null,null,null,null,null,null,null,null,null,null,null,null,null,null,null,"EQV"]
[null,null,null,null,null,null,null,null,null,null,null,null,null,null,null,"e-Rifter"]
[null,null,null,null,null,null,null,null,null,null,null,null,null,null,null,"ES"]
[null,null,null,null,null,null,null,null,null,null,null,null,null,null,null,"ES8"]
[null,null,null,null,null,null,null,null,null,null,null,null,null,null,null,"Espace"]
[null,null,null,null,null,null,null,null,null,null,null,null,null,null,null,"ET"]
[null,null,null,null,null,null,null,null,null,null,null,null,null,null,null,"ET5"]
[null,null,null,null,null,null,null,null,null,null,null,null,null,null,null,"ET5 Touring"]
[null,null,null,null,null,null,null,null,null,null,null,null,null,null,null,"ET7"]
[null,null,null,null,null,null,null,null,null,null,null,null,null,null,null,"eTERRON 9"]
[null,null,null,null,null,null,null,null,null,null,null,null,null,null,null,"E-Tourneo Custom"]
[null,null,null,null,null,null,null,null,null,null,null,null,null,null,null,"e-tron"]
[null,null,null,null,null,null,null,null,null,null,null,null,null,null,null,"e-tron Sportback"]
[null,null,null,null,null,null,null,null,null,null,null,null,null,null,null,"EV3"]
[null,null,null,null,null,null,null,null,null,null,null,null,null,null,null,"EV4"]
[null,null,null,null,null,null,null,null,null,null,null,null,null,null,null,"EV5"]
[null,null,null,null,null,null,null,null,null,null,null,null,null,null,null,"EV6"]
[null,null,null,null,null,null,null,null,null,null,null,null,null,null,null,"EV9"]
[null,null,null,null,null,null,null,null,null,null,null,null,null,null,null,"EX30"]
[null,null,null,null,null,null,null,null,null,null,null,null,null,null,null,"EX5"]
[null,null,null,null,null,null,null,null,null,null,null,null,null,null,null,"EX5 EM-i"]
[null,null,null,null,null,null,null,null,null,null,null,null,null,null,null,"EX90"]
[null,null,null,null,null,null,null,null,null,null,null,null,null,null,null,"Expert"]
[null,null,null,null,null,null,null,null,null,null,null,null,null,null,null,"Explorer"]
[null,null,null,null,null,null,null,null,null,null,null,null,null,null,null,"Fabia"]
[null,null,null,null,null,null,null,null,null,null,null,null,null,null,null,"FDTest1212"]
[null,null,null,null,null,null,null,null,null,null,null,null,null,null,null,"FDTest1312"]
[null,null,null,null,null,null,null,null,null,null,null,null,null,null,null,"FH Aero (2025 MY)"]
[null,null,null,null,null,null,null,null,null,null,null,null,null,null,null,"FH Aero (6x2 Rigid)"]
[null,null,null,null,null,null,null,null,null,null,null,null,null,null,null,"Fiesta"]
[null,null,null,null,null,null,null,null,null,null,null,null,null,null,null,"firefly"]
[null,null,null,null,null,null,null,null,null,null,null,null,null,null,null,"FM"]
[null,null,null,null,null,null,null,null,null,null,null,null,null,null,null,"FM (2025 MY)"]
[null,null,null,null,null,null,null,null,null,null,null,null,null,null,null,"FM (4x2 Tractor Unit)"]
[null,null,null,null,null,null,null,null,null,null,null,null,null,null,null,"FM (6x2 Rigid)"]
[null,null,null,null,null,null,null,null,null,null,null,null,null,null,null,"F-Max (4x2 Tractor Unit)"]
[null,null,null,null,null,null,null,null,null,null,null,null,null,null,null,"Focus"]
[null,null,null,null,null,null,null,null,null,null,null,null,null,null,null,"Forester"]
[null,null,null,null,null,null,null,null,null,null,null,null,null,null,null,"Formentor"]
[null,null,null,null,null,null,null,null,null,null,null,null,null,null,null,"Formentor e-HYBRID"]
[null,null,null,null,null,null,null,null,null,null,null,null,null,null,null,"F-Pace"]
[null,null,null,null,null,null,null,null,null,null,null,null,null,null,null,"Funky Cat"]
[null,null,null,null,null,null,null,null,null,null,null,null,null,null,null,"G (4x2 Tractor Unit)"]
[null,null,null,null,null,null,null,null,null,null,null,null,null,null,null,"G (6x2 Rigid)"]
[null,null,null,null,null,null,null,null,null,null,null,null,null,null,null,"G6"]
[null,null,null,null,null,null,null,null,null,null,null,null,null,null,null,"G70"]
[null,null,null,null,null,null,null,null,null,null,null,null,null,null,null,"G80"]
[null,null,null,null,null,null,null,null,null,null,null,null,null,null,null,"G9"]
[null,null,null,null,null,null,null,null,null,null,null,null,null,null,null,"G-Class"]
[null,null,null,null,null,null,null,null,null,null,null,null,null,null,null,"G-Class EQ"]
[null,null,null,null,null,null,null,null,null,null,null,null,null,null,null,"'Gemini'"]
[null,null,null,null,null,null,null,null,null,null,null,null,null,null,null,"Giulia"]
[null,null,null,null,null,null,null,null,null,null,null,null,null,null,null,"Giulietta"]
[null,null,null,null,null,null,null,null,null,null,null,null,null,null,null,"GLA"]
[null,null,null,null,null,null,null,null,null,null,null,null,null,null,null,"GLB"]
[null,null,null,null,null,null,null,null,null,null,null,null,null,null,null,"GLC"]
[null,null,null,null,null,null,null,null,null,null,null,null,null,null,null,"GLE"]
[null,null,null,null,null,null,null,null,null,null,null,null,null,null,null,"GLE Coupé"]
[null,null,null,null,null,null,null,null,null,null,null,null,null,null,null,"Golf"]
[null,null,null,null,null,null,null,null,null,null,null,null,null,null,null,"Golf PHEV"]
[null,null,null,null,null,null,null,null,null,null,null,null,null,null,null,"Golf Variant"]
[null,null,null,null,null,null,null,null,null,null,null,null,null,null,null,"Grand Cherokee"]
[null,null,null,null,null,null,null,null,null,null,null,null,null,null,null,"Grand C-MAX"]
[null,null,null,null,null,null,null,null,null,null,null,null,null,null,null,"Grande Panda"]
[null,null,null,null,null,null,null,null,null,null,null,null,null,null,null,"Grandis"]
[null,null,null,null,null,null,null,null,null,null,null,null,null,null,null,"Grandland"]
[null,null,null,null,null,null,null,null,null,null,null,null,null,null,null,"Grandland X"]
[null,null,null,null,null,null,null,null,null,null,null,null,null,null,null,"Grandland X Hybrid"]
[null,null,null,null,null,null,null,null,null,null,null,null,null,null,null,"Gravity"]
[null,null,null,null,null,null,null,null,null,null,null,null,null,null,null,"G-series (2025 MY)"]
[null,null,null,null,null,null,null,null,null,null,null,null,null,null,null,"GV60"]
[null,null,null,null,null,null,null,null,null,null,null,null,null,null,null,"GV70"]
[null,null,null,null,null,null,null,null,null,null,null,null,null,null,null,"GV80"]
[null,null,null,null,null,null,null,null,null,null,null,null,null,null,null,"'HCB'"]
[null,null,null,null,null,null,null,null,null,null,null,null,null,null,null,"Hilux"]
[null,null,null,null,null,null,null,null,null,null,null,null,null,null,null,"HR-V"]
[null,null,null,null,null,null,null,null,null,null,null,null,null,null,null,"HS"]
[null,null,null,null,null,null,null,null,null,null,null,null,null,null,null,"HS Plug-in Hybrid"]
[null,null,null,null,null,null,null,null,null,null,null,null,null,null,null,"i Pace"]
[null,null,null,null,null,null,null,null,null,null,null,null,null,null,null,"i10"]
[null,null,null,null,null,null,null,null,null,null,null,null,null,null,null,"i20"]
[null,null,null,null,null,null,null,null,null,null,null,null,null,null,null,"i3"]
[null,null,null,null,null,null,null,null,null,null,null,null,null,null,null,"i30"]
[null,null,null,null,null,null,null,null,null,null,null,null,null,null,null,"i4"]
[null,null,null,null,null,null,null,null,null,null,null,null,null,null,null,"i5"]
[null,null,null,null,null,null,null,null,null,null,null,null,null,null,null,"Ibiza"]
[null,null,null,null,null,null,null,null,null,null,null,null,null,null,null,"ID. Buzz"]
[null,null,null,null,null,null,null,null,null,null,null,null,null,null,null,"ID.3"]
[null,null,null,null,null,null,null,null,null,null,null,null,null,null,null,"ID.4"]
[null,null,null,null,null,null,null,null,null,null,null,null,null,null,null,"ID.5"]
[null,null,null,null,null,null,null,null,null,null,null,null,null,null,null,"ID.7"]
[null,null,null,null,null,null,null,null,null,null,null,null,null,null,null,"ID.7 Tourer"]
[null,null,null,null,null,null,null,null,null,null,null,null,null,null,null,"ID.7 wagon"]
[null,null,null,null,null,null,null,null,null,null,null,null,null,null,null,"ID.Buzz"]
[null,null,null,null,null,null,null,null,null,null,null,null,null,null,null,"ID.Buzz Cargo"]
[null,null,null,null,null,null,null,null,null,null,null,null,null,null,null,"Ignis"]
[null,null,null,null,null,null,null,null,null,null,null,null,null,null,null,"Impreza"]
[null,null,null,null,null,null,null,null,null,null,null,null,null,null,null,"Impreza e-BOXER"]
[null,null,null,null,null,null,null,null,null,null,null,null,null,null,null,"Insignia"]
[null,null,null,null,null,null,null,null,null,null,null,null,null,null,null,"Inster"]
[null,null,null,null,null,null,null,null,null,null,null,null,null,null,null,"Interstar"]
[null,null,null,null,null,null,null,null,null,null,null,null,null,null,null,"IONIQ"]
[null,null,null,null,null,null,null,null,null,null,null,null,null,null,null,"IONIQ 5"]
[null,null,null,null,null,null,null,null,null,null,null,null,null,null,null,"IONIQ 6"]
[null,null,null,null,null,null,null,null,null,null,null,null,null,null,null,"IONIQ 9"]
[null,null,null,null,null,null,null,null,null,null,null,null,null,null,null,"I-PACE"]
[null,null,null,null,null,null,null,null,null,null,null,null,null,null,null,"iX"]
[null,null,null,null,null,null,null,null,null,null,null,null,null,null,null,"iX1"]
[null,null,null,null,null,null,null,null,null,null,null,null,null,null,null,"iX3"]
[null,null,null,null,null,null,null,null,null,null,null,null,null,null,null,"Jazz"]
[null,null,null,null,null,null,null,null,null,null,null,null,null,null,null,"Jazz2"]
[null,null,null,null,null,null,null,null,null,null,null,null,null,null,null,"Jimny"]
[null,null,null,null,null,null,null,null,null,null,null,null,null,null,null,"Jogger"]
[null,null,null,null,null,null,null,null,null,null,null,null,null,null,null,"Jogger HEV"]
[null,null,null,null,null,null,null,null,null,null,null,null,null,null,null,"Juke"]
[null,null,null,null,null,null,null,null,null,null,null,null,null,null,null,"Juke Hybrid"]
[null,null,null,null,null,null,null,null,null,null,null,null,null,null,null,"Jumper (Relay)"]
[null,null,null,null,null,null,null,null,null,null,null,null,null,null,null,"Jumpy (Dispatch)"]
[null,null,null,null,null,null,null,null,null,null,null,null,null,null,null,"JY AIR - CANCELLED"]
[null,null,null,null,null,null,null,null,null,null,null,null,null,null,null,"Ka+"]
[null,null,null,null,null,null,null,null,null,null,null,null,null,null,null,"Kamiq"]
[null,null,null,null,null,null,null,null,null,null,null,null,null,null,null,"Kangoo"]
[null,null,null,null,null,null,null,null,null,null,null,null,null,null,null,"Kangoo E-Tech"]
[null,null,null,null,null,null,null,null,null,null,null,null,null,null,null,"Kangoo Van"]
[null,null,null,null,null,null,null,null,null,null,null,null,null,null,null,"Karl"]
[null,null,null,null,null,null,null,null,null,null,null,null,null,null,null,"Karoq"]
[null,null,null,null,null,null,null,null,null,null,null,null,null,null,null,"Kodiaq"]
[null,null,null,null,null,null,null,null,null,null,null,null,null,null,null,"Kodiaq iV"]
[null,null,null,null,null,null,null,null,null,null,null,null,null,null,null,"Koleos"]
[null,null,null,null,null,null,null,null,null,null,null,null,null,null,null,"KONA"]
[null,null,null,null,null,null,null,null,null,null,null,null,null,null,null,"Korando"]
[null,null,null,null,null,null,null,null,null,null,null,null,null,null,null,"Korando E-Motion"]
[null,null,null,null,null,null,null,null,null,null,null,null,null,null,null,"Kuga"]
[null,null,null,null,null,null,null,null,null,null,null,null,null,null,null,"Kuga PHEV"]
[null,null,null,null,null,null,null,null,null,null,null,null,null,null,null,"LBX"]
[null,null,null,null,null,null,null,null,null,null,null,null,null,null,null,"L-Cab"]
[null,null,null,null,null,null,null,null,null,null,null,null,null,null,null,"Leaf"]
[null,null,null,null,null,null,null,null,null,null,null,null,null,null,null,"LEAF e+"]
[null,null,null,null,null,null,null,null,null,null,null,null,null,null,null,"Leon"]
[null,null,null,null,null,null,null,null,null,null,null,null,null,null,null,"Leon e-Hybrid"]
[null,null,null,null,null,null,null,null,null,null,null,null,null,null,null,"Levorg"]
[null,null,null,null,null,null,null,null,null,null,null,null,null,null,null,"Limo"]
[null,null,null,null,null,null,null,null,null,null,null,null,null,null,null,"Logan"]
[null,null,null,null,null,null,null,null,null,null,null,null,null,null,null,"Macan"]
[null,null,null,null,null,null,null,null,null,null,null,null,null,null,null,"Macan E"]
[null,null,null,null,null,null,null,null,null,null,null,null,null,null,null,"mail test"]
[null,null,null,null,null,null,null,null,null,null,null,null,null,null,null,"Marvel R"]
[null,null,null,null,null,null,null,null,null,null,null,null,null,null,null,"Master"]
[null,null,null,null,null,null,null,null,null,null,null,null,null,null,null,"-me Service Car-to-X Communication"]
[null,null,null,null,null,null,null,null,null,null,null,null,null,null,null,"Megane"]
[null,null,null,null,null,null,null,null,null,null,null,null,null,null,null,"Megane E-Tech"]
[null,null,null,null,null,null,null,null,null,null,null,null,null,null,null,"MGS5 EV"]
[null,null,null,null,null,null,null,null,null,null,null,null,null,null,null,"Micra"]
[null,null,null,null,null,null,null,null,null,null,null,null,null,null,null,"MIFA 7"]
[null,null,null,null,null,null,null,null,null,null,null,null,null,null,null,"MIFA 9"]
[null,null,null,null,null,null,null,null,null,null,null,null,null,null,null,"Mii"]
[null,null,null,null,null,null,null,null,null,null,null,null,null,null,null,"Mirai"]
[null,null,null,null,null,null,null,null,null,null,null,null,null,null,null,"Model 3"]
[null,null,null,null,null,null,null,null,null,null,null,null,null,null,null,"Model S"]
[null,null,null,null,null,null,null,null,null,null,null,null,null,null,null,"Model X"]
[null,null,null,null,null,null,null,null,null,null,null,null,null,null,null,"Model Y"]
[null,null,null,null,null,null,null,null,null,null,null,null,null,null,null,"Mokka"]
[null,null,null,null,null,null,null,null,null,null,null,null,null,null,null,"Mokka-e"]
[null,null,null,null,null,null,null,null,null,null,null,null,null,null,null,"Mondeo"]
[null,null,null,null,null,null,null,null,null,null,null,null,null,null,null,"Movano"]
[null,null,null,null,null,null,null,null,null,null,null,null,null,null,null,"Multivan"]
[null,null,null,null,null,null,null,null,null,null,null,null,null,null,null,"Mustang"]
[null,null,null,null,null,null,null,null,null,null,null,null,null,null,null,"Mustang Mach-E"]
[null,null,null,null,null,null,null,null,null,null,null,null,null,null,null,"MX-30"]
[null,null,null,null,null,null,null,null,null,null,null,null,null,null,null,"MX-30 PHEV"]
[null,null,null,null,null,null,null,null,null,null,null,null,null,null,null,"N°8"]
[null,null,null,null,null,null,null,null,null,null,null,null,null,null,null,"NameTBC"]
[null,null,null,null,null,null,null,null,null,null,null,null,null,null,null,"NEXO"]
[null,null,null,null,null,null,null,null,null,null,null,null,null,null,null,"Niro"]
[null,null,null,null,null,null,null,null,null,null,null,null,null,null,null,"NV400"]
[null,null,null,null,null,null,null,null,null,null,null,null,null,null,null,"NX"]
[null,null,null,null,null,null,null,null,null,null,null,null,null,null,null,"Octavia"]
[null,null,null,null,null,null,null,null,null,null,null,null,null,null,null,"Octavia iV"]
[null,null,null,null,null,null,null,null,null,null,null,null,null,null,null,"OM_PS_11-12 - nr2"]
[null,null,null,null,null,null,null,null,null,null,null,null,null,null,null,"OMODA5"]
[null,null,null,null,null,null,null,null,null,null,null,null,null,null,null,"OMODA5 EV"]
[null,null,null,null,null,null,null,null,null,null,null,null,null,null,null,"Optiq"]
[null,null,null,null,null,null,null,null,null,null,null,null,null,null,null,"Outback"]
[null,null,null,null,null,null,null,null,null,null,null,null,null,null,null,"Outlander"]
[null,null,null,null,null,null,null,null,null,null,null,null,null,null,null,"P"]
[null,null,null,null,null,null,null,null,null,null,null,null,null,null,null,"P5"]
[null,null,null,null,null,null,null,null,null,null,null,null,null,null,null,"P7"]
[null,null,null,null,null,null,null,null,null,null,null,null,null,null,null,"P9 EV"]
[null,null,null,null,null,null,null,null,null,null,null,null,null,null,null,"Panda"]
[null,null,null,null,null,null,null,null,null,null,null,null,null,null,null,"Partner"]
[null,null,null,null,null,null,null,null,null,null,null,null,null,null,null,"Passat"]
[null,null,null,null,null,null,null,null,null,null,null,null,null,null,null,"Passat (2024)"]
[null,null,null,null,null,null,null,null,null,null,null,null,null,null,null,"Passat eHybrid"]
[null,null,null,null,null,null,null,null,null,null,null,null,null,null,null,"Picanto"]
[null,null,null,null,null,null,null,null,null,null,null,null,null,null,null,"Polo"]
[null,null,null,null,null,null,null,null,null,null,null,null,null,null,null,"Prelude"]
[null,null,null,null,null,null,null,null,null,null,null,null,null,null,null,"Primastar"]
[null,null,null,null,null,null,null,null,null,null,null,null,null,null,null,"Prius"]
[null,null,null,null,null,null,null,null,null,null,null,null,null,null,null,"PROACE"]
[null,null,null,null,null,null,null,null,null,null,null,null,null,null,null,"PROACE CITY"]
[null,null,null,null,null,null,null,null,null,null,null,null,null,null,null,"PROACE MAX"]
[null,null,null,null,null,null,null,null,null,null,null,null,null,null,null,"PROACE VERSO"]
[null,null,null,null,null,null,null,null,null,null,null,null,null,null,null,"Puma"]
[null,null,null,null,null,null,null,null,null,null,null,null,null,null,null,"Punto"]
[null,null,null,null,null,null,null,null,null,null,null,null,null,null,null,"PV5"]
[null,null,null,null,null,null,null,null,null,null,null,null,null,null,null,"PV5 Cargo"]
[null,null,null,null,null,null,null,null,null,null,null,null,null,null,null,"Q2"]
[null,null,null,null,null,null,null,null,null,null,null,null,null,null,null,"Q3"]
[null,null,null,null,null,null,null,null,null,null,null,null,null,null,null,"Q4 e-tron"]
[null,null,null,null,null,null,null,null,null,null,null,null,null,null,null,"Q5"]
[null,null,null,null,null,null,null,null,null,null,null,null,null,null,null,"Q5 PHEV"]
[null,null,null,null,null,null,null,null,null,null,null,null,null,null,null,"Q5 Sportback"]
[null,null,null,null,null,null,null,null,null,null,null,null,null,null,null,"Q6 e-tron"]
[null,null,null,null,null,null,null,null,null,null,null,null,null,null,null,"Q7"]
[null,null,null,null,null,null,null,null,null,null,null,null,null,null,null,"Q8"]
[null,null,null,null,null,null,null,null,null,null,null,null,null,null,null,"Qashqai"]
[null,null,null,null,null,null,null,null,null,null,null,null,null,null,null,"R (4x2 Tractor Unit)"]
[null,null,null,null,null,null,null,null,null,null,null,null,null,null,null,"R (6x2 Rigid)"]
[null,null,null,null,null,null,null,null,null,null,null,null,null,null,null,"Rafale"]
[null,null,null,null,null,null,null,null,null,null,null,null,null,null,null,"Rafale HEV"]
[null,null,null,null,null,null,null,null,null,null,null,null,null,null,null,"Rafale PHEV"]
[null,null,null,null,null,null,null,null,null,null,null,null,null,null,null,"Range Rover"]
[null,null,null,null,null,null,null,null,null,null,null,null,null,null,null,"Range Rover Evoque"]
[null,null,null,null,null,null,null,null,null,null,null,null,null,null,null,"Range Rover Evoque PHEV"]
[null,null,null,null,null,null,null,null,null,null,null,null,null,null,null,"Range Rover Sport"]
[null,null,null,null,null,null,null,null,null,null,null,null,null,null,null,"Range Rover Velar"]
[null,null,null,null,null,null,null,null,null,null,null,null,null,null,null,"Ranger"]
[null,null,null,null,null,null,null,null,null,null,null,null,null,null,null,"RAV4"]
[null,null,null,null,null,null,null,null,null,null,null,null,null,null,null,"RAV4 Plug-in Hybrid"]
[null,null,null,null,null,null,null,null,null,null,null,null,null,null,null,"Renegade"]
[null,null,null,null,null,null,null,null,null,null,null,null,null,null,null,"Rifter"]
[null,null,null,null,null,null,null,null,null,null,null,null,null,null,null,"Rio"]
[null,null,null,null,null,null,null,null,null,null,null,null,null,null,null,"R-series (2025 MY)"]
[null,null,null,null,null,null,null,null,null,null,null,null,null,null,null,"RX"]
[null,null,null,null,null,null,null,null,null,null,null,null,null,null,null,"RZ"]
[null,null,null,null,null,null,null,null,null,null,null,null,null,null,null,"S05"]
[null,null,null,null,null,null,null,null,null,null,null,null,null,null,null,"S07"]
[null,null,null,null,null,null,null,null,null,null,null,null,null,null,null,"S400"]
[null,null,null,null,null,null,null,null,null,null,null,null,null,null,null,"S6 EV"]
[null,null,null,null,null,null,null,null,null,null,null,null,null,null,null,"S700"]
[null,null,null,null,null,null,null,null,null,null,null,null,null,null,null,"S800"]
[null,null,null,null,null,null,null,null,null,null,null,null,null,null,null,"S9 PHEV"]
[null,null,null,null,null,null,null,null,null,null,null,null,null,null,null,"S90-V90"]
[null,null,null,null,null,null,null,null,null,null,null,null,null,null,null,"Sandero"]
[null,null,null,null,null,null,null,null,null,null,null,null,null,null,null,"Sandero Stepway"]
[null,null,null,null,null,null,null,null,null,null,null,null,null,null,null,"Santa Fe"]
[null,null,null,null,null,null,null,null,null,null,null,null,null,null,null,"Scala"]
[null,null,null,null,null,null,null,null,null,null,null,null,null,null,null,"Scenic"]
[null,null,null,null,null,null,null,null,null,null,null,null,null,null,null,"Scenic E-Tech"]
[null,null,null,null,null,null,null,null,null,null,null,null,null,null,null,"Scudo"]
[null,null,null,null,null,null,null,null,null,null,null,null,null,null,null,"SEAL"]
[null,null,null,null,null,null,null,null,null,null,null,null,null,null,null,"SEAL 6"]
[null,null,null,null,null,null,null,null,null,null,null,null,null,null,null,"SEAL U"]
[null,null,null,null,null,null,null,null,null,null,null,null,null,null,null,"SEALION 7"]
[null,null,null,null,null,null,null,null,null,null,null,null,null,null,null,"SEAL-U"]
[null,null,null,null,null,null,null,null,null,null,null,null,null,null,null,"SEAL-U PHEV"]
[null,null,null,null,null,null,null,null,null,null,null,null,null,null,null,"Sharan"]
[null,null,null,null,null,null,null,null,null,null,null,null,null,null,null,"Solterra"]
[null,null,null,null,null,null,null,null,null,null,null,null,null,null,null,"Sorento"]
[null,null,null,null,null,null,null,null,null,null,null,null,null,null,null,"Sportage"]
[null,null,null,null,null,null,null,null,null,null,null,null,null,null,null,"Spring"]
[null,null,null,null,null,null,null,null,null,null,null,null,null,null,null,"Sprinter"]
[null,null,null,null,null,null,null,null,null,null,null,null,null,null,null,"STARIA"]
[null,null,null,null,null,null,null,null,null,null,null,null,null,null,null,"Stelvio"]
[null,null,null,null,null,null,null,null,null,null,null,null,null,null,null,"Stinger"]
[null,null,null,null,null,null,null,null,null,null,null,null,null,null,null,"Stonic"]
[null,null,null,null,null,null,null,null,null,null,null,null,null,null,null,"Superb"]
[null,null,null,null,null,null,null,null,null,null,null,null,null,null,null,"SV"]
[null,null,null,null,null,null,null,null,null,null,null,null,null,null,null,"S-Way"]
[null,null,null,null,null,null,null,null,null,null,null,null,null,null,null,"S-WAY (2024 MY)"]
[null,null,null,null,null,null,null,null,null,null,null,null,null,null,null,"S-Way (4x2 Tractor Unit)"]
[null,null,null,null,null,null,null,null,null,null,null,null,null,null,null,"S-Way (6x2 Rigid)"]
[null,null,null,null,null,null,null,null,null,null,null,null,null,null,null,"Swift"]
[null,null,null,null,null,null,null,null,null,null,null,null,null,null,null,"Symbioz"]
[null,null,null,null,null,null,null,null,null,null,null,null,null,null,null,"T (2025 MY)"]
[null,null,null,null,null,null,null,null,null,null,null,null,null,null,null,"T (4x2 Tractor Unit)"]
[null,null,null,null,null,null,null,null,null,null,null,null,null,null,null,"T (6x2 Rigid)"]
[null,null,null,null,null,null,null,null,null,null,null,null,null,null,null,"T10F"]
[null,null,null,null,null,null,null,null,null,null,null,null,null,null,null,"T10X"]
[null,null,null,null,null,null,null,null,null,null,null,null,null,null,null,"T7 Multivan"]
[null,null,null,null,null,null,null,null,null,null,null,null,null,null,null,"T7 Transporter"]
[null,null,null,null,null,null,null,null,null,null,null,null,null,null,null,"Taigo"]
[null,null,null,null,null,null,null,null,null,null,null,null,null,null,null,"Talento"]
[null,null,null,null,null,null,null,null,null,null,null,null,null,null,null,"TANG"]
[null,null,null,null,null,null,null,null,null,null,null,null,null,null,null,"Tarraco"]
[null,null,null,null,null,null,null,null,null,null,null,null,null,null,null,"Tavascan"]
[null,null,null,null,null,null,null,null,null,null,null,null,null,null,null,"Taycan"]
[null,null,null,null,null,null,null,null,null,null,null,null,null,null,null,"Tayron"]
[null,null,null,null,null,null,null,null,null,null,null,null,null,null,null,"TBD_re:named #1"]
[null,null,null,null,null,null,null,null,null,null,null,null,null,null,null,"T-Class"]
[null,null,null,null,null,null,null,null,null,null,null,null,null,null,null,"T-Cross"]
[null,null,null,null,null,null,null,null,null,null,null,null,null,null,null,"TERRAMAR"]
[null,null,null,null,null,null,null,null,null,null,null,null,null,null,null,"TEST GTE PHEV"]
[null,null,null,null,null,null,null,null,null,null,null,null,null,null,null,"Test-#-WF validation !"]
[null,null,null,null,null,null,null,null,null,null,null,null,null,null,null,"TGM"]
[null,null,null,null,null,null,null,null,null,null,null,null,null,null,null,"TGX (2025 MY)"]
[null,null,null,null,null,null,null,null,null,null,null,null,null,null,null,"TGX (6x2 Rigid)"]
[null,null,null,null,null,null,null,null,null,null,null,null,null,null,null,"TIGGO 7"]
[null,null,null,null,null,null,null,null,null,null,null,null,null,null,null,"TIGGO 8"]
[null,null,null,null,null,null,null,null,null,null,null,null,null,null,null,"Tiguan"]
[null,null,null,null,null,null,null,null,null,null,null,null,null,null,null,"Tiguan eHybrid"]
[null,null,null,null,null,null,null,null,null,null,null,null,null,null,null,"Tipo"]
[null,null,null,null,null,null,null,null,null,null,null,null,null,null,null,"Tivoli"]
[null,null,null,null,null,null,null,null,null,null,null,null,null,null,null,"Tonale"]
[null,null,null,null,null,null,null,null,null,null,null,null,null,null,null,"Touareg"]
[null,null,null,null,null,null,null,null,null,null,null,null,null,null,null,"Touareg PHEV"]
[null,null,null,null,null,null,null,null,null,null,null,null,null,null,null,"Touran"]
[null,null,null,null,null,null,null,null,null,null,null,null,null,null,null,"Tourneo Connect"]
[null,null,null,null,null,null,null,null,null,null,null,null,null,null,null,"Tourneo Courier"]
[null,null,null,null,null,null,null,null,null,null,null,null,null,null,null,"Tourneo Courier BEV"]
[null,null,null,null,null,null,null,null,null,null,null,null,null,null,null,"Tourneo Custom"]
[null,null,null,null,null,null,null,null,null,null,null,null,null,null,null,"Townstar"]
[null,null,null,null,null,null,null,null,null,null,null,null,null,null,null,"Trafic"]
[null,null,null,null,null,null,null,null,null,null,null,null,null,null,null,"Transit"]
[null,null,null,null,null,null,null,null,null,null,null,null,null,null,null,"Transit 2t"]
[null,null,null,null,null,null,null,null,null,null,null,null,null,null,null,"Transit Connect"]
[null,null,null,null,null,null,null,null,null,null,null,null,null,null,null,"Transit Courier"]
[null,null,null,null,null,null,null,null,null,null,null,null,null,null,null,"Transit Custom"]
[null,null,null,null,null,null,null,null,null,null,null,null,null,null,null,"Transit PHEV"]
[null,null,null,null,null,null,null,null,null,null,null,null,null,null,null,"Transporter"]
[null,null,null,null,null,null,null,null,null,null,null,null,null,null,null,"T-Roc"]
[null,null,null,null,null,null,null,null,null,null,null,null,null,null,null,"Tucson"]
[null,null,null,null,null,null,null,null,null,null,null,null,null,null,null,"U5"]
[null,null,null,null,null,null,null,null,null,null,null,null,null,null,null,"U6"]
[null,null,null,null,null,null,null,null,null,null,null,null,null,null,null,"up!"]
[null,null,null,null,null,null,null,null,null,null,null,null,null,null,null,"Urban Cruiser"]
[null,null,null,null,null,null,null,null,null,null,null,null,null,null,null,"UX"]
[null,null,null,null,null,null,null,null,null,null,null,null,null,null,null,"UX 300e"]
[null,null,null,null,null,null,null,null,null,null,null,null,null,null,null,"V"]
[null,null,null,null,null,null,null,null,null,null,null,null,null,null,null,"V60"]
[null,null,null,null,null,null,null,null,null,null,null,null,null,null,null,"V-Class"]
[null,null,null,null,null,null,null,null,null,null,null,null,null,null,null,"VF8"]
[null,null,null,null,null,null,null,null,null,null,null,null,null,null,null,"VF9"]
[null,null,null,null,null,null,null,null,null,null,null,null,null,null,null,"Vitara"]
[null,null,null,null,null,null,null,null,null,null,null,null,null,null,null,"Vito"]
[null,null,null,null,null,null,null,null,null,null,null,null,null,null,null,"Vivaro"]
[null,null,null,null,null,null,null,null,null,null,null,null,null,null,null,"VN5"]
[null,null,null,null,null,null,null,null,null,null,null,null,null,null,null,"Wrangler"]
[null,null,null,null,null,null,null,null,null,null,null,null,null,null,null,"X"]
[null,null,null,null,null,null,null,null,null,null,null,null,null,null,null,"X Trail"]
[null,null,null,null,null,null,null,null,null,null,null,null,null,null,null,"X1"]
[null,null,null,null,null,null,null,null,null,null,null,null,null,null,null,"X1 HEV"]
[null,null,null,null,null,null,null,null,null,null,null,null,null,null,null,"X2"]
[null,null,null,null,null,null,null,null,null,null,null,null,null,null,null,"X3"]
[null,null,null,null,null,null,null,null,null,null,null,null,null,null,null,"X4"]
[null,null,null,null,null,null,null,null,null,null,null,null,null,null,null,"X5"]
[null,null,null,null,null,null,null,null,null,null,null,null,null,null,null,"XC40"]
[null,null,null,null,null,null,null,null,null,null,null,null,null,null,null,"XC40 Recharge"]
[null,null,null,null,null,null,null,null,null,null,null,null,null,null,null,"XC60"]
[null,null,null,null,null,null,null,null,null,null,null,null,null,null,null,"X-Class"]
[null,null,null,null,null,null,null,null,null,null,null,null,null,null,null,"XD"]
[null,null,null,null,null,null,null,null,null,null,null,null,null,null,null,"XF (2025 MY)"]
[null,null,null,null,null,null,null,null,null,null,null,null,null,null,null,"XF (6x2 Rigid)"]
[null,null,null,null,null,null,null,null,null,null,null,null,null,null,null,"XLV"]
[null,null,null,null,null,null,null,null,null,null,null,null,null,null,null,"XV"]
[null,null,null,null,null,null,null,null,null,null,null,null,null,null,null,"XV Hybrid"]
[null,null,null,null,null,null,null,null,null,null,null,null,null,null,null,"Yaris"]
[null,null,null,null,null,null,null,null,null,null,null,null,null,null,null,"Yaris Cross"]
[null,null,null,null,null,null,null,null,null,null,null,null,null,null,null,"Z4"]
[null,null,null,null,null,null,null,null,null,null,null,null,null,null,null,"Zafira Life"]
[null,null,null,null,null,null,null,null,null,null,null,null,null,null,null,"ZOE"]
[null,null,null,null,null,null,null,null,null,null,null,null,null,null,null,"ZR-V"]
[null,null,null,null,null,null,null,null,null,null,null,null,null,null,null,"ZS"]
[null,null,null,null,null,null,null,null,null,null,null,null,null,null,null,"ZS EV"]
[null,null,null,null,null,null,null,null,null,null,null,null,null,null,null,"ZS Hybrid"]

{"sheet":"Track Changes","index":17,"n_rows":161,"n_cols":4,"rows_kept":161,"cut":false,"hidden":false,"merged":[]}
["Version 2.0.8.2 received the following changes to adopt E85 fuel:","Damyanov",null,"29.09.2022"]
[]
["LIMITS Greenhouse"]
["·       B33 E85 fuel Upstream CO2 reduction factor due to neutral bio-fuel share combustion carbon balance = 0,214"]
["·       Row 26, added “Ethanol E85”, 1,753"]
[]
["LIMITS Efficiency"]
["·       B19 added “E10”"]
["·       B20 added “B7”"]
["·       Row added after table at line 24"]
["·       On line 24 added “Ethanol E85, Factor 6,41, Override 6,41"]
[]
["SPECS"]
["·       Ethanol E85 option inserted"]
["·       Formula in B6 and B7 expanded with E85 option"]
[]
["Efficiency"]
["·       Formulas in E10:E15 expanded with addition of E85 option"]
["·       Formulas in M23:E31 expanded with addition of E85 option"]
["·       Formulas in W23:W31 expanded with addition of E85 option"]
["·       Formulas in M43:M51 expanded with addition of E85 option"]
[]
["Greenhouse"]
["·       Formulas in Column E and H expanded with addition of E85 option"]
["·       T7 formula expanded with E85 option"]
[]
["Website Summary"]
["·       D89, D118, D139, D140 now include instruction about using automatic indexing"]
["·       Row 167 now defines the Weighted Overall Index"]
[]
["Version saved as 2.0.8.2_E85"]
[]
["Version 2.0.8.2_E85 received the following chnages to ease data transfer to assessment, LCA Static and LCA Tool","Damyanov",null,"26.01.2023"]
[]
["Website Summary"]
["Row 5: Start of Production"]
["Row 6: End of Production"]
["Row 9: Number of Doors"]
["Row 114: Best-Case Consumption (1st fuel source)"]
["Row 117: Best-Case Consumption (1st fuel source)"]
["Cells D119-D124: format explanation"]
["Row 120: Driving Range - Best-Case (1st fuel source)"]
["Row 123: Driving Range - Best - Case (2nd fuel source)"]
["Row 144: CO2 Tailpipe - Average"]
["Row 145: CO2 Tailpipe - Best"]
["Row 146: CO2 Tailpipe - Worst"]
["Row 147: N2O"]
["Row 148: CH4"]
["Cell D165: format explanation"]
["Cell C170, explanation: Declared Battery Capacity (usable)"]
["Row 171: Declared Battery Capacity (installed)"]
["A15, A93, A126: formated in bold"]
[]
["SPECS"]
["Cells O1, O2: Rating sheet Version displayed"]
["Cell J6: Info added \"Respect Green NCAP's definition of \"Hybrid\".\""]
["Cell A5, label changed from \"Drivetrain (FWD/AWD/RWD/4WD)\" to Drivetrain\""]
["Cell B5: Dropdown list inserted for Drivetrain"]
["Chnaged A11 from \"Declared Battery Capacity [kWh]\" to \"Declared Battery Capacity (usable) [kWh]\""]
["Added Row 12: Declared Battery Capacity (installed) [kWh]"]
["Cell B22: Dropdown list inserted for Gearbox type"]
["Cell C23: info changed"]
["Added Row 33 \"Start of Production\""]
["Added Row 34 \"End of Production\" with conditional formatting"]
["Tabs SPECS and RESULTS moved to 2nd and 3rd position"]
["RESULTS"]
["Table Structure Protected by the same password as for the other tabs"]
["TABS LIMITS Clean Air, LIMITS Efficiency, LIMITS Greenhouse"]
["Font changed to Calibri 11 for all."]
["Version saved as 2.0.8.3"]
[]
["Version 2.0.8.3 received the following chnages as it was spotted that the PEMS tests are not included in the selection range for best/worst CO2 consumption for LCA. They should be, because there are included in the selection for best/worst fuel/energy consumption.","Damyanov",null,"02.02.2023"]
[]
["Greenhouse"]
["Hidden PEMS blocks opened: "]
["PEMS+ cold engine 1"]
["PEMS+ Eco / light"]
["PEMS+ Heavy load"]
["Cells C33 und B51 \"Regulatory performance PEMS+ \" deleted "]
["All PEMS test blocks put in gray font colour"]
["In all PEMS blocks, the formula for the tailpipe CO2 emissions received a changed reference to column \"E\" in sheet \"Results\", instead to column \"F\""]
["In all PEMS blocks, the formula for the tailpipe CO2 emissions received a additional variable \"E_85\""]
["WEBSITE SUMMARY"]
["B147 Addition of all PEMS test as range for the selection in the fromula"]
["B148 Addition of all PEMS test as range for the selection in the fromula"]
[]
["OVERALL RATING (avg)","Verheyen",null,"03.02.2023"]
["Stars label changed to year 2023"]
["WEBSITE SUMMARY"]
["Internal Combustion Engine (line 178) should say =IF(Petrol,\"Petrol\",IF(Diesel,\"Diesel\",IF(E_85,\"E85\",IF(CNG_Mono,\"CNG\",IF(CNG_Dual,\"CNG\",\"\"))))) to have E85 reflect in the datasheet. It is understood that E85 is not an eingine type, stillwe accept that."]
["SPECS","Damyanov",null,"03.02.2023"]
["Cell O2, Year chnaged to 2023"]
["Cells O3, O4: \"Protocols 2022\" added"]
[]
["Version saved as GNT_Rating_Sheet_Master_2023v2.0.8.4"]
[]
[]
["Version GNT_Rating_Sheet_Master_2023v2.0.8.4 received the following update:","Damyanov",null,"22.02.2023"]
["SPECS"]
["New entry in row 22: Heating concept with a drop down selection list in P18:P24"]
["O2: version changed to 2.0.8.5"]
["A13:A15 deleted \", combined PHEV\" from label"]
["WEBSITE SUMMARY"]
["Addition of new field \"Heating Concept\" in row 174 and reference to the source cell in SPECS"]
[]
["Version saved as GNT_Rating_Sheet_Master_2023v2.0.8.5"]
["Started with version 1.4.6"]
["Overall"]
[null,"Average formula corrected to round down"]
["deleted sheet \"Temp\""]
["Deleted sheet \"Consumer Parameters\""]
["LCA RESULTS, I3: changed factors, USA 40%, Japan, Korea 50%, Inida 60%"]
["Driving Experience Input "]
[null,"PHEV greyed out at Estimated Actual Consumption and Driving Range"]
[null,"E52, label changed to \"Time to reach 16°C [s]\""]
[null,"In section \"Cabin Heating\", table about maintaining the temperature deleted, will not be a part of the assessment"]
["Driving Experience \"Calculation Sheet\""]
[null,"All formulad changed from linear scale assesment to if functions"]
[null,"Accuracy of Display block reworked"]
[null,"F151 label changed to \"Time to reach 16°C [s]\""]
[null,"In Cabin Heating Block, reference to maintaining temperature removed"]
[null,"Rear Left and right footwell fields changed to Front left Head and feet, the values of which are copies of the measurements front right"]
[null,"Assessment \"Average of Rear Left and Right Footwell\" deleted"]
["TEST RESULTS"]
[null,"B20 \"Wheel alignment label\" changed to \"Front wheel toe check\""]
[null,"Below \"Front wheel toe\" added \"rear wheel toe check\""]
["Clean Air"]
[null,"Formula for Wheel Alignment value and score changed"]
[null,"D84 label \"Accelerator aggresiveness\" changed to \"accelerator response\""]
[null,"Accelerator Response thresholds updated"]
[null,"Friction brake share WLTC+ Warm: changed formula in scoring and thresholds"]
[null,"Upper threshold for friction changed to 100"]
[null,"Row \"Friction brake share WLTC+ CAT\" deleted"]
[null,"Change Non-Testing LCA Phase Emissions NOx upper threshold to 300"]
["Limits Clean Air"]
[null,"Added a table for brake share"]
["SPECS"]
[null,"Added new line \"Traction battery voltage\""]
["Greenhouse"]
[null,"Additional LCA Emissions, upper threshold changed to 200"]
["Efficiency"]
[null,"Additional LCA Energy Demand, upper threshold changed to 100"]
["Saved as 1.4.7","Damyanov",null,"30.06.2025"]
["Added fitment table to V2X in Driving Experience Input","Damyanov",null,"02.07.2025"]
["Acoring Function for Brake abrasion corrected","Damyanov",null,"03.07.2025"]
["Changed some Non-testing LCA emisisons thresholds"]
["Saved as 1.5.0"]
[]
["Added explanation what will be filled by the secretariat in sheet \"Driving Experience Input\""]
["Added \"or remotely activated\" to tables in \"Additional Heating Functions\" in sheet \"Driving Experience\""]
["Added asterisk explanation about \"Smart cabin heating management\" in sheet \"Driving Experience\""]
["Added section \"CA Graph 1 Direct Exhaust Emissions\" in sheet \"Website Summary\""]
["saved as 1.5.3"]
[null,"Damyanov",null,"25.07.2025"]
["Mistake in Clean Air for recuperation share formula for conventional vehciles corrected. Saved as 1.5.4","Damyanov ",null,"30.07.2025"]
[]
["Corrected upstream fuel pollutants table. Saved as 1.5.11","Damyanov",null,"14.08.2025"]
["Many missing…. V 1.6.3"]
["Remove gross exceedance test results invalidation for NH3","Damyanov",null,"19.02.2026"]
["Macro module added to allow checking of rating stability (for family building) Saved as 1.6.5","Williams",null,"31.03.2026"]
["Macro improved. Euro 6 EB level added. Saved as 1.6.6","Williiams/Damyanov",null,"06.05.2026"]